Body Name,Date Paid,Transaction Number,Amount,Supplier Name,Supplier Type,Expense Area,Cost Centre Description,Expense Type
Cambridgeshire County Council,29-Feb-16,19971116-12890743,-54853.53,Cambridgeshire Community Services Nhs Trust,Trust (Other),PH,SH STI testing & treatment - Prescribed,Other Hired Contract Services
Cambridgeshire County Council,16-Feb-16,20003651-12837566,-19146.44,Dimensions (Uk) Ltd,Care Establishment,2 - Operations - Learning Disability,LDP South Cambs Locality - Care,Supported Living
Cambridgeshire County Council,23-Feb-16,19771241-12866339,-9386.72,Dame Hannah Rogers Trust,Trust (Other),2 - Operations - Learning Disability,LDP South Cambs Locality - Care,Residential Independent Sector
Cambridgeshire County Council,12-Feb-16,19899305-12832399,-7044.5,Fencabs Ltd T/A Fencars,Trade Supplier,S&C,Home to School Transport - Special,Home to School - Post 16
Cambridgeshire County Council,08-Feb-16,19771250-12797753,-6375.98,Mencap,Care Establishment,2 - Operations - Learning Disability,LDP City Locality - Care,Supported Living
Cambridgeshire County Council,01-Feb-16,19900983-12756560,-4656,Dataprox Limited,Trade Supplier,Winter Maintenance,Central Winter Maintenance,Building Maintenance
Cambridgeshire County Council,11-Feb-16,19978311-12818380,-4652.4,Cambian Care Services Limited,Care Establishment,2 - Operations - Learning Disability,LDP E Cambs Locality - Care,SDS - Care and support Services
Cambridgeshire County Council,11-Feb-16,19978313-12818382,-4652.4,Cambian Care Services Limited,Care Establishment,2 - Operations - Learning Disability,LDP E Cambs Locality - Care,SDS - Care and support Services
Cambridgeshire County Council,11-Feb-16,19978317-12818386,-4652.4,Cambian Care Services Limited,Care Establishment,2 - Operations - Learning Disability,LDP E Cambs Locality - Care,SDS - Care and support Services
Cambridgeshire County Council,11-Feb-16,19978318-12818387,-4652.4,Cambian Care Services Limited,Care Establishment,2 - Operations - Learning Disability,LDP E Cambs Locality - Care,SDS - Care and support Services
Cambridgeshire County Council,11-Feb-16,19978319-12818388,-4652.4,Cambian Care Services Limited,Care Establishment,2 - Operations - Learning Disability,LDP E Cambs Locality - Care,SDS - Care and support Services
Cambridgeshire County Council,11-Feb-16,19978322-12818391,-4652.4,Cambian Care Services Limited,Care Establishment,2 - Operations - Learning Disability,LDP E Cambs Locality - Care,SDS - Care and support Services
Cambridgeshire County Council,11-Feb-16,19978323-12818392,-4652.4,Cambian Care Services Limited,Care Establishment,2 - Operations - Learning Disability,LDP E Cambs Locality - Care,SDS - Care and support Services
Cambridgeshire County Council,11-Feb-16,19978325-12818394,-4652.4,Cambian Care Services Limited,Care Establishment,2 - Operations - Learning Disability,LDP E Cambs Locality - Care,SDS - Care and support Services
Cambridgeshire County Council,11-Feb-16,19978331-12818400,-4652.4,Cambian Care Services Limited,Care Establishment,2 - Operations - Learning Disability,LDP E Cambs Locality - Care,SDS - Care and support Services
Cambridgeshire County Council,11-Feb-16,19978332-12818401,-4652.4,Cambian Care Services Limited,Care Establishment,2 - Operations - Learning Disability,LDP E Cambs Locality - Care,SDS - Care and support Services
Cambridgeshire County Council,11-Feb-16,19978334-12818403,-4652.4,Cambian Care Services Limited,Care Establishment,2 - Operations - Learning Disability,LDP E Cambs Locality - Care,SDS - Care and support Services
Cambridgeshire County Council,11-Feb-16,19978336-12818405,-4652.4,Cambian Care Services Limited,Care Establishment,2 - Operations - Learning Disability,LDP E Cambs Locality - Care,SDS - Care and support Services
Cambridgeshire County Council,11-Feb-16,19978337-12818406,-4652.4,Cambian Care Services Limited,Care Establishment,2 - Operations - Learning Disability,LDP E Cambs Locality - Care,SDS - Care and support Services
Cambridgeshire County Council,11-Feb-16,19978338-12818407,-4652.4,Cambian Care Services Limited,Care Establishment,2 - Operations - Learning Disability,LDP E Cambs Locality - Care,SDS - Care and support Services
Cambridgeshire County Council,11-Feb-16,19978341-12818410,-4652.4,Cambian Care Services Limited,Care Establishment,2 - Operations - Learning Disability,LDP E Cambs Locality - Care,SDS - Care and support Services
Cambridgeshire County Council,11-Feb-16,19978345-12818414,-4652.4,Cambian Care Services Limited,Care Establishment,2 - Operations - Learning Disability,LDP E Cambs Locality - Care,SDS - Care and support Services
Cambridgeshire County Council,11-Feb-16,19978346-12818415,-4652.4,Cambian Care Services Limited,Care Establishment,2 - Operations - Learning Disability,LDP E Cambs Locality - Care,SDS - Care and support Services
Cambridgeshire County Council,11-Feb-16,19978347-12818416,-4652.4,Cambian Care Services Limited,Care Establishment,2 - Operations - Learning Disability,LDP E Cambs Locality - Care,SDS - Care and support Services
Cambridgeshire County Council,11-Feb-16,19978348-12818417,-4652.4,Cambian Care Services Limited,Care Establishment,2 - Operations - Learning Disability,LDP E Cambs Locality - Care,SDS - Care and support Services
Cambridgeshire County Council,11-Feb-16,19978350-12818419,-4652.4,Cambian Care Services Limited,Care Establishment,2 - Operations - Learning Disability,LDP E Cambs Locality - Care,SDS - Care and support Services
Cambridgeshire County Council,11-Feb-16,19978351-12818420,-4652.4,Cambian Care Services Limited,Care Establishment,2 - Operations - Learning Disability,LDP E Cambs Locality - Care,SDS - Care and support Services
Cambridgeshire County Council,11-Feb-16,19978353-12818422,-4652.4,Cambian Care Services Limited,Care Establishment,2 - Operations - Learning Disability,LDP E Cambs Locality - Care,SDS - Care and support Services
Cambridgeshire County Council,11-Feb-16,19978354-12818423,-4652.4,Cambian Care Services Limited,Care Establishment,2 - Operations - Learning Disability,LDP E Cambs Locality - Care,SDS - Care and support Services
Cambridgeshire County Council,11-Feb-16,19978359-12818428,-4652.4,Cambian Care Services Limited,Care Establishment,2 - Operations - Learning Disability,LDP E Cambs Locality - Care,SDS - Care and support Services
Cambridgeshire County Council,11-Feb-16,19978361-12818430,-4652.4,Cambian Care Services Limited,Care Establishment,2 - Operations - Learning Disability,LDP E Cambs Locality - Care,SDS - Care and support Services
Cambridgeshire County Council,11-Feb-16,19978363-12818432,-4652.4,Cambian Care Services Limited,Care Establishment,2 - Operations - Learning Disability,LDP E Cambs Locality - Care,SDS - Care and support Services
Cambridgeshire County Council,11-Feb-16,19978364-12818433,-4652.4,Cambian Care Services Limited,Care Establishment,2 - Operations - Learning Disability,LDP E Cambs Locality - Care,SDS - Care and support Services
Cambridgeshire County Council,11-Feb-16,19978365-12818434,-4652.4,Cambian Care Services Limited,Care Establishment,2 - Operations - Learning Disability,LDP E Cambs Locality - Care,SDS - Care and support Services
Cambridgeshire County Council,11-Feb-16,19978368-12818437,-4652.4,Cambian Care Services Limited,Care Establishment,2 - Operations - Learning Disability,LDP E Cambs Locality - Care,SDS - Care and support Services
Cambridgeshire County Council,11-Feb-16,19978369-12818438,-4652.4,Cambian Care Services Limited,Care Establishment,2 - Operations - Learning Disability,LDP E Cambs Locality - Care,SDS - Care and support Services
Cambridgeshire County Council,11-Feb-16,19978370-12818439,-4652.4,Cambian Care Services Limited,Care Establishment,2 - Operations - Learning Disability,LDP E Cambs Locality - Care,SDS - Care and support Services
Cambridgeshire County Council,11-Feb-16,19978371-12818369,-4652.4,Cambian Care Services Limited,Care Establishment,2 - Operations - Learning Disability,LDP E Cambs Locality - Care,SDS - Care and support Services
Cambridgeshire County Council,11-Feb-16,19978372-12818370,-4652.4,Cambian Care Services Limited,Care Establishment,2 - Operations - Learning Disability,LDP E Cambs Locality - Care,SDS - Care and support Services
Cambridgeshire County Council,11-Feb-16,19978373-12818371,-4652.4,Cambian Care Services Limited,Care Establishment,2 - Operations - Learning Disability,LDP E Cambs Locality - Care,SDS - Care and support Services
Cambridgeshire County Council,11-Feb-16,19978374-12818372,-4652.4,Cambian Care Services Limited,Care Establishment,2 - Operations - Learning Disability,LDP E Cambs Locality - Care,SDS - Care and support Services
Cambridgeshire County Council,11-Feb-16,19978376-12818374,-4652.4,Cambian Care Services Limited,Care Establishment,2 - Operations - Learning Disability,LDP E Cambs Locality - Care,SDS - Care and support Services
Cambridgeshire County Council,11-Feb-16,19978379-12818377,-4652.4,Cambian Care Services Limited,Care Establishment,2 - Operations - Learning Disability,LDP E Cambs Locality - Care,SDS - Care and support Services
Cambridgeshire County Council,11-Feb-16,19978381-12818379,-4652.4,Cambian Care Services Limited,Care Establishment,2 - Operations - Learning Disability,LDP E Cambs Locality - Care,SDS - Care and support Services
Cambridgeshire County Council,11-Feb-16,19980385-12818441,-4652.4,Cambian Care Services Limited,Care Establishment,2 - Operations - Learning Disability,LDP E Cambs Locality - Care,SDS - Care and support Services
Cambridgeshire County Council,11-Feb-16,19980387-12818443,-4652.4,Cambian Care Services Limited,Care Establishment,2 - Operations - Learning Disability,LDP E Cambs Locality - Care,SDS - Care and support Services
Cambridgeshire County Council,11-Feb-16,19980392-12818448,-4652.4,Cambian Care Services Limited,Care Establishment,2 - Operations - Learning Disability,LDP E Cambs Locality - Care,SDS - Care and support Services
Cambridgeshire County Council,11-Feb-16,19980395-12818451,-4652.4,Cambian Care Services Limited,Care Establishment,2 - Operations - Learning Disability,LDP E Cambs Locality - Care,SDS - Care and support Services
Cambridgeshire County Council,11-Feb-16,19980398-12818454,-4652.4,Cambian Care Services Limited,Care Establishment,2 - Operations - Learning Disability,LDP E Cambs Locality - Care,SDS - Care and support Services
Cambridgeshire County Council,11-Feb-16,19980386-12818442,-3987.77,Cambian Care Services Limited,Care Establishment,2 - Operations - Learning Disability,LDP E Cambs Locality - Care,SDS - Care and support Services
Cambridgeshire County Council,03-Feb-16,19925463-12765460,-3686.32,Thera East Anglia,Trust (Other),2 - Operations - Learning Disability,LDP City Locality - Care,Supported Living
Cambridgeshire County Council,12-Feb-16,19968239-12832485,-2747.88,Goldstar Cabs Ltd,Trade Supplier,S&C,Home to School Transport - Special,Home to School - Cottenham VC
Cambridgeshire County Council,11-Feb-16,19903153-12820429,-2700,Peterborough Regional College,Education,S&C,H to S Transport - Post 16,Home to School - Contract
Cambridgeshire County Council,11-Feb-16,19980551-12821040,-2633.67,Affinity Trust,Care Establishment,2 - Operations - Learning Disability,LDP Fens - Special Needs,Day and Domicillary Care Independent Sector
Cambridgeshire County Council,11-Feb-16,19980552-12821041,-2633.67,Affinity Trust,Care Establishment,2 - Operations - Learning Disability,LDP Fens - Special Needs,Day and Domicillary Care Independent Sector
Cambridgeshire County Council,11-Feb-16,19980556-12821045,-2633.67,Affinity Trust,Care Establishment,2 - Operations - Learning Disability,LDP Fens - Special Needs,Day and Domicillary Care Independent Sector
Cambridgeshire County Council,11-Feb-16,19980558-12821047,-2633.67,Affinity Trust,Care Establishment,2 - Operations - Learning Disability,LDP Fens - Special Needs,Day and Domicillary Care Independent Sector
Cambridgeshire County Council,11-Feb-16,19980562-12821051,-2633.67,Affinity Trust,Care Establishment,2 - Operations - Learning Disability,LDP Fens - Special Needs,Day and Domicillary Care Independent Sector
Cambridgeshire County Council,11-Feb-16,19980568-12821057,-2633.67,Affinity Trust,Care Establishment,2 - Operations - Learning Disability,LDP Fens - Special Needs,Day and Domicillary Care Independent Sector
Cambridgeshire County Council,11-Feb-16,19980571-12821060,-2633.67,Affinity Trust,Care Establishment,2 - Operations - Learning Disability,LDP Fens - Special Needs,Day and Domicillary Care Independent Sector
Cambridgeshire County Council,11-Feb-16,19980572-12821061,-2633.67,Affinity Trust,Care Establishment,2 - Operations - Learning Disability,LDP Fens - Special Needs,Day and Domicillary Care Independent Sector
Cambridgeshire County Council,11-Feb-16,19980573-12821062,-2633.67,Affinity Trust,Care Establishment,2 - Operations - Learning Disability,LDP Fens - Special Needs,Day and Domicillary Care Independent Sector
Cambridgeshire County Council,11-Feb-16,19980574-12821063,-2633.67,Affinity Trust,Care Establishment,2 - Operations - Learning Disability,LDP Fens - Special Needs,Day and Domicillary Care Independent Sector
Cambridgeshire County Council,11-Feb-16,19980576-12821065,-2633.67,Affinity Trust,Care Establishment,2 - Operations - Learning Disability,LDP Fens - Special Needs,Day and Domicillary Care Independent Sector
Cambridgeshire County Council,11-Feb-16,19980578-12821067,-2633.67,Affinity Trust,Care Establishment,2 - Operations - Learning Disability,LDP Fens - Special Needs,Day and Domicillary Care Independent Sector
Cambridgeshire County Council,11-Feb-16,19980582-12821071,-2633.67,Affinity Trust,Care Establishment,2 - Operations - Learning Disability,LDP Fens - Special Needs,Day and Domicillary Care Independent Sector
Cambridgeshire County Council,11-Feb-16,19980588-12821077,-2633.67,Affinity Trust,Care Establishment,2 - Operations - Learning Disability,LDP Fens - Special Needs,Day and Domicillary Care Independent Sector
Cambridgeshire County Council,11-Feb-16,19980590-12821079,-2633.67,Affinity Trust,Care Establishment,2 - Operations - Learning Disability,LDP Fens - Special Needs,Day and Domicillary Care Independent Sector
Cambridgeshire County Council,11-Feb-16,19980595-12821084,-2633.67,Affinity Trust,Care Establishment,2 - Operations - Learning Disability,LDP Fens - Special Needs,Day and Domicillary Care Independent Sector
Cambridgeshire County Council,11-Feb-16,19980597-12821086,-2633.67,Affinity Trust,Care Establishment,2 - Operations - Learning Disability,LDP Fens - Special Needs,Day and Domicillary Care Independent Sector
Cambridgeshire County Council,11-Feb-16,19980598-12821087,-2633.67,Affinity Trust,Care Establishment,2 - Operations - Learning Disability,LDP Fens - Special Needs,Day and Domicillary Care Independent Sector
Cambridgeshire County Council,11-Feb-16,19980599-12821088,-2633.67,Affinity Trust,Care Establishment,2 - Operations - Learning Disability,LDP Fens - Special Needs,Day and Domicillary Care Independent Sector
Cambridgeshire County Council,11-Feb-16,19980604-12821093,-2633.67,Affinity Trust,Care Establishment,2 - Operations - Learning Disability,LDP Fens - Special Needs,Day and Domicillary Care Independent Sector
Cambridgeshire County Council,11-Feb-16,19976610-12812967,-2594.21,Caretech Community Services,Care Establishment,2 - Operations - Learning Disability,LDP Huntingdonshire Locality - Care,Supported Living
Cambridgeshire County Council,11-Feb-16,19976611-12812968,-2594.21,Caretech Community Services,Care Establishment,2 - Operations - Learning Disability,LDP Huntingdonshire Locality - Care,Supported Living
Cambridgeshire County Council,11-Feb-16,19976614-12812970,-2594.21,Caretech Community Services,Care Establishment,2 - Operations - Learning Disability,LDP Huntingdonshire Locality - Care,Supported Living
Cambridgeshire County Council,11-Feb-16,19976615-12812971,-2594.21,Caretech Community Services,Care Establishment,2 - Operations - Learning Disability,LDP Huntingdonshire Locality - Care,Supported Living
Cambridgeshire County Council,11-Feb-16,19976616-12812972,-2594.21,Caretech Community Services,Care Establishment,2 - Operations - Learning Disability,LDP Huntingdonshire Locality - Care,Supported Living
Cambridgeshire County Council,11-Feb-16,19976617-12812973,-2594.21,Caretech Community Services,Care Establishment,2 - Operations - Learning Disability,LDP Huntingdonshire Locality - Care,Supported Living
Cambridgeshire County Council,11-Feb-16,19976618-12812974,-2594.21,Caretech Community Services,Care Establishment,2 - Operations - Learning Disability,LDP Huntingdonshire Locality - Care,Supported Living
Cambridgeshire County Council,11-Feb-16,19976619-12812975,-2594.21,Caretech Community Services,Care Establishment,2 - Operations - Learning Disability,LDP Huntingdonshire Locality - Care,Supported Living
Cambridgeshire County Council,11-Feb-16,19976620-12812976,-2594.21,Caretech Community Services,Care Establishment,2 - Operations - Learning Disability,LDP Huntingdonshire Locality - Care,Supported Living
Cambridgeshire County Council,11-Feb-16,19976623-12812977,-2594.21,Caretech Community Services,Care Establishment,2 - Operations - Learning Disability,LDP Huntingdonshire Locality - Care,Supported Living
Cambridgeshire County Council,11-Feb-16,19976624-12812978,-2594.21,Caretech Community Services,Care Establishment,2 - Operations - Learning Disability,LDP Huntingdonshire Locality - Care,Supported Living
Cambridgeshire County Council,11-Feb-16,19976630-12812979,-2594.21,Caretech Community Services,Care Establishment,2 - Operations - Learning Disability,LDP Huntingdonshire Locality - Care,Supported Living
Cambridgeshire County Council,11-Feb-16,19976631-12812980,-2594.21,Caretech Community Services,Care Establishment,2 - Operations - Learning Disability,LDP Huntingdonshire Locality - Care,Supported Living
Cambridgeshire County Council,04-Feb-16,19869508-12776613,-2400,Peterborough Regional College,Education,S&C,H to S Transport - PRC,Home to School - Contract
Cambridgeshire County Council,19-Feb-16,20030259-12858575,-2373.09,Haddon House,Care Establishment,2 - Operations - Learning Disability,LDP Huntingdonshire Locality - Care,Residential Independent Sector
Cambridgeshire County Council,19-Feb-16,20030267-12858583,-2373.09,Haddon House,Care Establishment,2 - Operations - Learning Disability,LDP Huntingdonshire Locality - Care,Residential Independent Sector
Cambridgeshire County Council,19-Feb-16,20030268-12858584,-2373.09,Haddon House,Care Establishment,2 - Operations - Learning Disability,LDP Huntingdonshire Locality - Care,Residential Independent Sector
Cambridgeshire County Council,19-Feb-16,20030270-12858586,-2373.09,Haddon House,Care Establishment,2 - Operations - Learning Disability,LDP Huntingdonshire Locality - Care,Residential Independent Sector
Cambridgeshire County Council,19-Feb-16,20030272-12858588,-2373.09,Haddon House,Care Establishment,2 - Operations - Learning Disability,LDP Huntingdonshire Locality - Care,Residential Independent Sector
Cambridgeshire County Council,19-Feb-16,20030273-12858589,-2373.09,Haddon House,Care Establishment,2 - Operations - Learning Disability,LDP Huntingdonshire Locality - Care,Residential Independent Sector
Cambridgeshire County Council,19-Feb-16,20030276-12858592,-2373.09,Haddon House,Care Establishment,2 - Operations - Learning Disability,LDP Huntingdonshire Locality - Care,Residential Independent Sector
Cambridgeshire County Council,19-Feb-16,20030277-12858593,-2373.09,Haddon House,Care Establishment,2 - Operations - Learning Disability,LDP Huntingdonshire Locality - Care,Residential Independent Sector
Cambridgeshire County Council,19-Feb-16,20030278-12858594,-2373.09,Haddon House,Care Establishment,2 - Operations - Learning Disability,LDP Huntingdonshire Locality - Care,Residential Independent Sector
Cambridgeshire County Council,01-Feb-16,19898817-12756600,-2359.2,Hertfordshire County Council,Other Public Bodies,CSC,Fostering,Advertising / Publicity
Cambridgeshire County Council,11-Feb-16,19980587-12821076,-2257.43,Affinity Trust,Care Establishment,2 - Operations - Learning Disability,LDP Fens - Special Needs,Day and Domicillary Care Independent Sector
Cambridgeshire County Council,25-Feb-16,20053189-12878473,-2223.48,Heron House Care Home,Care Establishment,Control Accounts,Uncleared bank items,Bank Overdraft Expenditure / Payments
Cambridgeshire County Council,25-Feb-16,20053191-12878474,-2223.48,Heron House Care Home,Care Establishment,Control Accounts,Uncleared bank items,Bank Overdraft Expenditure / Payments
Cambridgeshire County Council,25-Feb-16,20053195-12878475,-2223.48,Heron House Care Home,Care Establishment,Control Accounts,Uncleared bank items,Bank Overdraft Expenditure / Payments
Cambridgeshire County Council,25-Feb-16,20053198-12878476,-2223.48,Heron House Care Home,Care Establishment,Control Accounts,Uncleared bank items,Bank Overdraft Expenditure / Payments
Cambridgeshire County Council,25-Feb-16,20053178-12878469,-2196,Heron House Care Home,Care Establishment,Control Accounts,Uncleared bank items,Bank Overdraft Expenditure / Payments
Cambridgeshire County Council,25-Feb-16,20053181-12878470,-2196,Heron House Care Home,Care Establishment,Control Accounts,Uncleared bank items,Bank Overdraft Expenditure / Payments
Cambridgeshire County Council,25-Feb-16,20053184-12878471,-2196,Heron House Care Home,Care Establishment,Control Accounts,Uncleared bank items,Bank Overdraft Expenditure / Payments
Cambridgeshire County Council,25-Feb-16,20052472-12874729,-2121.6,Fresh Start For Kids,Care Establishment,S&C,Out of School Provision - Education and Settings,Agency Placements - In Cambs
Cambridgeshire County Council,04-Feb-16,19945106-12778961,-1848.89,Mayfield Heath Farm,Care Establishment,2 - Operations - Learning Disability,LDP Huntingdonshire Locality - Care,Supported Living
Cambridgeshire County Council,24-Feb-16,19974364-12870643,-1771.66,Acorn Park School,Education,S&C,Placements - Education,Independent School Placements
Cambridgeshire County Council,08-Feb-16,19878297-12797432,-1767.85,Nhs Cambs & Pboro Ccg,Care Establishment,3 - Operations - Countywide Services,Countywide PD Service - Care,Residential Independent Sector
Cambridgeshire County Council,19-Feb-16,20030275-12858591,-1695.06,Haddon House,Care Establishment,2 - Operations - Learning Disability,LDP Huntingdonshire Locality - Care,Residential Independent Sector
Cambridgeshire County Council,11-Feb-16,19983629-12814226,-1636.89,Congregation Of The Daughters Of The Cross Of Liege (St Elizabeths Centre),Charity,2 - Operations - Learning Disability,LDP Huntingdonshire Locality - Care,Daycare
Cambridgeshire County Council,11-Feb-16,19983632-12814228,-1636.89,Congregation Of The Daughters Of The Cross Of Liege (St Elizabeths Centre),Charity,2 - Operations - Learning Disability,LDP Huntingdonshire Locality - Care,Daycare
Cambridgeshire County Council,11-Feb-16,19983637-12814230,-1636.89,Congregation Of The Daughters Of The Cross Of Liege (St Elizabeths Centre),Charity,2 - Operations - Learning Disability,LDP Huntingdonshire Locality - Care,Daycare
Cambridgeshire County Council,11-Feb-16,19983638-12814231,-1636.89,Congregation Of The Daughters Of The Cross Of Liege (St Elizabeths Centre),Charity,2 - Operations - Learning Disability,LDP Huntingdonshire Locality - Care,Daycare
Cambridgeshire County Council,11-Feb-16,19983644-12814233,-1636.89,Congregation Of The Daughters Of The Cross Of Liege (St Elizabeths Centre),Charity,2 - Operations - Learning Disability,LDP Huntingdonshire Locality - Care,Daycare
Cambridgeshire County Council,11-Feb-16,19983645-12814234,-1636.89,Congregation Of The Daughters Of The Cross Of Liege (St Elizabeths Centre),Charity,2 - Operations - Learning Disability,LDP Huntingdonshire Locality - Care,Daycare
Cambridgeshire County Council,11-Feb-16,19983646-12814235,-1636.89,Congregation Of The Daughters Of The Cross Of Liege (St Elizabeths Centre),Charity,2 - Operations - Learning Disability,LDP Huntingdonshire Locality - Care,Daycare
Cambridgeshire County Council,11-Feb-16,19983647-12814236,-1636.89,Congregation Of The Daughters Of The Cross Of Liege (St Elizabeths Centre),Charity,2 - Operations - Learning Disability,LDP Huntingdonshire Locality - Care,Daycare
Cambridgeshire County Council,11-Feb-16,19983652-12814238,-1636.89,Congregation Of The Daughters Of The Cross Of Liege (St Elizabeths Centre),Charity,2 - Operations - Learning Disability,LDP Huntingdonshire Locality - Care,Daycare
Cambridgeshire County Council,11-Feb-16,19983655-12814239,-1636.89,Congregation Of The Daughters Of The Cross Of Liege (St Elizabeths Centre),Charity,2 - Operations - Learning Disability,LDP Huntingdonshire Locality - Care,Daycare
Cambridgeshire County Council,11-Feb-16,19983665-12814241,-1636.89,Congregation Of The Daughters Of The Cross Of Liege (St Elizabeths Centre),Charity,2 - Operations - Learning Disability,LDP Huntingdonshire Locality - Care,Daycare
Cambridgeshire County Council,11-Feb-16,19983667-12814243,-1636.89,Congregation Of The Daughters Of The Cross Of Liege (St Elizabeths Centre),Charity,2 - Operations - Learning Disability,LDP Huntingdonshire Locality - Care,Daycare
Cambridgeshire County Council,11-Feb-16,19984487-12814198,-1636.89,Congregation Of The Daughters Of The Cross Of Liege (St Elizabeths Centre),Charity,2 - Operations - Learning Disability,LDP Huntingdonshire Locality - Care,Daycare
Cambridgeshire County Council,11-Feb-16,19984488-12814199,-1636.89,Congregation Of The Daughters Of The Cross Of Liege (St Elizabeths Centre),Charity,2 - Operations - Learning Disability,LDP Huntingdonshire Locality - Care,Daycare
Cambridgeshire County Council,11-Feb-16,19984494-12814202,-1636.89,Congregation Of The Daughters Of The Cross Of Liege (St Elizabeths Centre),Charity,2 - Operations - Learning Disability,LDP Huntingdonshire Locality - Care,Daycare
Cambridgeshire County Council,11-Feb-16,19984497-12814205,-1636.89,Congregation Of The Daughters Of The Cross Of Liege (St Elizabeths Centre),Charity,2 - Operations - Learning Disability,LDP Huntingdonshire Locality - Care,Daycare
Cambridgeshire County Council,11-Feb-16,19984499-12814206,-1636.89,Congregation Of The Daughters Of The Cross Of Liege (St Elizabeths Centre),Charity,2 - Operations - Learning Disability,LDP Huntingdonshire Locality - Care,Daycare
Cambridgeshire County Council,11-Feb-16,19984507-12814208,-1636.89,Congregation Of The Daughters Of The Cross Of Liege (St Elizabeths Centre),Charity,2 - Operations - Learning Disability,LDP Huntingdonshire Locality - Care,Daycare
Cambridgeshire County Council,11-Feb-16,19984508-12814209,-1636.89,Congregation Of The Daughters Of The Cross Of Liege (St Elizabeths Centre),Charity,2 - Operations - Learning Disability,LDP Huntingdonshire Locality - Care,Daycare
Cambridgeshire County Council,11-Feb-16,19984519-12814217,-1636.89,Congregation Of The Daughters Of The Cross Of Liege (St Elizabeths Centre),Charity,2 - Operations - Learning Disability,LDP Huntingdonshire Locality - Care,Daycare
Cambridgeshire County Council,11-Feb-16,19984525-12814219,-1636.89,Congregation Of The Daughters Of The Cross Of Liege (St Elizabeths Centre),Charity,2 - Operations - Learning Disability,LDP Huntingdonshire Locality - Care,Daycare
Cambridgeshire County Council,11-Feb-16,19984532-12814220,-1636.89,Congregation Of The Daughters Of The Cross Of Liege (St Elizabeths Centre),Charity,2 - Operations - Learning Disability,LDP Huntingdonshire Locality - Care,Daycare
Cambridgeshire County Council,11-Feb-16,19984535-12814222,-1636.89,Congregation Of The Daughters Of The Cross Of Liege (St Elizabeths Centre),Charity,2 - Operations - Learning Disability,LDP Huntingdonshire Locality - Care,Daycare
Cambridgeshire County Council,11-Feb-16,19984537-12814224,-1636.89,Congregation Of The Daughters Of The Cross Of Liege (St Elizabeths Centre),Charity,2 - Operations - Learning Disability,LDP Huntingdonshire Locality - Care,Daycare
Cambridgeshire County Council,04-Feb-16,19948818-12783444,-1619.02,Caretech Community Services,Care Establishment,2 - Operations - Learning Disability,LDP South Cambs Locality - Care,Residential Independent Sector
Cambridgeshire County Council,04-Feb-16,19948820-12783446,-1619.02,Caretech Community Services,Care Establishment,2 - Operations - Learning Disability,LDP South Cambs Locality - Care,Residential Independent Sector
Cambridgeshire County Council,04-Feb-16,19948822-12783448,-1619.02,Caretech Community Services,Care Establishment,2 - Operations - Learning Disability,LDP South Cambs Locality - Care,Residential Independent Sector
Cambridgeshire County Council,04-Feb-16,19948824-12783450,-1619.02,Caretech Community Services,Care Establishment,2 - Operations - Learning Disability,LDP South Cambs Locality - Care,Residential Independent Sector
Cambridgeshire County Council,04-Feb-16,19948825-12783451,-1619.02,Caretech Community Services,Care Establishment,2 - Operations - Learning Disability,LDP South Cambs Locality - Care,Residential Independent Sector
Cambridgeshire County Council,04-Feb-16,19948826-12783452,-1619.02,Caretech Community Services,Care Establishment,2 - Operations - Learning Disability,LDP South Cambs Locality - Care,Residential Independent Sector
Cambridgeshire County Council,04-Feb-16,19948829-12783455,-1619.02,Caretech Community Services,Care Establishment,2 - Operations - Learning Disability,LDP South Cambs Locality - Care,Residential Independent Sector
Cambridgeshire County Council,04-Feb-16,19948830-12783434,-1619.02,Caretech Community Services,Care Establishment,2 - Operations - Learning Disability,LDP South Cambs Locality - Care,Residential Independent Sector
Cambridgeshire County Council,04-Feb-16,19948831-12783435,-1619.02,Caretech Community Services,Care Establishment,2 - Operations - Learning Disability,LDP South Cambs Locality - Care,Residential Independent Sector
Cambridgeshire County Council,04-Feb-16,19948833-12783437,-1619.02,Caretech Community Services,Care Establishment,2 - Operations - Learning Disability,LDP South Cambs Locality - Care,Residential Independent Sector
Cambridgeshire County Council,04-Feb-16,19949718-12783428,-1619.02,Caretech Community Services,Care Establishment,2 - Operations - Learning Disability,LDP South Cambs Locality - Care,Residential Independent Sector
Cambridgeshire County Council,04-Feb-16,19949719-12783429,-1619.02,Caretech Community Services,Care Establishment,2 - Operations - Learning Disability,LDP South Cambs Locality - Care,Residential Independent Sector
Cambridgeshire County Council,08-Feb-16,19822542-12797801,-1600,Huntingdonshire Regional College,Education,LRNG,Qualifications,Other Hired Contract Services
Cambridgeshire County Council,15-Feb-16,19927464-12835544,-1440,Faithful And Gould,Trade Supplier,Schools,Little Paxton Primary School; St Neots ;(2293),Capital WIP - land and buildings  -  Architects Fees
Cambridgeshire County Council,04-Feb-16,19884204-12785479,-1428.7,Kisimul School,Care Establishment,2 - Operations - Learning Disability,LDP Huntingdonshire Locality - Care,Residential Independent Sector
Cambridgeshire County Council,04-Feb-16,19884217-12785480,-1428.7,Kisimul School,Care Establishment,2 - Operations - Learning Disability,LDP Huntingdonshire Locality - Care,Residential Independent Sector
Cambridgeshire County Council,04-Feb-16,19884239-12785481,-1428.7,Kisimul School,Care Establishment,2 - Operations - Learning Disability,LDP Huntingdonshire Locality - Care,Residential Independent Sector
Cambridgeshire County Council,17-Feb-16,19921396-12843559,-1397.94,Rheola Healthcare,Care Establishment,4 - Commissioning - Mental Health & Supporting People,Dom Blocks,Respite Independent Sector
Cambridgeshire County Council,04-Feb-16,19909867-12783767,-1330.11,Caretech Community Services,Care Establishment,2 - Operations - Learning Disability,LDP Huntingdonshire Locality - Care,Residential Independent Sector
Cambridgeshire County Council,04-Feb-16,19909869-12783769,-1330.11,Caretech Community Services,Care Establishment,2 - Operations - Learning Disability,LDP Huntingdonshire Locality - Care,Residential Independent Sector
Cambridgeshire County Council,04-Feb-16,19909871-12783771,-1330.11,Caretech Community Services,Care Establishment,2 - Operations - Learning Disability,LDP Huntingdonshire Locality - Care,Residential Independent Sector
Cambridgeshire County Council,04-Feb-16,19909873-12783773,-1330.11,Caretech Community Services,Care Establishment,2 - Operations - Learning Disability,LDP Huntingdonshire Locality - Care,Residential Independent Sector
Cambridgeshire County Council,04-Feb-16,19909875-12783775,-1330.11,Caretech Community Services,Care Establishment,2 - Operations - Learning Disability,LDP Huntingdonshire Locality - Care,Residential Independent Sector
Cambridgeshire County Council,04-Feb-16,19909879-12783779,-1330.11,Caretech Community Services,Care Establishment,2 - Operations - Learning Disability,LDP Huntingdonshire Locality - Care,Residential Independent Sector
Cambridgeshire County Council,04-Feb-16,19909881-12783781,-1330.11,Caretech Community Services,Care Establishment,2 - Operations - Learning Disability,LDP Huntingdonshire Locality - Care,Residential Independent Sector
Cambridgeshire County Council,04-Feb-16,19909882-12783782,-1330.11,Caretech Community Services,Care Establishment,2 - Operations - Learning Disability,LDP Huntingdonshire Locality - Care,Residential Independent Sector
Cambridgeshire County Council,04-Feb-16,19909883-12783783,-1330.11,Caretech Community Services,Care Establishment,2 - Operations - Learning Disability,LDP Huntingdonshire Locality - Care,Residential Independent Sector
Cambridgeshire County Council,04-Feb-16,19909885-12783785,-1330.11,Caretech Community Services,Care Establishment,2 - Operations - Learning Disability,LDP Huntingdonshire Locality - Care,Residential Independent Sector
Cambridgeshire County Council,04-Feb-16,19909887-12783787,-1330.11,Caretech Community Services,Care Establishment,2 - Operations - Learning Disability,LDP Huntingdonshire Locality - Care,Residential Independent Sector
Cambridgeshire County Council,04-Feb-16,19909890-12783790,-1330.11,Caretech Community Services,Care Establishment,2 - Operations - Learning Disability,LDP Huntingdonshire Locality - Care,Residential Independent Sector
Cambridgeshire County Council,08-Feb-16,19770711-12797718,-1312.5,Action For Children Services Ltd,Care Establishment,CSC,AFC - Short Break,Joint / Partnership Funding
Cambridgeshire County Council,02-Feb-16,19925438-12762624,-1260,Anglia Ruskin University,Education,CSC,Sexual Behaviour Service,Course Fees
Cambridgeshire County Council,04-Feb-16,19909872-12783772,-1140.09,Caretech Community Services,Care Establishment,2 - Operations - Learning Disability,LDP Huntingdonshire Locality - Care,Residential Independent Sector
Cambridgeshire County Council,11-Feb-16,19977104-12817526,-1109.57,Clearwater Care,Trade Supplier,2 - Operations - Learning Disability,LDP Huntingdonshire Locality - Care,Supported Living
Cambridgeshire County Council,11-Feb-16,19977542-12818907,-1039.46,Redacted Personal Data,Individual,3 - Operations - Countywide Services,Countywide PD Service - Care,SDS - Care and support Services
Cambridgeshire County Council,11-Feb-16,19977545-12818908,-1039.46,Redacted Personal Data,Individual,3 - Operations - Countywide Services,Countywide PD Service - Care,SDS - Care and support Services
Cambridgeshire County Council,08-Feb-16,19957894-12799424,-1035.83,Adlams Solicitors Llp,Trade Supplier,CSC,CSC Children In Need Unit 11,Other Hired Contract Services
Cambridgeshire County Council,03-Feb-16,19758362-12765620,-1017.82,Fostering Solutions Ltd,Care Establishment,S&C,Placements - Social Care,Agency Placements - Out County
Cambridgeshire County Council,11-Feb-16,19907920-12814794,-995,Barchester Healthcare Homes Ltd,Care Establishment,2 - Commissioning - Older people Pool,Older People Mental Health City & South,Nursing Independent Sector
Cambridgeshire County Council,11-Feb-16,19907922-12814795,-995,Barchester Healthcare Homes Ltd,Care Establishment,2 - Commissioning - Older people Pool,Older People Mental Health City & South,Nursing Independent Sector
Cambridgeshire County Council,11-Feb-16,19907923-12814796,-995,Barchester Healthcare Homes Ltd,Care Establishment,2 - Commissioning - Older people Pool,Older People Mental Health City & South,Nursing Independent Sector
Cambridgeshire County Council,11-Feb-16,19907924-12814797,-995,Barchester Healthcare Homes Ltd,Care Establishment,2 - Commissioning - Older people Pool,Older People Mental Health City & South,Nursing Independent Sector
Cambridgeshire County Council,11-Feb-16,19907925-12814798,-995,Barchester Healthcare Homes Ltd,Care Establishment,2 - Commissioning - Older people Pool,Older People Mental Health City & South,Nursing Independent Sector
Cambridgeshire County Council,11-Feb-16,19907926-12814736,-995,Barchester Healthcare Homes Ltd,Care Establishment,2 - Commissioning - Older people Pool,Older People Mental Health City & South,Nursing Independent Sector
Cambridgeshire County Council,11-Feb-16,19907927-12814737,-995,Barchester Healthcare Homes Ltd,Care Establishment,2 - Commissioning - Older people Pool,Older People Mental Health City & South,Nursing Independent Sector
Cambridgeshire County Council,11-Feb-16,19907928-12814738,-995,Barchester Healthcare Homes Ltd,Care Establishment,2 - Commissioning - Older people Pool,Older People Mental Health City & South,Nursing Independent Sector
Cambridgeshire County Council,11-Feb-16,19907929-12814739,-995,Barchester Healthcare Homes Ltd,Care Establishment,2 - Commissioning - Older people Pool,Older People Mental Health City & South,Nursing Independent Sector
Cambridgeshire County Council,11-Feb-16,19907931-12814740,-995,Barchester Healthcare Homes Ltd,Care Establishment,2 - Commissioning - Older people Pool,Older People Mental Health City & South,Nursing Independent Sector
Cambridgeshire County Council,11-Feb-16,19907933-12814741,-995,Barchester Healthcare Homes Ltd,Care Establishment,2 - Commissioning - Older people Pool,Older People Mental Health City & South,Nursing Independent Sector
Cambridgeshire County Council,11-Feb-16,19907934-12814742,-995,Barchester Healthcare Homes Ltd,Care Establishment,2 - Commissioning - Older people Pool,Older People Mental Health City & South,Nursing Independent Sector
Cambridgeshire County Council,11-Feb-16,19907935-12814743,-995,Barchester Healthcare Homes Ltd,Care Establishment,2 - Commissioning - Older people Pool,Older People Mental Health City & South,Nursing Independent Sector
Cambridgeshire County Council,11-Feb-16,19907936-12814744,-995,Barchester Healthcare Homes Ltd,Care Establishment,2 - Commissioning - Older people Pool,Older People Mental Health City & South,Nursing Independent Sector
Cambridgeshire County Council,11-Feb-16,19907937-12814745,-995,Barchester Healthcare Homes Ltd,Care Establishment,2 - Commissioning - Older people Pool,Older People Mental Health City & South,Nursing Independent Sector
Cambridgeshire County Council,11-Feb-16,19907938-12814746,-995,Barchester Healthcare Homes Ltd,Care Establishment,2 - Commissioning - Older people Pool,Older People Mental Health City & South,Nursing Independent Sector
Cambridgeshire County Council,11-Feb-16,19907939-12814747,-995,Barchester Healthcare Homes Ltd,Care Establishment,2 - Commissioning - Older people Pool,Older People Mental Health City & South,Nursing Independent Sector
Cambridgeshire County Council,11-Feb-16,19907940-12814748,-995,Barchester Healthcare Homes Ltd,Care Establishment,2 - Commissioning - Older people Pool,Older People Mental Health City & South,Nursing Independent Sector
Cambridgeshire County Council,11-Feb-16,19907942-12814749,-995,Barchester Healthcare Homes Ltd,Care Establishment,2 - Commissioning - Older people Pool,Older People Mental Health City & South,Nursing Independent Sector
Cambridgeshire County Council,11-Feb-16,19907943-12814750,-995,Barchester Healthcare Homes Ltd,Care Establishment,2 - Commissioning - Older people Pool,Older People Mental Health City & South,Nursing Independent Sector
Cambridgeshire County Council,11-Feb-16,19907944-12814751,-995,Barchester Healthcare Homes Ltd,Care Establishment,2 - Commissioning - Older people Pool,Older People Mental Health City & South,Nursing Independent Sector
Cambridgeshire County Council,11-Feb-16,19907947-12814753,-995,Barchester Healthcare Homes Ltd,Care Establishment,2 - Commissioning - Older people Pool,Older People Mental Health City & South,Nursing Independent Sector
Cambridgeshire County Council,11-Feb-16,19907948-12814761,-995,Barchester Healthcare Homes Ltd,Care Establishment,2 - Commissioning - Older people Pool,Older People Mental Health City & South,Nursing Independent Sector
Cambridgeshire County Council,11-Feb-16,19907850-12820086,-926.11,Making Space#1,Care Establishment,3 - Operations - Countywide Services,Countywide PD Service - Care,Nursing Independent Sector
Cambridgeshire County Council,11-Feb-16,19907855-12820091,-926.11,Making Space#1,Care Establishment,3 - Operations - Countywide Services,Countywide PD Service - Care,Nursing Independent Sector
Cambridgeshire County Council,11-Feb-16,19907856-12820092,-926.11,Making Space#1,Care Establishment,3 - Operations - Countywide Services,Countywide PD Service - Care,Nursing Independent Sector
Cambridgeshire County Council,11-Feb-16,19907859-12820095,-926.11,Making Space#1,Care Establishment,3 - Operations - Countywide Services,Countywide PD Service - Care,Nursing Independent Sector
Cambridgeshire County Council,11-Feb-16,19907864-12820100,-926.11,Making Space#1,Care Establishment,3 - Operations - Countywide Services,Countywide PD Service - Care,Nursing Independent Sector
Cambridgeshire County Council,11-Feb-16,19907865-12820101,-926.11,Making Space#1,Care Establishment,3 - Operations - Countywide Services,Countywide PD Service - Care,Nursing Independent Sector
Cambridgeshire County Council,11-Feb-16,19907866-12820102,-926.11,Making Space#1,Care Establishment,3 - Operations - Countywide Services,Countywide PD Service - Care,Nursing Independent Sector
Cambridgeshire County Council,11-Feb-16,19910734-12819997,-926.11,Making Space#1,Care Establishment,3 - Operations - Countywide Services,Countywide PD Service - Care,Nursing Independent Sector
Cambridgeshire County Council,11-Feb-16,19910735-12819998,-926.11,Making Space#1,Care Establishment,3 - Operations - Countywide Services,Countywide PD Service - Care,Nursing Independent Sector
Cambridgeshire County Council,11-Feb-16,19910736-12819999,-926.11,Making Space#1,Care Establishment,3 - Operations - Countywide Services,Countywide PD Service - Care,Nursing Independent Sector
Cambridgeshire County Council,11-Feb-16,19910739-12820002,-926.11,Making Space#1,Care Establishment,3 - Operations - Countywide Services,Countywide PD Service - Care,Nursing Independent Sector
Cambridgeshire County Council,11-Feb-16,19910741-12820004,-926.11,Making Space#1,Care Establishment,3 - Operations - Countywide Services,Countywide PD Service - Care,Nursing Independent Sector
Cambridgeshire County Council,11-Feb-16,19910743-12820006,-926.11,Making Space#1,Care Establishment,3 - Operations - Countywide Services,Countywide PD Service - Care,Nursing Independent Sector
Cambridgeshire County Council,11-Feb-16,19910750-12820013,-926.11,Making Space#1,Care Establishment,3 - Operations - Countywide Services,Countywide PD Service - Care,Nursing Independent Sector
Cambridgeshire County Council,11-Feb-16,19910753-12820016,-926.11,Making Space#1,Care Establishment,3 - Operations - Countywide Services,Countywide PD Service - Care,Nursing Independent Sector
Cambridgeshire County Council,11-Feb-16,19910754-12820017,-926.11,Making Space#1,Care Establishment,3 - Operations - Countywide Services,Countywide PD Service - Care,Nursing Independent Sector
Cambridgeshire County Council,11-Feb-16,19910755-12820018,-926.11,Making Space#1,Care Establishment,3 - Operations - Countywide Services,Countywide PD Service - Care,Nursing Independent Sector
Cambridgeshire County Council,11-Feb-16,19910756-12820019,-926.11,Making Space#1,Care Establishment,3 - Operations - Countywide Services,Countywide PD Service - Care,Nursing Independent Sector
Cambridgeshire County Council,11-Feb-16,19910757-12820020,-926.11,Making Space#1,Care Establishment,3 - Operations - Countywide Services,Countywide PD Service - Care,Nursing Independent Sector
Cambridgeshire County Council,11-Feb-16,19910758-12820021,-926.11,Making Space#1,Care Establishment,3 - Operations - Countywide Services,Countywide PD Service - Care,Nursing Independent Sector
Cambridgeshire County Council,11-Feb-16,19910759-12820022,-926.11,Making Space#1,Care Establishment,3 - Operations - Countywide Services,Countywide PD Service - Care,Nursing Independent Sector
Cambridgeshire County Council,11-Feb-16,19910762-12820025,-926.11,Making Space#1,Care Establishment,3 - Operations - Countywide Services,Countywide PD Service - Care,Nursing Independent Sector
Cambridgeshire County Council,11-Feb-16,19910765-12820028,-926.11,Making Space#1,Care Establishment,3 - Operations - Countywide Services,Countywide PD Service - Care,Nursing Independent Sector
Cambridgeshire County Council,11-Feb-16,19910766-12820029,-926.11,Making Space#1,Care Establishment,3 - Operations - Countywide Services,Countywide PD Service - Care,Nursing Independent Sector
Cambridgeshire County Council,11-Feb-16,19910767-12820030,-926.11,Making Space#1,Care Establishment,3 - Operations - Countywide Services,Countywide PD Service - Care,Nursing Independent Sector
Cambridgeshire County Council,11-Feb-16,19910768-12820031,-926.11,Making Space#1,Care Establishment,3 - Operations - Countywide Services,Countywide PD Service - Care,Nursing Independent Sector
Cambridgeshire County Council,11-Feb-16,19910769-12820032,-926.11,Making Space#1,Care Establishment,3 - Operations - Countywide Services,Countywide PD Service - Care,Nursing Independent Sector
Cambridgeshire County Council,11-Feb-16,19910771-12820034,-926.11,Making Space#1,Care Establishment,3 - Operations - Countywide Services,Countywide PD Service - Care,Nursing Independent Sector
Cambridgeshire County Council,11-Feb-16,19910772-12820035,-926.11,Making Space#1,Care Establishment,3 - Operations - Countywide Services,Countywide PD Service - Care,Nursing Independent Sector
Cambridgeshire County Council,11-Feb-16,19910773-12820036,-926.11,Making Space#1,Care Establishment,3 - Operations - Countywide Services,Countywide PD Service - Care,Nursing Independent Sector
Cambridgeshire County Council,11-Feb-16,19910775-12820038,-926.11,Making Space#1,Care Establishment,3 - Operations - Countywide Services,Countywide PD Service - Care,Nursing Independent Sector
Cambridgeshire County Council,11-Feb-16,19910776-12820039,-926.11,Making Space#1,Care Establishment,3 - Operations - Countywide Services,Countywide PD Service - Care,Nursing Independent Sector
Cambridgeshire County Council,11-Feb-16,19934749-12820040,-926.11,Making Space#1,Care Establishment,3 - Operations - Countywide Services,Countywide PD Service - Care,Nursing Independent Sector
Cambridgeshire County Council,11-Feb-16,19934751-12820042,-926.11,Making Space#1,Care Establishment,3 - Operations - Countywide Services,Countywide PD Service - Care,Nursing Independent Sector
Cambridgeshire County Council,11-Feb-16,19934752-12820043,-926.11,Making Space#1,Care Establishment,3 - Operations - Countywide Services,Countywide PD Service - Care,Nursing Independent Sector
Cambridgeshire County Council,11-Feb-16,19934756-12820047,-926.11,Making Space#1,Care Establishment,3 - Operations - Countywide Services,Countywide PD Service - Care,Nursing Independent Sector
Cambridgeshire County Council,11-Feb-16,19934757-12820048,-926.11,Making Space#1,Care Establishment,3 - Operations - Countywide Services,Countywide PD Service - Care,Nursing Independent Sector
Cambridgeshire County Council,11-Feb-16,19934758-12820049,-926.11,Making Space#1,Care Establishment,3 - Operations - Countywide Services,Countywide PD Service - Care,Nursing Independent Sector
Cambridgeshire County Council,11-Feb-16,19934759-12820050,-926.11,Making Space#1,Care Establishment,3 - Operations - Countywide Services,Countywide PD Service - Care,Nursing Independent Sector
Cambridgeshire County Council,11-Feb-16,19934762-12820053,-926.11,Making Space#1,Care Establishment,3 - Operations - Countywide Services,Countywide PD Service - Care,Nursing Independent Sector
Cambridgeshire County Council,11-Feb-16,19934763-12820054,-926.11,Making Space#1,Care Establishment,3 - Operations - Countywide Services,Countywide PD Service - Care,Nursing Independent Sector
Cambridgeshire County Council,11-Feb-16,19934764-12820055,-926.11,Making Space#1,Care Establishment,3 - Operations - Countywide Services,Countywide PD Service - Care,Nursing Independent Sector
Cambridgeshire County Council,11-Feb-16,19934766-12820057,-926.11,Making Space#1,Care Establishment,3 - Operations - Countywide Services,Countywide PD Service - Care,Nursing Independent Sector
Cambridgeshire County Council,11-Feb-16,19934768-12820059,-926.11,Making Space#1,Care Establishment,3 - Operations - Countywide Services,Countywide PD Service - Care,Nursing Independent Sector
Cambridgeshire County Council,11-Feb-16,19934770-12820061,-926.11,Making Space#1,Care Establishment,3 - Operations - Countywide Services,Countywide PD Service - Care,Nursing Independent Sector
Cambridgeshire County Council,11-Feb-16,19934771-12820062,-926.11,Making Space#1,Care Establishment,3 - Operations - Countywide Services,Countywide PD Service - Care,Nursing Independent Sector
Cambridgeshire County Council,11-Feb-16,19934772-12820063,-926.11,Making Space#1,Care Establishment,3 - Operations - Countywide Services,Countywide PD Service - Care,Nursing Independent Sector
Cambridgeshire County Council,11-Feb-16,19934773-12820064,-926.11,Making Space#1,Care Establishment,3 - Operations - Countywide Services,Countywide PD Service - Care,Nursing Independent Sector
Cambridgeshire County Council,11-Feb-16,19934774-12820065,-926.11,Making Space#1,Care Establishment,3 - Operations - Countywide Services,Countywide PD Service - Care,Nursing Independent Sector
Cambridgeshire County Council,11-Feb-16,19934775-12820066,-926.11,Making Space#1,Care Establishment,3 - Operations - Countywide Services,Countywide PD Service - Care,Nursing Independent Sector
Cambridgeshire County Council,11-Feb-16,19934777-12820068,-926.11,Making Space#1,Care Establishment,3 - Operations - Countywide Services,Countywide PD Service - Care,Nursing Independent Sector
Cambridgeshire County Council,11-Feb-16,19934779-12820070,-926.11,Making Space#1,Care Establishment,3 - Operations - Countywide Services,Countywide PD Service - Care,Nursing Independent Sector
Cambridgeshire County Council,11-Feb-16,19934781-12820072,-926.11,Making Space#1,Care Establishment,3 - Operations - Countywide Services,Countywide PD Service - Care,Nursing Independent Sector
Cambridgeshire County Council,11-Feb-16,19934784-12820075,-926.11,Making Space#1,Care Establishment,3 - Operations - Countywide Services,Countywide PD Service - Care,Nursing Independent Sector
Cambridgeshire County Council,11-Feb-16,19934788-12820079,-926.11,Making Space#1,Care Establishment,3 - Operations - Countywide Services,Countywide PD Service - Care,Nursing Independent Sector
Cambridgeshire County Council,11-Feb-16,19934789-12820080,-926.11,Making Space#1,Care Establishment,3 - Operations - Countywide Services,Countywide PD Service - Care,Nursing Independent Sector
Cambridgeshire County Council,11-Feb-16,19934791-12819976,-926.11,Making Space#1,Care Establishment,3 - Operations - Countywide Services,Countywide PD Service - Care,Nursing Independent Sector
Cambridgeshire County Council,11-Feb-16,19934793-12819978,-926.11,Making Space#1,Care Establishment,3 - Operations - Countywide Services,Countywide PD Service - Care,Nursing Independent Sector
Cambridgeshire County Council,11-Feb-16,19934801-12819986,-926.11,Making Space#1,Care Establishment,3 - Operations - Countywide Services,Countywide PD Service - Care,Nursing Independent Sector
Cambridgeshire County Council,11-Feb-16,19934803-12819988,-926.11,Making Space#1,Care Establishment,3 - Operations - Countywide Services,Countywide PD Service - Care,Nursing Independent Sector
Cambridgeshire County Council,11-Feb-16,19939216-12819989,-926.11,Making Space#1,Care Establishment,3 - Operations - Countywide Services,Countywide PD Service - Care,Nursing Independent Sector
Cambridgeshire County Council,11-Feb-16,19939217-12819990,-926.11,Making Space#1,Care Establishment,3 - Operations - Countywide Services,Countywide PD Service - Care,Nursing Independent Sector
Cambridgeshire County Council,11-Feb-16,19939219-12819992,-926.11,Making Space#1,Care Establishment,3 - Operations - Countywide Services,Countywide PD Service - Care,Nursing Independent Sector
Cambridgeshire County Council,11-Feb-16,19939220-12819993,-926.11,Making Space#1,Care Establishment,3 - Operations - Countywide Services,Countywide PD Service - Care,Nursing Independent Sector
Cambridgeshire County Council,11-Feb-16,19976830-12819898,-926.11,Making Space#1,Care Establishment,3 - Operations - Countywide Services,Countywide PD Service - Care,Nursing Independent Sector
Cambridgeshire County Council,11-Feb-16,19976835-12819903,-926.11,Making Space#1,Care Establishment,3 - Operations - Countywide Services,Countywide PD Service - Care,Nursing Independent Sector
Cambridgeshire County Council,11-Feb-16,19976837-12819905,-926.11,Making Space#1,Care Establishment,3 - Operations - Countywide Services,Countywide PD Service - Care,Nursing Independent Sector
Cambridgeshire County Council,11-Feb-16,19976838-12819906,-926.11,Making Space#1,Care Establishment,3 - Operations - Countywide Services,Countywide PD Service - Care,Nursing Independent Sector
Cambridgeshire County Council,11-Feb-16,19976840-12819908,-926.11,Making Space#1,Care Establishment,3 - Operations - Countywide Services,Countywide PD Service - Care,Nursing Independent Sector
Cambridgeshire County Council,11-Feb-16,19976841-12819909,-926.11,Making Space#1,Care Establishment,3 - Operations - Countywide Services,Countywide PD Service - Care,Nursing Independent Sector
Cambridgeshire County Council,11-Feb-16,19976843-12819911,-926.11,Making Space#1,Care Establishment,3 - Operations - Countywide Services,Countywide PD Service - Care,Nursing Independent Sector
Cambridgeshire County Council,11-Feb-16,19976844-12819912,-926.11,Making Space#1,Care Establishment,3 - Operations - Countywide Services,Countywide PD Service - Care,Nursing Independent Sector
Cambridgeshire County Council,11-Feb-16,19976845-12819913,-926.11,Making Space#1,Care Establishment,3 - Operations - Countywide Services,Countywide PD Service - Care,Nursing Independent Sector
Cambridgeshire County Council,11-Feb-16,19976847-12819915,-926.11,Making Space#1,Care Establishment,3 - Operations - Countywide Services,Countywide PD Service - Care,Nursing Independent Sector
Cambridgeshire County Council,11-Feb-16,19976850-12819918,-926.11,Making Space#1,Care Establishment,3 - Operations - Countywide Services,Countywide PD Service - Care,Nursing Independent Sector
Cambridgeshire County Council,11-Feb-16,19976855-12819923,-926.11,Making Space#1,Care Establishment,3 - Operations - Countywide Services,Countywide PD Service - Care,Nursing Independent Sector
Cambridgeshire County Council,11-Feb-16,19976856-12819924,-926.11,Making Space#1,Care Establishment,3 - Operations - Countywide Services,Countywide PD Service - Care,Nursing Independent Sector
Cambridgeshire County Council,11-Feb-16,19976857-12819925,-926.11,Making Space#1,Care Establishment,3 - Operations - Countywide Services,Countywide PD Service - Care,Nursing Independent Sector
Cambridgeshire County Council,11-Feb-16,19976860-12819928,-926.11,Making Space#1,Care Establishment,3 - Operations - Countywide Services,Countywide PD Service - Care,Nursing Independent Sector
Cambridgeshire County Council,11-Feb-16,19976861-12819929,-926.11,Making Space#1,Care Establishment,3 - Operations - Countywide Services,Countywide PD Service - Care,Nursing Independent Sector
Cambridgeshire County Council,11-Feb-16,19976863-12819931,-926.11,Making Space#1,Care Establishment,3 - Operations - Countywide Services,Countywide PD Service - Care,Nursing Independent Sector
Cambridgeshire County Council,11-Feb-16,19976864-12819932,-926.11,Making Space#1,Care Establishment,3 - Operations - Countywide Services,Countywide PD Service - Care,Nursing Independent Sector
Cambridgeshire County Council,11-Feb-16,19976866-12819934,-926.11,Making Space#1,Care Establishment,3 - Operations - Countywide Services,Countywide PD Service - Care,Nursing Independent Sector
Cambridgeshire County Council,11-Feb-16,19976868-12819936,-926.11,Making Space#1,Care Establishment,3 - Operations - Countywide Services,Countywide PD Service - Care,Nursing Independent Sector
Cambridgeshire County Council,11-Feb-16,19976869-12819937,-926.11,Making Space#1,Care Establishment,3 - Operations - Countywide Services,Countywide PD Service - Care,Nursing Independent Sector
Cambridgeshire County Council,11-Feb-16,19976871-12819939,-926.11,Making Space#1,Care Establishment,3 - Operations - Countywide Services,Countywide PD Service - Care,Nursing Independent Sector
Cambridgeshire County Council,11-Feb-16,19976872-12819940,-926.11,Making Space#1,Care Establishment,3 - Operations - Countywide Services,Countywide PD Service - Care,Nursing Independent Sector
Cambridgeshire County Council,11-Feb-16,19976874-12819942,-926.11,Making Space#1,Care Establishment,3 - Operations - Countywide Services,Countywide PD Service - Care,Nursing Independent Sector
Cambridgeshire County Council,11-Feb-16,19976875-12819943,-926.11,Making Space#1,Care Establishment,3 - Operations - Countywide Services,Countywide PD Service - Care,Nursing Independent Sector
Cambridgeshire County Council,11-Feb-16,19976879-12819947,-926.11,Making Space#1,Care Establishment,3 - Operations - Countywide Services,Countywide PD Service - Care,Nursing Independent Sector
Cambridgeshire County Council,11-Feb-16,19976880-12819948,-926.11,Making Space#1,Care Establishment,3 - Operations - Countywide Services,Countywide PD Service - Care,Nursing Independent Sector
Cambridgeshire County Council,11-Feb-16,19976882-12819950,-926.11,Making Space#1,Care Establishment,3 - Operations - Countywide Services,Countywide PD Service - Care,Nursing Independent Sector
Cambridgeshire County Council,11-Feb-16,19976889-12819957,-926.11,Making Space#1,Care Establishment,3 - Operations - Countywide Services,Countywide PD Service - Care,Nursing Independent Sector
Cambridgeshire County Council,11-Feb-16,19976890-12819958,-926.11,Making Space#1,Care Establishment,3 - Operations - Countywide Services,Countywide PD Service - Care,Nursing Independent Sector
Cambridgeshire County Council,11-Feb-16,19976893-12819961,-926.11,Making Space#1,Care Establishment,3 - Operations - Countywide Services,Countywide PD Service - Care,Nursing Independent Sector
Cambridgeshire County Council,11-Feb-16,19976894-12819962,-926.11,Making Space#1,Care Establishment,3 - Operations - Countywide Services,Countywide PD Service - Care,Nursing Independent Sector
Cambridgeshire County Council,19-Feb-16,20027475-12861355,-926.11,Making Space#1,Care Establishment,3 - Operations - Countywide Services,Countywide PD Service - Care,Nursing Independent Sector
Cambridgeshire County Council,19-Feb-16,20027480-12861360,-926.11,Making Space#1,Care Establishment,3 - Operations - Countywide Services,Countywide PD Service - Care,Nursing Independent Sector
Cambridgeshire County Council,19-Feb-16,20027483-12861363,-926.11,Making Space#1,Care Establishment,3 - Operations - Countywide Services,Countywide PD Service - Care,Nursing Independent Sector
Cambridgeshire County Council,19-Feb-16,20027485-12861365,-926.11,Making Space#1,Care Establishment,3 - Operations - Countywide Services,Countywide PD Service - Care,Nursing Independent Sector
Cambridgeshire County Council,19-Feb-16,20027487-12861367,-926.11,Making Space#1,Care Establishment,3 - Operations - Countywide Services,Countywide PD Service - Care,Nursing Independent Sector
Cambridgeshire County Council,19-Feb-16,20027490-12861370,-926.11,Making Space#1,Care Establishment,3 - Operations - Countywide Services,Countywide PD Service - Care,Nursing Independent Sector
Cambridgeshire County Council,19-Feb-16,20027492-12861372,-926.11,Making Space#1,Care Establishment,3 - Operations - Countywide Services,Countywide PD Service - Care,Nursing Independent Sector
Cambridgeshire County Council,19-Feb-16,20027493-12861373,-926.11,Making Space#1,Care Establishment,3 - Operations - Countywide Services,Countywide PD Service - Care,Nursing Independent Sector
Cambridgeshire County Council,19-Feb-16,20027497-12861377,-926.11,Making Space#1,Care Establishment,3 - Operations - Countywide Services,Countywide PD Service - Care,Nursing Independent Sector
Cambridgeshire County Council,19-Feb-16,20027498-12861378,-926.11,Making Space#1,Care Establishment,3 - Operations - Countywide Services,Countywide PD Service - Care,Nursing Independent Sector
Cambridgeshire County Council,19-Feb-16,20027499-12861379,-926.11,Making Space#1,Care Establishment,3 - Operations - Countywide Services,Countywide PD Service - Care,Nursing Independent Sector
Cambridgeshire County Council,19-Feb-16,20027500-12861380,-926.11,Making Space#1,Care Establishment,3 - Operations - Countywide Services,Countywide PD Service - Care,Nursing Independent Sector
Cambridgeshire County Council,19-Feb-16,20027501-12861381,-926.11,Making Space#1,Care Establishment,3 - Operations - Countywide Services,Countywide PD Service - Care,Nursing Independent Sector
Cambridgeshire County Council,19-Feb-16,20027503-12861383,-926.11,Making Space#1,Care Establishment,3 - Operations - Countywide Services,Countywide PD Service - Care,Nursing Independent Sector
Cambridgeshire County Council,19-Feb-16,20027504-12861384,-926.11,Making Space#1,Care Establishment,3 - Operations - Countywide Services,Countywide PD Service - Care,Nursing Independent Sector
Cambridgeshire County Council,19-Feb-16,20027505-12861385,-926.11,Making Space#1,Care Establishment,3 - Operations - Countywide Services,Countywide PD Service - Care,Nursing Independent Sector
Cambridgeshire County Council,19-Feb-16,20027506-12861386,-926.11,Making Space#1,Care Establishment,3 - Operations - Countywide Services,Countywide PD Service - Care,Nursing Independent Sector
Cambridgeshire County Council,19-Feb-16,20027509-12861389,-926.11,Making Space#1,Care Establishment,3 - Operations - Countywide Services,Countywide PD Service - Care,Nursing Independent Sector
Cambridgeshire County Council,19-Feb-16,20027510-12861390,-926.11,Making Space#1,Care Establishment,3 - Operations - Countywide Services,Countywide PD Service - Care,Nursing Independent Sector
Cambridgeshire County Council,19-Feb-16,20027513-12861393,-926.11,Making Space#1,Care Establishment,3 - Operations - Countywide Services,Countywide PD Service - Care,Nursing Independent Sector
Cambridgeshire County Council,19-Feb-16,20027514-12861394,-926.11,Making Space#1,Care Establishment,3 - Operations - Countywide Services,Countywide PD Service - Care,Nursing Independent Sector
Cambridgeshire County Council,19-Feb-16,20027515-12861395,-926.11,Making Space#1,Care Establishment,3 - Operations - Countywide Services,Countywide PD Service - Care,Nursing Independent Sector
Cambridgeshire County Council,19-Feb-16,20027520-12861400,-926.11,Making Space#1,Care Establishment,3 - Operations - Countywide Services,Countywide PD Service - Care,Nursing Independent Sector
Cambridgeshire County Council,19-Feb-16,20027521-12861401,-926.11,Making Space#1,Care Establishment,3 - Operations - Countywide Services,Countywide PD Service - Care,Nursing Independent Sector
Cambridgeshire County Council,19-Feb-16,20027522-12861402,-926.11,Making Space#1,Care Establishment,3 - Operations - Countywide Services,Countywide PD Service - Care,Nursing Independent Sector
Cambridgeshire County Council,19-Feb-16,20027523-12861403,-926.11,Making Space#1,Care Establishment,3 - Operations - Countywide Services,Countywide PD Service - Care,Nursing Independent Sector
Cambridgeshire County Council,19-Feb-16,20027524-12861404,-926.11,Making Space#1,Care Establishment,3 - Operations - Countywide Services,Countywide PD Service - Care,Nursing Independent Sector
Cambridgeshire County Council,19-Feb-16,20027525-12861405,-926.11,Making Space#1,Care Establishment,3 - Operations - Countywide Services,Countywide PD Service - Care,Nursing Independent Sector
Cambridgeshire County Council,19-Feb-16,20031575-12861326,-926.11,Making Space#1,Care Establishment,3 - Operations - Countywide Services,Countywide PD Service - Care,Nursing Independent Sector
Cambridgeshire County Council,19-Feb-16,20031576-12861327,-926.11,Making Space#1,Care Establishment,3 - Operations - Countywide Services,Countywide PD Service - Care,Nursing Independent Sector
Cambridgeshire County Council,19-Feb-16,20031585-12861336,-926.11,Making Space#1,Care Establishment,3 - Operations - Countywide Services,Countywide PD Service - Care,Nursing Independent Sector
Cambridgeshire County Council,19-Feb-16,20031587-12861338,-926.11,Making Space#1,Care Establishment,3 - Operations - Countywide Services,Countywide PD Service - Care,Nursing Independent Sector
Cambridgeshire County Council,15-Feb-16,19903623-12835831,-915.6,Norseman Direct Ltd,Trade Supplier,S&C,Catering - Overheads - General,Capital WIP - land and buildings  -  Fixtures and fittings
Cambridgeshire County Council,08-Feb-16,19798691-12797754,-893.64,Mencap,Care Establishment,2 - Operations - Learning Disability,LDP City Locality - Care,SDS - Care and support Services
Cambridgeshire County Council,04-Feb-16,19940457-12769754,-850,Meadows Homecare Services,Care Establishment,2 - Commissioning - Older people Pool,Older People - City & South,Day and Domicillary Care Independent Sector
Cambridgeshire County Council,04-Feb-16,19940462-12769759,-850,Meadows Homecare Services,Care Establishment,2 - Commissioning - Older people Pool,Older People - City & South,Day and Domicillary Care Independent Sector
Cambridgeshire County Council,11-Feb-16,19984360-12818926,-840,Park House (Bedford),Care Establishment,3 - Operations - Countywide Services,Countywide PD Service - Care,Residential Independent Sector
Cambridgeshire County Council,17-Feb-16,19865501-12843545,-823.43,St George'S Court,Care Establishment,4 - Commissioning - Mental Health & Supporting People,Dom Blocks,Respite Independent Sector
Cambridgeshire County Council,04-Feb-16,19884194-12785482,-816.4,Kisimul School,Care Establishment,2 - Operations - Learning Disability,LDP Huntingdonshire Locality - Care,Residential Independent Sector
Cambridgeshire County Council,26-Feb-16,20030845-12881690,-815,Redacted Personal Data,Individual,3 - Operations - Countywide Services,Countywide PD Service - Care,Direct Payments - Social Services
Cambridgeshire County Council,26-Feb-16,20030848-12881692,-815,Redacted Personal Data,Individual,3 - Operations - Countywide Services,Countywide PD Service - Care,Direct Payments - Social Services
Cambridgeshire County Council,26-Feb-16,20030849-12881693,-815,Redacted Personal Data,Individual,3 - Operations - Countywide Services,Countywide PD Service - Care,Direct Payments - Social Services
Cambridgeshire County Council,26-Feb-16,20030853-12881697,-815,Redacted Personal Data,Individual,3 - Operations - Countywide Services,Countywide PD Service - Care,Direct Payments - Social Services
Cambridgeshire County Council,26-Feb-16,20030855-12881699,-815,Redacted Personal Data,Individual,3 - Operations - Countywide Services,Countywide PD Service - Care,Direct Payments - Social Services
Cambridgeshire County Council,26-Feb-16,20030857-12881701,-815,Redacted Personal Data,Individual,3 - Operations - Countywide Services,Countywide PD Service - Care,Direct Payments - Social Services
Cambridgeshire County Council,26-Feb-16,20030861-12881705,-815,Redacted Personal Data,Individual,3 - Operations - Countywide Services,Countywide PD Service - Care,Direct Payments - Social Services
Cambridgeshire County Council,26-Feb-16,20060720-12884928,-814.05,Barchester Healthcare Homes Ltd,Care Establishment,2 - Commissioning - Older people Pool,Older People - City & South,Nursing Independent Sector
Cambridgeshire County Council,26-Feb-16,20060721-12884929,-814.05,Barchester Healthcare Homes Ltd,Care Establishment,2 - Commissioning - Older people Pool,Older People - City & South,Nursing Independent Sector
Cambridgeshire County Council,26-Feb-16,20060722-12884930,-814.05,Barchester Healthcare Homes Ltd,Care Establishment,2 - Commissioning - Older people Pool,Older People - City & South,Nursing Independent Sector
Cambridgeshire County Council,26-Feb-16,20060724-12884932,-814.05,Barchester Healthcare Homes Ltd,Care Establishment,2 - Commissioning - Older people Pool,Older People - City & South,Nursing Independent Sector
Cambridgeshire County Council,26-Feb-16,20060725-12884933,-814.05,Barchester Healthcare Homes Ltd,Care Establishment,2 - Commissioning - Older people Pool,Older People - City & South,Nursing Independent Sector
Cambridgeshire County Council,26-Feb-16,20060726-12884934,-814.05,Barchester Healthcare Homes Ltd,Care Establishment,2 - Commissioning - Older people Pool,Older People - City & South,Nursing Independent Sector
Cambridgeshire County Council,26-Feb-16,20060727-12884935,-814.05,Barchester Healthcare Homes Ltd,Care Establishment,2 - Commissioning - Older people Pool,Older People - City & South,Nursing Independent Sector
Cambridgeshire County Council,26-Feb-16,20060729-12884937,-814.05,Barchester Healthcare Homes Ltd,Care Establishment,2 - Commissioning - Older people Pool,Older People - City & South,Nursing Independent Sector
Cambridgeshire County Council,26-Feb-16,20060732-12884940,-814.05,Barchester Healthcare Homes Ltd,Care Establishment,2 - Commissioning - Older people Pool,Older People - City & South,Nursing Independent Sector
Cambridgeshire County Council,26-Feb-16,20060733-12884941,-814.05,Barchester Healthcare Homes Ltd,Care Establishment,2 - Commissioning - Older people Pool,Older People - City & South,Nursing Independent Sector
Cambridgeshire County Council,26-Feb-16,20060734-12884942,-814.05,Barchester Healthcare Homes Ltd,Care Establishment,2 - Commissioning - Older people Pool,Older People - City & South,Nursing Independent Sector
Cambridgeshire County Council,26-Feb-16,20060736-12884944,-814.05,Barchester Healthcare Homes Ltd,Care Establishment,2 - Commissioning - Older people Pool,Older People - City & South,Nursing Independent Sector
Cambridgeshire County Council,26-Feb-16,20060739-12884947,-814.05,Barchester Healthcare Homes Ltd,Care Establishment,2 - Commissioning - Older people Pool,Older People - City & South,Nursing Independent Sector
Cambridgeshire County Council,26-Feb-16,20060740-12884948,-814.05,Barchester Healthcare Homes Ltd,Care Establishment,2 - Commissioning - Older people Pool,Older People - City & South,Nursing Independent Sector
Cambridgeshire County Council,26-Feb-16,20060745-12884953,-814.05,Barchester Healthcare Homes Ltd,Care Establishment,2 - Commissioning - Older people Pool,Older People - City & South,Nursing Independent Sector
Cambridgeshire County Council,26-Feb-16,20060746-12884954,-814.05,Barchester Healthcare Homes Ltd,Care Establishment,2 - Commissioning - Older people Pool,Older People - City & South,Nursing Independent Sector
Cambridgeshire County Council,26-Feb-16,20060749-12884957,-814.05,Barchester Healthcare Homes Ltd,Care Establishment,2 - Commissioning - Older people Pool,Older People - City & South,Nursing Independent Sector
Cambridgeshire County Council,26-Feb-16,20060750-12884958,-814.05,Barchester Healthcare Homes Ltd,Care Establishment,2 - Commissioning - Older people Pool,Older People - City & South,Nursing Independent Sector
Cambridgeshire County Council,26-Feb-16,20060753-12884961,-814.05,Barchester Healthcare Homes Ltd,Care Establishment,2 - Commissioning - Older people Pool,Older People - City & South,Nursing Independent Sector
Cambridgeshire County Council,26-Feb-16,20060754-12884962,-814.05,Barchester Healthcare Homes Ltd,Care Establishment,2 - Commissioning - Older people Pool,Older People - City & South,Nursing Independent Sector
Cambridgeshire County Council,26-Feb-16,20060756-12884964,-814.05,Barchester Healthcare Homes Ltd,Care Establishment,2 - Commissioning - Older people Pool,Older People - City & South,Nursing Independent Sector
Cambridgeshire County Council,26-Feb-16,20060758-12884966,-814.05,Barchester Healthcare Homes Ltd,Care Establishment,2 - Commissioning - Older people Pool,Older People - City & South,Nursing Independent Sector
Cambridgeshire County Council,26-Feb-16,20060759-12884967,-814.05,Barchester Healthcare Homes Ltd,Care Establishment,2 - Commissioning - Older people Pool,Older People - City & South,Nursing Independent Sector
Cambridgeshire County Council,26-Feb-16,20060762-12884970,-814.05,Barchester Healthcare Homes Ltd,Care Establishment,2 - Commissioning - Older people Pool,Older People - City & South,Nursing Independent Sector
Cambridgeshire County Council,26-Feb-16,20060763-12884971,-814.05,Barchester Healthcare Homes Ltd,Care Establishment,2 - Commissioning - Older people Pool,Older People - City & South,Nursing Independent Sector
Cambridgeshire County Council,26-Feb-16,20060765-12884973,-814.05,Barchester Healthcare Homes Ltd,Care Establishment,2 - Commissioning - Older people Pool,Older People - City & South,Nursing Independent Sector
Cambridgeshire County Council,26-Feb-16,20060766-12884974,-814.05,Barchester Healthcare Homes Ltd,Care Establishment,2 - Commissioning - Older people Pool,Older People - City & South,Nursing Independent Sector
Cambridgeshire County Council,26-Feb-16,20060769-12884977,-814.05,Barchester Healthcare Homes Ltd,Care Establishment,2 - Commissioning - Older people Pool,Older People - City & South,Nursing Independent Sector
Cambridgeshire County Council,26-Feb-16,20060770-12884978,-814.05,Barchester Healthcare Homes Ltd,Care Establishment,2 - Commissioning - Older people Pool,Older People - City & South,Nursing Independent Sector
Cambridgeshire County Council,26-Feb-16,20060771-12884979,-814.05,Barchester Healthcare Homes Ltd,Care Establishment,2 - Commissioning - Older people Pool,Older People - City & South,Nursing Independent Sector
Cambridgeshire County Council,26-Feb-16,20060772-12884980,-814.05,Barchester Healthcare Homes Ltd,Care Establishment,2 - Commissioning - Older people Pool,Older People - City & South,Nursing Independent Sector
Cambridgeshire County Council,26-Feb-16,20060777-12884985,-814.05,Barchester Healthcare Homes Ltd,Care Establishment,2 - Commissioning - Older people Pool,Older People - City & South,Nursing Independent Sector
Cambridgeshire County Council,26-Feb-16,20060779-12884987,-814.05,Barchester Healthcare Homes Ltd,Care Establishment,2 - Commissioning - Older people Pool,Older People - City & South,Nursing Independent Sector
Cambridgeshire County Council,26-Feb-16,20060780-12884988,-814.05,Barchester Healthcare Homes Ltd,Care Establishment,2 - Commissioning - Older people Pool,Older People - City & South,Nursing Independent Sector
Cambridgeshire County Council,26-Feb-16,20060783-12884991,-814.05,Barchester Healthcare Homes Ltd,Care Establishment,2 - Commissioning - Older people Pool,Older People - City & South,Nursing Independent Sector
Cambridgeshire County Council,26-Feb-16,20060787-12884995,-814.05,Barchester Healthcare Homes Ltd,Care Establishment,2 - Commissioning - Older people Pool,Older People - City & South,Nursing Independent Sector
Cambridgeshire County Council,26-Feb-16,20060788-12884996,-814.05,Barchester Healthcare Homes Ltd,Care Establishment,2 - Commissioning - Older people Pool,Older People - City & South,Nursing Independent Sector
Cambridgeshire County Council,26-Feb-16,20060789-12884997,-814.05,Barchester Healthcare Homes Ltd,Care Establishment,2 - Commissioning - Older people Pool,Older People - City & South,Nursing Independent Sector
Cambridgeshire County Council,26-Feb-16,20060790-12884998,-814.05,Barchester Healthcare Homes Ltd,Care Establishment,2 - Commissioning - Older people Pool,Older People - City & South,Nursing Independent Sector
Cambridgeshire County Council,26-Feb-16,20060792-12885000,-814.05,Barchester Healthcare Homes Ltd,Care Establishment,2 - Commissioning - Older people Pool,Older People - City & South,Nursing Independent Sector
Cambridgeshire County Council,26-Feb-16,20060793-12885001,-814.05,Barchester Healthcare Homes Ltd,Care Establishment,2 - Commissioning - Older people Pool,Older People - City & South,Nursing Independent Sector
Cambridgeshire County Council,26-Feb-16,20060798-12885006,-814.05,Barchester Healthcare Homes Ltd,Care Establishment,2 - Commissioning - Older people Pool,Older People - City & South,Nursing Independent Sector
Cambridgeshire County Council,26-Feb-16,20060799-12885007,-814.05,Barchester Healthcare Homes Ltd,Care Establishment,2 - Commissioning - Older people Pool,Older People - City & South,Nursing Independent Sector
Cambridgeshire County Council,26-Feb-16,20061569-12884913,-814.05,Barchester Healthcare Homes Ltd,Care Establishment,2 - Commissioning - Older people Pool,Older People - City & South,Nursing Independent Sector
Cambridgeshire County Council,26-Feb-16,20061570-12884914,-814.05,Barchester Healthcare Homes Ltd,Care Establishment,2 - Commissioning - Older people Pool,Older People - City & South,Nursing Independent Sector
Cambridgeshire County Council,26-Feb-16,20061575-12884919,-814.05,Barchester Healthcare Homes Ltd,Care Establishment,2 - Commissioning - Older people Pool,Older People - City & South,Nursing Independent Sector
Cambridgeshire County Council,26-Feb-16,20061577-12884921,-814.05,Barchester Healthcare Homes Ltd,Care Establishment,2 - Commissioning - Older people Pool,Older People - City & South,Nursing Independent Sector
Cambridgeshire County Council,11-Feb-16,19910745-12820008,-793.81,Making Space#1,Care Establishment,3 - Operations - Countywide Services,Countywide PD Service - Care,Nursing Independent Sector
Cambridgeshire County Council,11-Feb-16,19934785-12820076,-793.81,Making Space#1,Care Establishment,3 - Operations - Countywide Services,Countywide PD Service - Care,Nursing Independent Sector
Cambridgeshire County Council,11-Feb-16,19976877-12819945,-793.81,Making Space#1,Care Establishment,3 - Operations - Countywide Services,Countywide PD Service - Care,Nursing Independent Sector
Cambridgeshire County Council,19-Feb-16,20027516-12861396,-793.81,Making Space#1,Care Establishment,3 - Operations - Countywide Services,Countywide PD Service - Care,Nursing Independent Sector
Cambridgeshire County Council,11-Feb-16,19980478-12817241,-775,Gracefield Nursing And Residential Home,Care Establishment,2 - Commissioning - Older people Pool,Older People Mental Health Hunts,Nursing Independent Sector
Cambridgeshire County Council,11-Feb-16,19980479-12817242,-775,Gracefield Nursing And Residential Home,Care Establishment,2 - Commissioning - Older people Pool,Older People Mental Health Hunts,Nursing Independent Sector
Cambridgeshire County Council,11-Feb-16,19980481-12817244,-775,Gracefield Nursing And Residential Home,Care Establishment,2 - Commissioning - Older people Pool,Older People Mental Health Hunts,Nursing Independent Sector
Cambridgeshire County Council,11-Feb-16,19980482-12817245,-775,Gracefield Nursing And Residential Home,Care Establishment,2 - Commissioning - Older people Pool,Older People Mental Health Hunts,Nursing Independent Sector
Cambridgeshire County Council,11-Feb-16,19980483-12817246,-775,Gracefield Nursing And Residential Home,Care Establishment,2 - Commissioning - Older people Pool,Older People Mental Health Hunts,Nursing Independent Sector
Cambridgeshire County Council,11-Feb-16,19982180-12812570,-759.47,Redacted Personal Data,Individual,3 - Operations - Countywide Services,Countywide PD Service - Care,SDS - Care and support Services
Cambridgeshire County Council,11-Feb-16,19982181-12812571,-759.47,Redacted Personal Data,Individual,3 - Operations - Countywide Services,Countywide PD Service - Care,SDS - Care and support Services
Cambridgeshire County Council,04-Feb-16,19948819-12783445,-757.7,Caretech Community Services,Care Establishment,2 - Operations - Learning Disability,LDP South Cambs Locality - Care,Day and Domicillary Care Independent Sector
Cambridgeshire County Council,04-Feb-16,19948821-12783447,-757.7,Caretech Community Services,Care Establishment,2 - Operations - Learning Disability,LDP South Cambs Locality - Care,Day and Domicillary Care Independent Sector
Cambridgeshire County Council,04-Feb-16,19948823-12783449,-757.7,Caretech Community Services,Care Establishment,2 - Operations - Learning Disability,LDP South Cambs Locality - Care,Day and Domicillary Care Independent Sector
Cambridgeshire County Council,04-Feb-16,19948827-12783453,-757.7,Caretech Community Services,Care Establishment,2 - Operations - Learning Disability,LDP South Cambs Locality - Care,Day and Domicillary Care Independent Sector
Cambridgeshire County Council,04-Feb-16,19948828-12783454,-757.7,Caretech Community Services,Care Establishment,2 - Operations - Learning Disability,LDP South Cambs Locality - Care,Day and Domicillary Care Independent Sector
Cambridgeshire County Council,04-Feb-16,19948832-12783436,-757.7,Caretech Community Services,Care Establishment,2 - Operations - Learning Disability,LDP South Cambs Locality - Care,Day and Domicillary Care Independent Sector
Cambridgeshire County Council,22-Feb-16,19899864-12862598,-756.24,Guidant Group,Trade Supplier,4 - Operations - Providers services,"Larkfield, Ely",Pay - Agency Staff
Cambridgeshire County Council,11-Feb-16,19978849-12819872,-750,Redacted Personal Data,Individual,3 - Operations - Countywide Services,Countywide PD Service - Care,SDS - Care and support Services
Cambridgeshire County Council,11-Feb-16,19978858-12819878,-750,Redacted Personal Data,Individual,3 - Operations - Countywide Services,Countywide PD Service - Care,SDS - Care and support Services
Cambridgeshire County Council,11-Feb-16,19906500-12817125,-748.2,The Cambridge Nursing Centre,Care Establishment,2 - Commissioning - Older people Pool,Older People - City & South,Nursing Independent Sector
Cambridgeshire County Council,11-Feb-16,19906503-12817126,-748.2,The Cambridge Nursing Centre,Care Establishment,2 - Commissioning - Older people Pool,Older People - City & South,Nursing Independent Sector
Cambridgeshire County Council,11-Feb-16,19906509-12817127,-748.2,The Cambridge Nursing Centre,Care Establishment,2 - Commissioning - Older people Pool,Older People - City & South,Nursing Independent Sector
Cambridgeshire County Council,11-Feb-16,19906516-12817128,-748.2,The Cambridge Nursing Centre,Care Establishment,2 - Commissioning - Older people Pool,Older People - City & South,Nursing Independent Sector
Cambridgeshire County Council,11-Feb-16,19906526-12817129,-748.2,The Cambridge Nursing Centre,Care Establishment,2 - Commissioning - Older people Pool,Older People - City & South,Nursing Independent Sector
Cambridgeshire County Council,11-Feb-16,19906531-12817130,-748.2,The Cambridge Nursing Centre,Care Establishment,2 - Commissioning - Older people Pool,Older People - City & South,Nursing Independent Sector
Cambridgeshire County Council,11-Feb-16,19906546-12817131,-748.2,The Cambridge Nursing Centre,Care Establishment,2 - Commissioning - Older people Pool,Older People - City & South,Nursing Independent Sector
Cambridgeshire County Council,11-Feb-16,19906556-12817132,-748.2,The Cambridge Nursing Centre,Care Establishment,2 - Commissioning - Older people Pool,Older People - City & South,Nursing Independent Sector
Cambridgeshire County Council,11-Feb-16,19906559-12817133,-748.2,The Cambridge Nursing Centre,Care Establishment,2 - Commissioning - Older people Pool,Older People - City & South,Nursing Independent Sector
Cambridgeshire County Council,25-Feb-16,20053187-12878472,-714.69,Heron House Care Home,Care Establishment,Control Accounts,Uncleared bank items,Bank Overdraft Expenditure / Payments
Cambridgeshire County Council,29-Feb-16,19954805-12890617,-707.15,Chs Group,Care Establishment,S&C,Placements - Social Care,Agency Placements - In Cambs
Cambridgeshire County Council,25-Feb-16,20053174-12878468,-705.86,Heron House Care Home,Care Establishment,Control Accounts,Uncleared bank items,Bank Overdraft Expenditure / Payments
Cambridgeshire County Council,26-Feb-16,20061574-12884918,-697.76,Barchester Healthcare Homes Ltd,Care Establishment,2 - Commissioning - Older people Pool,Older People - City & South,Nursing Independent Sector
Cambridgeshire County Council,04-Feb-16,19885884-12785940,-687.83,Buchan Healthcare Ltd,Care Establishment,2 - Commissioning - Older people Pool,Older People - City & South,Nursing Independent Sector
Cambridgeshire County Council,11-Feb-16,19985243-12813207,-684.32,Thera East Anglia,Trust (Other),2 - Operations - Learning Disability,LDP Fenland Locality - Care,SDS - Live Independently
Cambridgeshire County Council,15-Feb-16,19988242-12835724,-684.32,Thera East Anglia,Trust (Other),2 - Operations - Learning Disability,LDP Fenland Locality - Care,SDS - Live Independently
Cambridgeshire County Council,04-Feb-16,19887933-12785966,-677.7,Buchan Healthcare Ltd,Care Establishment,2 - Commissioning - Older people Pool,Older People - City & South,Nursing Independent Sector
Cambridgeshire County Council,11-Feb-16,19948332-12819707,-677.14,Clovelly House Residential Home,Care Establishment,2 - Commissioning - Older people Pool,Older People - Fenland,Residential Independent Sector
Cambridgeshire County Council,11-Feb-16,19948333-12819708,-677.14,Clovelly House Residential Home,Care Establishment,2 - Commissioning - Older people Pool,Older People - Fenland,Residential Independent Sector
Cambridgeshire County Council,11-Feb-16,19948334-12819709,-677.14,Clovelly House Residential Home,Care Establishment,2 - Commissioning - Older people Pool,Older People - Fenland,Residential Independent Sector
Cambridgeshire County Council,11-Feb-16,19948335-12819710,-677.14,Clovelly House Residential Home,Care Establishment,2 - Commissioning - Older people Pool,Older People - Fenland,Residential Independent Sector
Cambridgeshire County Council,11-Feb-16,19948336-12819711,-677.14,Clovelly House Residential Home,Care Establishment,2 - Commissioning - Older people Pool,Older People - Fenland,Residential Independent Sector
Cambridgeshire County Council,11-Feb-16,19948337-12819712,-677.14,Clovelly House Residential Home,Care Establishment,2 - Commissioning - Older people Pool,Older People - Fenland,Residential Independent Sector
Cambridgeshire County Council,11-Feb-16,19884190-12814819,-669.64,Barchester Healthcare Homes Ltd,Care Establishment,2 - Commissioning - Older people Pool,Older People Mental Health City & South,Nursing Independent Sector
Cambridgeshire County Council,11-Feb-16,19884195-12814820,-669.64,Barchester Healthcare Homes Ltd,Care Establishment,2 - Commissioning - Older people Pool,Older People Mental Health City & South,Nursing Independent Sector
Cambridgeshire County Council,11-Feb-16,19884196-12814799,-669.64,Barchester Healthcare Homes Ltd,Care Establishment,2 - Commissioning - Older people Pool,Older People Mental Health City & South,Nursing Independent Sector
Cambridgeshire County Council,11-Feb-16,19884211-12814800,-669.64,Barchester Healthcare Homes Ltd,Care Establishment,2 - Commissioning - Older people Pool,Older People Mental Health City & South,Nursing Independent Sector
Cambridgeshire County Council,11-Feb-16,19884213-12814801,-669.64,Barchester Healthcare Homes Ltd,Care Establishment,2 - Commissioning - Older people Pool,Older People Mental Health City & South,Nursing Independent Sector
Cambridgeshire County Council,11-Feb-16,19884226-12814802,-669.64,Barchester Healthcare Homes Ltd,Care Establishment,2 - Commissioning - Older people Pool,Older People Mental Health City & South,Nursing Independent Sector
Cambridgeshire County Council,11-Feb-16,19884231-12814804,-669.64,Barchester Healthcare Homes Ltd,Care Establishment,2 - Commissioning - Older people Pool,Older People Mental Health City & South,Nursing Independent Sector
Cambridgeshire County Council,11-Feb-16,19884232-12814805,-669.64,Barchester Healthcare Homes Ltd,Care Establishment,2 - Commissioning - Older people Pool,Older People Mental Health City & South,Nursing Independent Sector
Cambridgeshire County Council,11-Feb-16,19884240-12814806,-669.64,Barchester Healthcare Homes Ltd,Care Establishment,2 - Commissioning - Older people Pool,Older People Mental Health City & South,Nursing Independent Sector
Cambridgeshire County Council,25-Feb-16,19964241-12875140,-659.4,Little Hands Nursery Schools Limited,Nursery,S&C,Procurement - TA Inclusion & Access (EARLY YEARS),Care & Ed Childcare Settings
Cambridgeshire County Council,11-Feb-16,19984999-12813202,-651.73,Thera East Anglia,Trust (Other),2 - Operations - Learning Disability,LDP Fenland Locality - Care,SDS - Live Independently
Cambridgeshire County Council,11-Feb-16,19985242-12813206,-651.73,Thera East Anglia,Trust (Other),2 - Operations - Learning Disability,LDP Fenland Locality - Care,SDS - Live Independently
Cambridgeshire County Council,15-Feb-16,19985244-12835722,-651.73,Thera East Anglia,Trust (Other),2 - Operations - Learning Disability,LDP Fenland Locality - Care,SDS - Live Independently
Cambridgeshire County Council,15-Feb-16,19988239-12835723,-651.73,Thera East Anglia,Trust (Other),2 - Operations - Learning Disability,LDP Fenland Locality - Care,SDS - Live Independently
Cambridgeshire County Council,04-Feb-16,19825742-12784467,-650,The Gables Specialist Nursing Home,Care Establishment,2 - Commissioning - Older people Pool,Older People - Fenland,SDS - Care and support Services
Cambridgeshire County Council,04-Feb-16,19825744-12784469,-650,The Gables Specialist Nursing Home,Care Establishment,2 - Commissioning - Older people Pool,Older People - Fenland,SDS - Care and support Services
Cambridgeshire County Council,04-Feb-16,19825748-12784473,-650,The Gables Specialist Nursing Home,Care Establishment,2 - Commissioning - Older people Pool,Older People - Fenland,SDS - Care and support Services
Cambridgeshire County Council,04-Feb-16,19825749-12784474,-650,The Gables Specialist Nursing Home,Care Establishment,2 - Commissioning - Older people Pool,Older People - Fenland,SDS - Care and support Services
Cambridgeshire County Council,11-Feb-16,19977980-12816421,-629.72,Tony Stocks T/A Guyatt House,Care Establishment,2 - Operations - Learning Disability,LDP E Cambs Locality - Care,SDS - Care and support Services
Cambridgeshire County Council,11-Feb-16,19977983-12816424,-629.72,Tony Stocks T/A Guyatt House,Care Establishment,2 - Operations - Learning Disability,LDP E Cambs Locality - Care,SDS - Care and support Services
Cambridgeshire County Council,11-Feb-16,19977985-12816426,-629.72,Tony Stocks T/A Guyatt House,Care Establishment,2 - Operations - Learning Disability,LDP E Cambs Locality - Care,SDS - Care and support Services
Cambridgeshire County Council,11-Feb-16,19977986-12816427,-629.72,Tony Stocks T/A Guyatt House,Care Establishment,2 - Operations - Learning Disability,LDP E Cambs Locality - Care,SDS - Care and support Services
Cambridgeshire County Council,11-Feb-16,19977987-12816428,-629.72,Tony Stocks T/A Guyatt House,Care Establishment,2 - Operations - Learning Disability,LDP E Cambs Locality - Care,SDS - Care and support Services
Cambridgeshire County Council,11-Feb-16,19977989-12816430,-629.72,Tony Stocks T/A Guyatt House,Care Establishment,2 - Operations - Learning Disability,LDP E Cambs Locality - Care,SDS - Care and support Services
Cambridgeshire County Council,11-Feb-16,19977990-12816416,-629.72,Tony Stocks T/A Guyatt House,Care Establishment,2 - Operations - Learning Disability,LDP E Cambs Locality - Care,SDS - Care and support Services
Cambridgeshire County Council,11-Feb-16,19977991-12816417,-629.72,Tony Stocks T/A Guyatt House,Care Establishment,2 - Operations - Learning Disability,LDP E Cambs Locality - Care,SDS - Care and support Services
Cambridgeshire County Council,11-Feb-16,19977992-12816418,-629.72,Tony Stocks T/A Guyatt House,Care Establishment,2 - Operations - Learning Disability,LDP E Cambs Locality - Care,SDS - Care and support Services
Cambridgeshire County Council,11-Feb-16,19977993-12816419,-629.72,Tony Stocks T/A Guyatt House,Care Establishment,2 - Operations - Learning Disability,LDP E Cambs Locality - Care,SDS - Care and support Services
Cambridgeshire County Council,11-Feb-16,19978650-12816519,-629.72,Tony Stocks T/A Guyatt House,Care Establishment,2 - Operations - Learning Disability,LDP E Cambs Locality - Care,SDS - Care and support Services
Cambridgeshire County Council,11-Feb-16,19978651-12816520,-629.72,Tony Stocks T/A Guyatt House,Care Establishment,2 - Operations - Learning Disability,LDP E Cambs Locality - Care,SDS - Care and support Services
Cambridgeshire County Council,11-Feb-16,19978652-12816521,-629.72,Tony Stocks T/A Guyatt House,Care Establishment,2 - Operations - Learning Disability,LDP E Cambs Locality - Care,SDS - Care and support Services
Cambridgeshire County Council,11-Feb-16,19978655-12816524,-629.72,Tony Stocks T/A Guyatt House,Care Establishment,2 - Operations - Learning Disability,LDP E Cambs Locality - Care,SDS - Care and support Services
Cambridgeshire County Council,11-Feb-16,19978657-12816526,-629.72,Tony Stocks T/A Guyatt House,Care Establishment,2 - Operations - Learning Disability,LDP E Cambs Locality - Care,SDS - Care and support Services
Cambridgeshire County Council,11-Feb-16,19978661-12816530,-629.72,Tony Stocks T/A Guyatt House,Care Establishment,2 - Operations - Learning Disability,LDP E Cambs Locality - Care,SDS - Care and support Services
Cambridgeshire County Council,11-Feb-16,19978662-12816531,-629.72,Tony Stocks T/A Guyatt House,Care Establishment,2 - Operations - Learning Disability,LDP E Cambs Locality - Care,SDS - Care and support Services
Cambridgeshire County Council,11-Feb-16,19978666-12816535,-629.72,Tony Stocks T/A Guyatt House,Care Establishment,2 - Operations - Learning Disability,LDP E Cambs Locality - Care,SDS - Care and support Services
Cambridgeshire County Council,11-Feb-16,19978667-12816536,-629.72,Tony Stocks T/A Guyatt House,Care Establishment,2 - Operations - Learning Disability,LDP E Cambs Locality - Care,SDS - Care and support Services
Cambridgeshire County Council,11-Feb-16,19978668-12816537,-629.72,Tony Stocks T/A Guyatt House,Care Establishment,2 - Operations - Learning Disability,LDP E Cambs Locality - Care,SDS - Care and support Services
Cambridgeshire County Council,11-Feb-16,19978670-12816539,-629.72,Tony Stocks T/A Guyatt House,Care Establishment,2 - Operations - Learning Disability,LDP E Cambs Locality - Care,SDS - Care and support Services
Cambridgeshire County Council,11-Feb-16,19978671-12816540,-629.72,Tony Stocks T/A Guyatt House,Care Establishment,2 - Operations - Learning Disability,LDP E Cambs Locality - Care,SDS - Care and support Services
Cambridgeshire County Council,11-Feb-16,19978673-12816542,-629.72,Tony Stocks T/A Guyatt House,Care Establishment,2 - Operations - Learning Disability,LDP E Cambs Locality - Care,SDS - Care and support Services
Cambridgeshire County Council,11-Feb-16,19978677-12816546,-629.72,Tony Stocks T/A Guyatt House,Care Establishment,2 - Operations - Learning Disability,LDP E Cambs Locality - Care,SDS - Care and support Services
Cambridgeshire County Council,11-Feb-16,19978679-12816548,-629.72,Tony Stocks T/A Guyatt House,Care Establishment,2 - Operations - Learning Disability,LDP E Cambs Locality - Care,SDS - Care and support Services
Cambridgeshire County Council,11-Feb-16,19978680-12816549,-629.72,Tony Stocks T/A Guyatt House,Care Establishment,2 - Operations - Learning Disability,LDP E Cambs Locality - Care,SDS - Care and support Services
Cambridgeshire County Council,11-Feb-16,19978682-12816551,-629.72,Tony Stocks T/A Guyatt House,Care Establishment,2 - Operations - Learning Disability,LDP E Cambs Locality - Care,SDS - Care and support Services
Cambridgeshire County Council,11-Feb-16,19978685-12816473,-629.72,Tony Stocks T/A Guyatt House,Care Establishment,2 - Operations - Learning Disability,LDP E Cambs Locality - Care,SDS - Care and support Services
Cambridgeshire County Council,11-Feb-16,19978688-12816476,-629.72,Tony Stocks T/A Guyatt House,Care Establishment,2 - Operations - Learning Disability,LDP E Cambs Locality - Care,SDS - Care and support Services
Cambridgeshire County Council,11-Feb-16,19978689-12816477,-629.72,Tony Stocks T/A Guyatt House,Care Establishment,2 - Operations - Learning Disability,LDP E Cambs Locality - Care,SDS - Care and support Services
Cambridgeshire County Council,11-Feb-16,19978691-12816479,-629.72,Tony Stocks T/A Guyatt House,Care Establishment,2 - Operations - Learning Disability,LDP E Cambs Locality - Care,SDS - Care and support Services
Cambridgeshire County Council,11-Feb-16,19978692-12816480,-629.72,Tony Stocks T/A Guyatt House,Care Establishment,2 - Operations - Learning Disability,LDP E Cambs Locality - Care,SDS - Care and support Services
Cambridgeshire County Council,11-Feb-16,19978695-12816483,-629.72,Tony Stocks T/A Guyatt House,Care Establishment,2 - Operations - Learning Disability,LDP E Cambs Locality - Care,SDS - Care and support Services
Cambridgeshire County Council,11-Feb-16,19978706-12816494,-629.72,Tony Stocks T/A Guyatt House,Care Establishment,2 - Operations - Learning Disability,LDP E Cambs Locality - Care,SDS - Care and support Services
Cambridgeshire County Council,11-Feb-16,19978708-12816496,-629.72,Tony Stocks T/A Guyatt House,Care Establishment,2 - Operations - Learning Disability,LDP E Cambs Locality - Care,SDS - Care and support Services
Cambridgeshire County Council,11-Feb-16,19978709-12816497,-629.72,Tony Stocks T/A Guyatt House,Care Establishment,2 - Operations - Learning Disability,LDP E Cambs Locality - Care,SDS - Care and support Services
Cambridgeshire County Council,11-Feb-16,19978710-12816498,-629.72,Tony Stocks T/A Guyatt House,Care Establishment,2 - Operations - Learning Disability,LDP E Cambs Locality - Care,SDS - Care and support Services
Cambridgeshire County Council,11-Feb-16,19978711-12816499,-629.72,Tony Stocks T/A Guyatt House,Care Establishment,2 - Operations - Learning Disability,LDP E Cambs Locality - Care,SDS - Care and support Services
Cambridgeshire County Council,11-Feb-16,19978713-12816501,-629.72,Tony Stocks T/A Guyatt House,Care Establishment,2 - Operations - Learning Disability,LDP E Cambs Locality - Care,SDS - Care and support Services
Cambridgeshire County Council,11-Feb-16,19978714-12816502,-629.72,Tony Stocks T/A Guyatt House,Care Establishment,2 - Operations - Learning Disability,LDP E Cambs Locality - Care,SDS - Care and support Services
Cambridgeshire County Council,11-Feb-16,19978721-12816509,-629.72,Tony Stocks T/A Guyatt House,Care Establishment,2 - Operations - Learning Disability,LDP E Cambs Locality - Care,SDS - Care and support Services
Cambridgeshire County Council,11-Feb-16,19978723-12816511,-629.72,Tony Stocks T/A Guyatt House,Care Establishment,2 - Operations - Learning Disability,LDP E Cambs Locality - Care,SDS - Care and support Services
Cambridgeshire County Council,11-Feb-16,19978727-12816515,-629.72,Tony Stocks T/A Guyatt House,Care Establishment,2 - Operations - Learning Disability,LDP E Cambs Locality - Care,SDS - Care and support Services
Cambridgeshire County Council,04-Feb-16,19886418-12788611,-598.07,St Georges Nursing Home,Care Establishment,2 - Commissioning - Older people Pool,Older People - City & South,Nursing Independent Sector
Cambridgeshire County Council,04-Feb-16,19886419-12788609,-598.07,St Georges Nursing Home,Care Establishment,2 - Commissioning - Older people Pool,Older People - City & South,Nursing Independent Sector
Cambridgeshire County Council,04-Feb-16,19907990-12779135,-587.31,Conquest Care Homes (Soham) Ltd,Care Establishment,2 - Operations - Learning Disability,LDP E Cambs Special Needs,SDS - Care and support Services
Cambridgeshire County Council,04-Feb-16,19935550-12779105,-587.31,Conquest Care Homes (Soham) Ltd,Care Establishment,2 - Operations - Learning Disability,LDP E Cambs Locality - Care,SDS - Care and support Services
Cambridgeshire County Council,11-Feb-16,19977038-12820992,-587.31,Conquest Care Homes (Soham) Ltd,Care Establishment,2 - Operations - Learning Disability,LDP E Cambs Special Needs,SDS - Care and support Services
Cambridgeshire County Council,19-Feb-16,20027755-12859287,-587.31,Conquest Care Homes (Soham) Ltd,Care Establishment,2 - Operations - Learning Disability,LDP E Cambs Special Needs,SDS - Care and support Services
Cambridgeshire County Council,08-Feb-16,19812065-12797755,-583.44,Mencap,Care Establishment,2 - Operations - Learning Disability,LDP City Locality - Care,Supported Living
Cambridgeshire County Council,26-Feb-16,20030320-12885831,-581.85,The Cambridge Nursing Centre,Care Establishment,2 - Commissioning - Older people Pool,Older People Mental Health City & South,Nursing Independent Sector
Cambridgeshire County Council,26-Feb-16,20030321-12885832,-581.85,The Cambridge Nursing Centre,Care Establishment,2 - Commissioning - Older people Pool,Older People Mental Health City & South,Nursing Independent Sector
Cambridgeshire County Council,26-Feb-16,20030322-12885822,-581.85,The Cambridge Nursing Centre,Care Establishment,2 - Commissioning - Older people Pool,Older People Mental Health City & South,Nursing Independent Sector
Cambridgeshire County Council,26-Feb-16,20030323-12885823,-581.85,The Cambridge Nursing Centre,Care Establishment,2 - Commissioning - Older people Pool,Older People Mental Health City & South,Nursing Independent Sector
Cambridgeshire County Council,26-Feb-16,20030324-12885824,-581.85,The Cambridge Nursing Centre,Care Establishment,2 - Commissioning - Older people Pool,Older People Mental Health City & South,Nursing Independent Sector
Cambridgeshire County Council,26-Feb-16,20030325-12885825,-581.85,The Cambridge Nursing Centre,Care Establishment,2 - Commissioning - Older people Pool,Older People Mental Health City & South,Nursing Independent Sector
Cambridgeshire County Council,26-Feb-16,20030326-12885826,-581.85,The Cambridge Nursing Centre,Care Establishment,2 - Commissioning - Older people Pool,Older People Mental Health City & South,Nursing Independent Sector
Cambridgeshire County Council,26-Feb-16,20030327-12885827,-581.85,The Cambridge Nursing Centre,Care Establishment,2 - Commissioning - Older people Pool,Older People Mental Health City & South,Nursing Independent Sector
Cambridgeshire County Council,26-Feb-16,20030328-12885828,-581.85,The Cambridge Nursing Centre,Care Establishment,2 - Commissioning - Older people Pool,Older People Mental Health City & South,Nursing Independent Sector
Cambridgeshire County Council,26-Feb-16,20030329-12885829,-581.85,The Cambridge Nursing Centre,Care Establishment,2 - Commissioning - Older people Pool,Older People Mental Health City & South,Nursing Independent Sector
Cambridgeshire County Council,26-Feb-16,20029038-12884202,-576.58,Atlas Home Support,Care Establishment,2 - Operations - Learning Disability,LDP City Locality - Care,Day and Domicillary Care Independent Sector
Cambridgeshire County Council,26-Feb-16,20029039-12884203,-576.58,Atlas Home Support,Care Establishment,2 - Operations - Learning Disability,LDP City Locality - Care,Day and Domicillary Care Independent Sector
Cambridgeshire County Council,26-Feb-16,20029042-12884206,-576.58,Atlas Home Support,Care Establishment,2 - Operations - Learning Disability,LDP City Locality - Care,Day and Domicillary Care Independent Sector
Cambridgeshire County Council,26-Feb-16,20029043-12884207,-576.58,Atlas Home Support,Care Establishment,2 - Operations - Learning Disability,LDP City Locality - Care,Day and Domicillary Care Independent Sector
Cambridgeshire County Council,26-Feb-16,20029044-12884208,-576.58,Atlas Home Support,Care Establishment,2 - Operations - Learning Disability,LDP City Locality - Care,Day and Domicillary Care Independent Sector
Cambridgeshire County Council,26-Feb-16,20029046-12884209,-576.58,Atlas Home Support,Care Establishment,2 - Operations - Learning Disability,LDP City Locality - Care,Day and Domicillary Care Independent Sector
Cambridgeshire County Council,26-Feb-16,20029048-12884211,-576.58,Atlas Home Support,Care Establishment,2 - Operations - Learning Disability,LDP City Locality - Care,Day and Domicillary Care Independent Sector
Cambridgeshire County Council,26-Feb-16,20029049-12884212,-576.58,Atlas Home Support,Care Establishment,2 - Operations - Learning Disability,LDP City Locality - Care,Day and Domicillary Care Independent Sector
Cambridgeshire County Council,26-Feb-16,20029051-12884214,-576.58,Atlas Home Support,Care Establishment,2 - Operations - Learning Disability,LDP City Locality - Care,Day and Domicillary Care Independent Sector
Cambridgeshire County Council,26-Feb-16,20029052-12884215,-576.58,Atlas Home Support,Care Establishment,2 - Operations - Learning Disability,LDP City Locality - Care,Day and Domicillary Care Independent Sector
Cambridgeshire County Council,26-Feb-16,20029054-12884217,-576.58,Atlas Home Support,Care Establishment,2 - Operations - Learning Disability,LDP City Locality - Care,Day and Domicillary Care Independent Sector
Cambridgeshire County Council,26-Feb-16,20029056-12884218,-576.58,Atlas Home Support,Care Establishment,2 - Operations - Learning Disability,LDP City Locality - Care,Day and Domicillary Care Independent Sector
Cambridgeshire County Council,26-Feb-16,20029061-12884223,-576.58,Atlas Home Support,Care Establishment,2 - Operations - Learning Disability,LDP City Locality - Care,Day and Domicillary Care Independent Sector
Cambridgeshire County Council,26-Feb-16,20029063-12884225,-576.58,Atlas Home Support,Care Establishment,2 - Operations - Learning Disability,LDP City Locality - Care,Day and Domicillary Care Independent Sector
Cambridgeshire County Council,26-Feb-16,20029064-12884226,-576.58,Atlas Home Support,Care Establishment,2 - Operations - Learning Disability,LDP City Locality - Care,Day and Domicillary Care Independent Sector
Cambridgeshire County Council,26-Feb-16,20029066-12884228,-576.58,Atlas Home Support,Care Establishment,2 - Operations - Learning Disability,LDP City Locality - Care,Day and Domicillary Care Independent Sector
Cambridgeshire County Council,26-Feb-16,20029068-12884230,-576.58,Atlas Home Support,Care Establishment,2 - Operations - Learning Disability,LDP City Locality - Care,Day and Domicillary Care Independent Sector
Cambridgeshire County Council,26-Feb-16,20029071-12884233,-576.58,Atlas Home Support,Care Establishment,2 - Operations - Learning Disability,LDP City Locality - Care,Day and Domicillary Care Independent Sector
Cambridgeshire County Council,26-Feb-16,20029073-12884235,-576.58,Atlas Home Support,Care Establishment,2 - Operations - Learning Disability,LDP City Locality - Care,Day and Domicillary Care Independent Sector
Cambridgeshire County Council,26-Feb-16,20029077-12884239,-576.58,Atlas Home Support,Care Establishment,2 - Operations - Learning Disability,LDP City Locality - Care,Day and Domicillary Care Independent Sector
Cambridgeshire County Council,26-Feb-16,20029079-12884240,-576.58,Atlas Home Support,Care Establishment,2 - Operations - Learning Disability,LDP City Locality - Care,Day and Domicillary Care Independent Sector
Cambridgeshire County Council,26-Feb-16,20029083-12884244,-576.58,Atlas Home Support,Care Establishment,2 - Operations - Learning Disability,LDP City Locality - Care,Day and Domicillary Care Independent Sector
Cambridgeshire County Council,26-Feb-16,20029088-12884249,-576.58,Atlas Home Support,Care Establishment,2 - Operations - Learning Disability,LDP City Locality - Care,Day and Domicillary Care Independent Sector
Cambridgeshire County Council,26-Feb-16,20029091-12884252,-576.58,Atlas Home Support,Care Establishment,2 - Operations - Learning Disability,LDP City Locality - Care,Day and Domicillary Care Independent Sector
Cambridgeshire County Council,26-Feb-16,20029092-12884253,-576.58,Atlas Home Support,Care Establishment,2 - Operations - Learning Disability,LDP City Locality - Care,Day and Domicillary Care Independent Sector
Cambridgeshire County Council,26-Feb-16,20029093-12884254,-576.58,Atlas Home Support,Care Establishment,2 - Operations - Learning Disability,LDP City Locality - Care,Day and Domicillary Care Independent Sector
Cambridgeshire County Council,26-Feb-16,20029094-12884255,-576.58,Atlas Home Support,Care Establishment,2 - Operations - Learning Disability,LDP City Locality - Care,Day and Domicillary Care Independent Sector
Cambridgeshire County Council,26-Feb-16,20029096-12884257,-576.58,Atlas Home Support,Care Establishment,2 - Operations - Learning Disability,LDP City Locality - Care,Day and Domicillary Care Independent Sector
Cambridgeshire County Council,26-Feb-16,20029097-12884258,-576.58,Atlas Home Support,Care Establishment,2 - Operations - Learning Disability,LDP City Locality - Care,Day and Domicillary Care Independent Sector
Cambridgeshire County Council,26-Feb-16,20029101-12884262,-576.58,Atlas Home Support,Care Establishment,2 - Operations - Learning Disability,LDP City Locality - Care,Day and Domicillary Care Independent Sector
Cambridgeshire County Council,26-Feb-16,20029103-12884264,-576.58,Atlas Home Support,Care Establishment,2 - Operations - Learning Disability,LDP City Locality - Care,Day and Domicillary Care Independent Sector
Cambridgeshire County Council,26-Feb-16,20029107-12884268,-576.58,Atlas Home Support,Care Establishment,2 - Operations - Learning Disability,LDP City Locality - Care,Day and Domicillary Care Independent Sector
Cambridgeshire County Council,26-Feb-16,20029108-12884269,-576.58,Atlas Home Support,Care Establishment,2 - Operations - Learning Disability,LDP City Locality - Care,Day and Domicillary Care Independent Sector
Cambridgeshire County Council,26-Feb-16,20029109-12884270,-576.58,Atlas Home Support,Care Establishment,2 - Operations - Learning Disability,LDP City Locality - Care,Day and Domicillary Care Independent Sector
Cambridgeshire County Council,26-Feb-16,20029110-12884271,-576.58,Atlas Home Support,Care Establishment,2 - Operations - Learning Disability,LDP City Locality - Care,Day and Domicillary Care Independent Sector
Cambridgeshire County Council,26-Feb-16,20029111-12884272,-576.58,Atlas Home Support,Care Establishment,2 - Operations - Learning Disability,LDP City Locality - Care,Day and Domicillary Care Independent Sector
Cambridgeshire County Council,26-Feb-16,20032265-12884188,-576.58,Atlas Home Support,Care Establishment,2 - Operations - Learning Disability,LDP City Locality - Care,Day and Domicillary Care Independent Sector
Cambridgeshire County Council,26-Feb-16,20032266-12884189,-576.58,Atlas Home Support,Care Establishment,2 - Operations - Learning Disability,LDP City Locality - Care,Day and Domicillary Care Independent Sector
Cambridgeshire County Council,26-Feb-16,20032271-12884193,-576.58,Atlas Home Support,Care Establishment,2 - Operations - Learning Disability,LDP City Locality - Care,Day and Domicillary Care Independent Sector
Cambridgeshire County Council,26-Feb-16,20032272-12884194,-576.58,Atlas Home Support,Care Establishment,2 - Operations - Learning Disability,LDP City Locality - Care,Day and Domicillary Care Independent Sector
Cambridgeshire County Council,26-Feb-16,20032273-12884195,-576.58,Atlas Home Support,Care Establishment,2 - Operations - Learning Disability,LDP City Locality - Care,Day and Domicillary Care Independent Sector
Cambridgeshire County Council,26-Feb-16,20032274-12884196,-576.58,Atlas Home Support,Care Establishment,2 - Operations - Learning Disability,LDP City Locality - Care,Day and Domicillary Care Independent Sector
Cambridgeshire County Council,26-Feb-16,20032275-12884197,-576.58,Atlas Home Support,Care Establishment,2 - Operations - Learning Disability,LDP City Locality - Care,Day and Domicillary Care Independent Sector
Cambridgeshire County Council,26-Feb-16,20032277-12884199,-576.58,Atlas Home Support,Care Establishment,2 - Operations - Learning Disability,LDP City Locality - Care,Day and Domicillary Care Independent Sector
Cambridgeshire County Council,11-Feb-16,19978458-12815400,-576.4,Buchan Healthcare Ltd,Care Establishment,2 - Commissioning - Older people Pool,Older People - City & South,Residential Independent Sector
Cambridgeshire County Council,11-Feb-16,19978479-12815391,-576.4,Buchan Healthcare Ltd,Care Establishment,2 - Commissioning - Older people Pool,Older People - City & South,Residential Independent Sector
Cambridgeshire County Council,04-Feb-16,19909886-12783786,-570.05,Caretech Community Services,Care Establishment,2 - Operations - Learning Disability,LDP Huntingdonshire Locality - Care,Residential Independent Sector
Cambridgeshire County Council,26-Feb-16,20057393-12883516,-558.54,Cherry Hinton Nursing Home,Care Establishment,2 - Commissioning - Older people Pool,Older People Mental Health City & South,Nursing Independent Sector
Cambridgeshire County Council,26-Feb-16,20057394-12883517,-558.54,Cherry Hinton Nursing Home,Care Establishment,2 - Commissioning - Older people Pool,Older People Mental Health City & South,Nursing Independent Sector
Cambridgeshire County Council,26-Feb-16,20057396-12883519,-558.54,Cherry Hinton Nursing Home,Care Establishment,2 - Commissioning - Older people Pool,Older People Mental Health City & South,Nursing Independent Sector
Cambridgeshire County Council,26-Feb-16,20057397-12883520,-558.54,Cherry Hinton Nursing Home,Care Establishment,2 - Commissioning - Older people Pool,Older People Mental Health City & South,Nursing Independent Sector
Cambridgeshire County Council,11-Feb-16,19908389-12814767,-556.95,Barchester Healthcare Homes Ltd,Care Establishment,2 - Commissioning - Older people Pool,Older People - City & South,Nursing Independent Sector
Cambridgeshire County Council,11-Feb-16,19908390-12814768,-556.95,Barchester Healthcare Homes Ltd,Care Establishment,2 - Commissioning - Older people Pool,Older People - City & South,Nursing Independent Sector
Cambridgeshire County Council,11-Feb-16,19908391-12814769,-556.95,Barchester Healthcare Homes Ltd,Care Establishment,2 - Commissioning - Older people Pool,Older People - City & South,Nursing Independent Sector
Cambridgeshire County Council,11-Feb-16,19908392-12814770,-556.95,Barchester Healthcare Homes Ltd,Care Establishment,2 - Commissioning - Older people Pool,Older People - City & South,Nursing Independent Sector
Cambridgeshire County Council,11-Feb-16,19908398-12814776,-556.95,Barchester Healthcare Homes Ltd,Care Establishment,2 - Commissioning - Older people Pool,Older People - City & South,Nursing Independent Sector
Cambridgeshire County Council,11-Feb-16,19908399-12814777,-556.95,Barchester Healthcare Homes Ltd,Care Establishment,2 - Commissioning - Older people Pool,Older People - City & South,Nursing Independent Sector
Cambridgeshire County Council,11-Feb-16,19908400-12814778,-556.95,Barchester Healthcare Homes Ltd,Care Establishment,2 - Commissioning - Older people Pool,Older People - City & South,Nursing Independent Sector
Cambridgeshire County Council,19-Feb-16,20031327-12860019,-550,Woodlands Care Centre,Care Establishment,2 - Commissioning - Older people Pool,Older People - City & South,Nursing Independent Sector
Cambridgeshire County Council,19-Feb-16,20031328-12860020,-550,Woodlands Care Centre,Care Establishment,2 - Commissioning - Older people Pool,Older People - City & South,Nursing Independent Sector
Cambridgeshire County Council,19-Feb-16,20031329-12860021,-550,Woodlands Care Centre,Care Establishment,2 - Commissioning - Older people Pool,Older People - City & South,Nursing Independent Sector
Cambridgeshire County Council,19-Feb-16,20031330-12860022,-550,Woodlands Care Centre,Care Establishment,2 - Commissioning - Older people Pool,Older People - City & South,Nursing Independent Sector
Cambridgeshire County Council,11-Feb-16,19978648-12816517,-539.76,Tony Stocks T/A Guyatt House,Care Establishment,2 - Operations - Learning Disability,LDP E Cambs Locality - Care,SDS - Care and support Services
Cambridgeshire County Council,04-Feb-16,19907578-12792467,-536.25,Bna Goldsborough Peterborough,Care Establishment,3 - Operations - Countywide Services,Countywide PD Service - Care,Day and Domicillary Care Independent Sector
Cambridgeshire County Council,26-Feb-16,20059529-12884861,-535,Aliwal Healthcare Ltd,Care Establishment,2 - Commissioning - Older people Pool,Older People - Fenland,Residential Independent Sector
Cambridgeshire County Council,26-Feb-16,20059531-12884863,-535,Aliwal Healthcare Ltd,Care Establishment,2 - Commissioning - Older people Pool,Older People - Fenland,Residential Independent Sector
Cambridgeshire County Council,26-Feb-16,20059533-12884864,-535,Aliwal Healthcare Ltd,Care Establishment,2 - Commissioning - Older people Pool,Older People - Fenland,Residential Independent Sector
Cambridgeshire County Council,26-Feb-16,20059535-12884866,-535,Aliwal Healthcare Ltd,Care Establishment,2 - Commissioning - Older people Pool,Older People - Fenland,Residential Independent Sector
Cambridgeshire County Council,26-Feb-16,20059538-12884869,-535,Aliwal Healthcare Ltd,Care Establishment,2 - Commissioning - Older people Pool,Older People - Fenland,Residential Independent Sector
Cambridgeshire County Council,26-Feb-16,20059540-12884871,-535,Aliwal Healthcare Ltd,Care Establishment,2 - Commissioning - Older people Pool,Older People - Fenland,Residential Independent Sector
Cambridgeshire County Council,26-Feb-16,20059541-12884872,-535,Aliwal Healthcare Ltd,Care Establishment,2 - Commissioning - Older people Pool,Older People - Fenland,Residential Independent Sector
Cambridgeshire County Council,26-Feb-16,20059543-12884874,-535,Aliwal Healthcare Ltd,Care Establishment,2 - Commissioning - Older people Pool,Older People - Fenland,Residential Independent Sector
Cambridgeshire County Council,26-Feb-16,20059544-12884875,-535,Aliwal Healthcare Ltd,Care Establishment,2 - Commissioning - Older people Pool,Older People - Fenland,Residential Independent Sector
Cambridgeshire County Council,26-Feb-16,20059545-12884876,-535,Aliwal Healthcare Ltd,Care Establishment,2 - Commissioning - Older people Pool,Older People - Fenland,Residential Independent Sector
Cambridgeshire County Council,26-Feb-16,20059546-12884877,-535,Aliwal Healthcare Ltd,Care Establishment,2 - Commissioning - Older people Pool,Older People - Fenland,Residential Independent Sector
Cambridgeshire County Council,26-Feb-16,20059547-12884878,-535,Aliwal Healthcare Ltd,Care Establishment,2 - Commissioning - Older people Pool,Older People - Fenland,Residential Independent Sector
Cambridgeshire County Council,26-Feb-16,20059555-12884886,-535,Aliwal Healthcare Ltd,Care Establishment,2 - Commissioning - Older people Pool,Older People - Fenland,Residential Independent Sector
Cambridgeshire County Council,26-Feb-16,20059557-12884888,-535,Aliwal Healthcare Ltd,Care Establishment,2 - Commissioning - Older people Pool,Older People - Fenland,Residential Independent Sector
Cambridgeshire County Council,26-Feb-16,20059562-12884892,-535,Aliwal Healthcare Ltd,Care Establishment,2 - Commissioning - Older people Pool,Older People - Fenland,Residential Independent Sector
Cambridgeshire County Council,26-Feb-16,20059565-12884895,-535,Aliwal Healthcare Ltd,Care Establishment,2 - Commissioning - Older people Pool,Older People Mental Health Fenland,Residential Independent Sector
Cambridgeshire County Council,26-Feb-16,20059566-12884896,-535,Aliwal Healthcare Ltd,Care Establishment,2 - Commissioning - Older people Pool,Older People - Fenland,Residential Independent Sector
Cambridgeshire County Council,26-Feb-16,20059912-12884815,-535,Aliwal Healthcare Ltd,Care Establishment,2 - Commissioning - Older people Pool,Older People - Fenland,Residential Independent Sector
Cambridgeshire County Council,26-Feb-16,20059913-12884816,-535,Aliwal Healthcare Ltd,Care Establishment,2 - Commissioning - Older people Pool,Older People - Fenland,Residential Independent Sector
Cambridgeshire County Council,26-Feb-16,20059914-12884817,-535,Aliwal Healthcare Ltd,Care Establishment,2 - Commissioning - Older people Pool,Older People - Fenland,Residential Independent Sector
Cambridgeshire County Council,26-Feb-16,20059915-12884818,-535,Aliwal Healthcare Ltd,Care Establishment,2 - Commissioning - Older people Pool,Older People - Fenland,Residential Independent Sector
Cambridgeshire County Council,26-Feb-16,20059917-12884820,-535,Aliwal Healthcare Ltd,Care Establishment,2 - Commissioning - Older people Pool,Older People - Fenland,Residential Independent Sector
Cambridgeshire County Council,26-Feb-16,20059919-12884822,-535,Aliwal Healthcare Ltd,Care Establishment,2 - Commissioning - Older people Pool,Older People - Fenland,Residential Independent Sector
Cambridgeshire County Council,26-Feb-16,20059927-12884827,-535,Aliwal Healthcare Ltd,Care Establishment,2 - Commissioning - Older people Pool,Older People Mental Health Fenland,Residential Independent Sector
Cambridgeshire County Council,26-Feb-16,20059928-12884828,-535,Aliwal Healthcare Ltd,Care Establishment,2 - Commissioning - Older people Pool,Older People Mental Health Fenland,Residential Independent Sector
Cambridgeshire County Council,26-Feb-16,20059936-12884834,-535,Aliwal Healthcare Ltd,Care Establishment,2 - Commissioning - Older people Pool,Older People Mental Health Fenland,Residential Independent Sector
Cambridgeshire County Council,26-Feb-16,20059938-12884836,-535,Aliwal Healthcare Ltd,Care Establishment,2 - Commissioning - Older people Pool,Older People - Fenland,Residential Independent Sector
Cambridgeshire County Council,26-Feb-16,20059939-12884837,-535,Aliwal Healthcare Ltd,Care Establishment,2 - Commissioning - Older people Pool,Older People - Fenland,Residential Independent Sector
Cambridgeshire County Council,26-Feb-16,20059940-12884838,-535,Aliwal Healthcare Ltd,Care Establishment,2 - Commissioning - Older people Pool,Older People - Fenland,Residential Independent Sector
Cambridgeshire County Council,26-Feb-16,20059943-12884840,-535,Aliwal Healthcare Ltd,Care Establishment,2 - Commissioning - Older people Pool,Older People - Fenland,Residential Independent Sector
Cambridgeshire County Council,26-Feb-16,20059944-12884841,-535,Aliwal Healthcare Ltd,Care Establishment,2 - Commissioning - Older people Pool,Older People - Fenland,Residential Independent Sector
Cambridgeshire County Council,26-Feb-16,20059945-12884842,-535,Aliwal Healthcare Ltd,Care Establishment,2 - Commissioning - Older people Pool,Older People - Fenland,Residential Independent Sector
Cambridgeshire County Council,26-Feb-16,20059949-12884846,-535,Aliwal Healthcare Ltd,Care Establishment,2 - Commissioning - Older people Pool,Older People - Fenland,Residential Independent Sector
Cambridgeshire County Council,26-Feb-16,20059953-12884849,-535,Aliwal Healthcare Ltd,Care Establishment,2 - Commissioning - Older people Pool,Older People - Fenland,Residential Independent Sector
Cambridgeshire County Council,26-Feb-16,20059955-12884850,-535,Aliwal Healthcare Ltd,Care Establishment,2 - Commissioning - Older people Pool,Older People Mental Health Fenland,Residential Independent Sector
Cambridgeshire County Council,26-Feb-16,20059956-12884851,-535,Aliwal Healthcare Ltd,Care Establishment,2 - Commissioning - Older people Pool,Older People Mental Health Fenland,Residential Independent Sector
Cambridgeshire County Council,26-Feb-16,20059958-12884853,-535,Aliwal Healthcare Ltd,Care Establishment,2 - Commissioning - Older people Pool,Older People - Fenland,Residential Independent Sector
Cambridgeshire County Council,26-Feb-16,20059959-12884854,-535,Aliwal Healthcare Ltd,Care Establishment,2 - Commissioning - Older people Pool,Older People - Fenland,Residential Independent Sector
Cambridgeshire County Council,26-Feb-16,20059962-12884857,-535,Aliwal Healthcare Ltd,Care Establishment,2 - Commissioning - Older people Pool,Older People - Fenland,Residential Independent Sector
Cambridgeshire County Council,26-Feb-16,20059963-12884858,-535,Aliwal Healthcare Ltd,Care Establishment,2 - Commissioning - Older people Pool,Older People - Fenland,Residential Independent Sector
Cambridgeshire County Council,26-Feb-16,20060508-12882099,-535,Glennfield Care Centre (Op),Care Establishment,2 - Commissioning - Older people Pool,Older People - Fenland,Residential Independent Sector
Cambridgeshire County Council,26-Feb-16,20060510-12882101,-535,Glennfield Care Centre (Op),Care Establishment,2 - Commissioning - Older people Pool,Older People - Fenland,Residential Independent Sector
Cambridgeshire County Council,26-Feb-16,20060513-12882104,-535,Glennfield Care Centre (Op),Care Establishment,2 - Commissioning - Older people Pool,Older People - Fenland,Residential Independent Sector
Cambridgeshire County Council,26-Feb-16,20060514-12882105,-535,Glennfield Care Centre (Op),Care Establishment,2 - Commissioning - Older people Pool,Older People - Fenland,Residential Independent Sector
Cambridgeshire County Council,26-Feb-16,20060516-12882107,-535,Glennfield Care Centre (Op),Care Establishment,2 - Commissioning - Older people Pool,Older People - Fenland,Residential Independent Sector
Cambridgeshire County Council,26-Feb-16,20060520-12882109,-535,Glennfield Care Centre (Op),Care Establishment,2 - Commissioning - Older people Pool,Older People - Fenland,Residential Independent Sector
Cambridgeshire County Council,26-Feb-16,20060523-12882112,-535,Glennfield Care Centre (Op),Care Establishment,2 - Commissioning - Older people Pool,Older People - Fenland,Residential Independent Sector
Cambridgeshire County Council,26-Feb-16,20060524-12882113,-535,Glennfield Care Centre (Op),Care Establishment,2 - Commissioning - Older people Pool,Older People - Fenland,Residential Independent Sector
Cambridgeshire County Council,26-Feb-16,20060526-12882115,-535,Glennfield Care Centre (Op),Care Establishment,2 - Commissioning - Older people Pool,Older People - Fenland,Residential Independent Sector
Cambridgeshire County Council,26-Feb-16,20060527-12882116,-535,Glennfield Care Centre (Op),Care Establishment,2 - Commissioning - Older people Pool,Older People - Fenland,Residential Independent Sector
Cambridgeshire County Council,26-Feb-16,20061373-12882031,-535,Glennfield Care Centre (Op),Care Establishment,2 - Commissioning - Older people Pool,Older People - Fenland,Residential Independent Sector
Cambridgeshire County Council,26-Feb-16,20061376-12882034,-535,Glennfield Care Centre (Op),Care Establishment,2 - Commissioning - Older people Pool,Older People - Fenland,Residential Independent Sector
Cambridgeshire County Council,26-Feb-16,20061377-12882035,-535,Glennfield Care Centre (Op),Care Establishment,2 - Commissioning - Older people Pool,Older People - Fenland,Residential Independent Sector
Cambridgeshire County Council,26-Feb-16,20061379-12882036,-535,Glennfield Care Centre (Op),Care Establishment,2 - Commissioning - Older people Pool,Older People - Fenland,Residential Independent Sector
Cambridgeshire County Council,26-Feb-16,20061383-12882037,-535,Glennfield Care Centre (Op),Care Establishment,2 - Commissioning - Older people Pool,Older People - Fenland,Residential Independent Sector
Cambridgeshire County Council,26-Feb-16,20061384-12882038,-535,Glennfield Care Centre (Op),Care Establishment,2 - Commissioning - Older people Pool,Older People - Fenland,Residential Independent Sector
Cambridgeshire County Council,26-Feb-16,20061398-12882049,-535,Glennfield Care Centre (Op),Care Establishment,2 - Commissioning - Older people Pool,Older People - Fenland,Residential Independent Sector
Cambridgeshire County Council,26-Feb-16,20061400-12882051,-535,Glennfield Care Centre (Op),Care Establishment,2 - Commissioning - Older people Pool,Older People - Fenland,Residential Independent Sector
Cambridgeshire County Council,26-Feb-16,20061405-12882055,-535,Glennfield Care Centre (Op),Care Establishment,2 - Commissioning - Older people Pool,Older People - Fenland,Residential Independent Sector
Cambridgeshire County Council,26-Feb-16,20061407-12882057,-535,Glennfield Care Centre (Op),Care Establishment,2 - Commissioning - Older people Pool,Older People - Fenland,Residential Independent Sector
Cambridgeshire County Council,26-Feb-16,20061408-12882058,-535,Glennfield Care Centre (Op),Care Establishment,2 - Commissioning - Older people Pool,Older People - Fenland,Residential Independent Sector
Cambridgeshire County Council,26-Feb-16,20061413-12882061,-535,Glennfield Care Centre (Op),Care Establishment,2 - Commissioning - Older people Pool,Older People - Fenland,Residential Independent Sector
Cambridgeshire County Council,26-Feb-16,20061414-12882062,-535,Glennfield Care Centre (Op),Care Establishment,2 - Commissioning - Older people Pool,Older People - Fenland,Residential Independent Sector
Cambridgeshire County Council,26-Feb-16,20061415-12882063,-535,Glennfield Care Centre (Op),Care Establishment,2 - Commissioning - Older people Pool,Older People - Fenland,Residential Independent Sector
Cambridgeshire County Council,26-Feb-16,20061416-12882064,-535,Glennfield Care Centre (Op),Care Establishment,2 - Commissioning - Older people Pool,Older People - Fenland,Residential Independent Sector
Cambridgeshire County Council,26-Feb-16,20061420-12882065,-535,Glennfield Care Centre (Op),Care Establishment,2 - Commissioning - Older people Pool,Older People - Fenland,Residential Independent Sector
Cambridgeshire County Council,26-Feb-16,20061421-12882066,-535,Glennfield Care Centre (Op),Care Establishment,2 - Commissioning - Older people Pool,Older People - Fenland,Residential Independent Sector
Cambridgeshire County Council,26-Feb-16,20061422-12882067,-535,Glennfield Care Centre (Op),Care Establishment,2 - Commissioning - Older people Pool,Older People - Fenland,Residential Independent Sector
Cambridgeshire County Council,26-Feb-16,20061425-12882069,-535,Glennfield Care Centre (Op),Care Establishment,2 - Commissioning - Older people Pool,Older People - Fenland,Residential Independent Sector
Cambridgeshire County Council,26-Feb-16,20061426-12882070,-535,Glennfield Care Centre (Op),Care Establishment,2 - Commissioning - Older people Pool,Older People - Fenland,Residential Independent Sector
Cambridgeshire County Council,26-Feb-16,20061428-12882072,-535,Glennfield Care Centre (Op),Care Establishment,2 - Commissioning - Older people Pool,Older People - Fenland,Residential Independent Sector
Cambridgeshire County Council,26-Feb-16,20061430-12882074,-535,Glennfield Care Centre (Op),Care Establishment,2 - Commissioning - Older people Pool,Older People - Fenland,Residential Independent Sector
Cambridgeshire County Council,26-Feb-16,20061431-12882075,-535,Glennfield Care Centre (Op),Care Establishment,2 - Commissioning - Older people Pool,Older People - Fenland,Residential Independent Sector
Cambridgeshire County Council,26-Feb-16,20061434-12882078,-535,Glennfield Care Centre (Op),Care Establishment,2 - Commissioning - Older people Pool,Older People - Fenland,Residential Independent Sector
Cambridgeshire County Council,26-Feb-16,20061437-12882080,-535,Glennfield Care Centre (Op),Care Establishment,2 - Commissioning - Older people Pool,Older People - Fenland,Residential Independent Sector
Cambridgeshire County Council,26-Feb-16,20061441-12882082,-535,Glennfield Care Centre (Op),Care Establishment,2 - Commissioning - Older people Pool,Older People - Fenland,Residential Independent Sector
Cambridgeshire County Council,26-Feb-16,20061444-12882085,-535,Glennfield Care Centre (Op),Care Establishment,2 - Commissioning - Older people Pool,Older People - Fenland,Residential Independent Sector
Cambridgeshire County Council,26-Feb-16,20061445-12882086,-535,Glennfield Care Centre (Op),Care Establishment,2 - Commissioning - Older people Pool,Older People - Fenland,Residential Independent Sector
Cambridgeshire County Council,26-Feb-16,20061448-12882088,-535,Glennfield Care Centre (Op),Care Establishment,2 - Commissioning - Older people Pool,Older People - Fenland,Residential Independent Sector
Cambridgeshire County Council,26-Feb-16,20061449-12882089,-535,Glennfield Care Centre (Op),Care Establishment,2 - Commissioning - Older people Pool,Older People - Fenland,Residential Independent Sector
Cambridgeshire County Council,26-Feb-16,20061453-12882090,-535,Glennfield Care Centre (Op),Care Establishment,2 - Commissioning - Older people Pool,Older People - Fenland,Residential Independent Sector
Cambridgeshire County Council,26-Feb-16,20061457-12882094,-535,Glennfield Care Centre (Op),Care Establishment,2 - Commissioning - Older people Pool,Older People - Fenland,Residential Independent Sector
Cambridgeshire County Council,26-Feb-16,20061460-12882097,-535,Glennfield Care Centre (Op),Care Establishment,2 - Commissioning - Older people Pool,Older People - Fenland,Residential Independent Sector
Cambridgeshire County Council,26-Feb-16,20061774-12881965,-535,Glennfield Care Centre (Op),Care Establishment,2 - Commissioning - Older people Pool,Older People - Fenland,Residential Independent Sector
Cambridgeshire County Council,26-Feb-16,20061776-12881967,-535,Glennfield Care Centre (Op),Care Establishment,2 - Commissioning - Older people Pool,Older People - Fenland,Residential Independent Sector
Cambridgeshire County Council,26-Feb-16,20061782-12881973,-535,Glennfield Care Centre (Op),Care Establishment,2 - Commissioning - Older people Pool,Older People - Fenland,Residential Independent Sector
Cambridgeshire County Council,26-Feb-16,20061783-12881974,-535,Glennfield Care Centre (Op),Care Establishment,2 - Commissioning - Older people Pool,Older People - Fenland,Residential Independent Sector
Cambridgeshire County Council,26-Feb-16,20061784-12881975,-535,Glennfield Care Centre (Op),Care Establishment,2 - Commissioning - Older people Pool,Older People - Fenland,Residential Independent Sector
Cambridgeshire County Council,26-Feb-16,20061786-12881977,-535,Glennfield Care Centre (Op),Care Establishment,2 - Commissioning - Older people Pool,Older People - Fenland,Residential Independent Sector
Cambridgeshire County Council,26-Feb-16,20061787-12881978,-535,Glennfield Care Centre (Op),Care Establishment,2 - Commissioning - Older people Pool,Older People - Fenland,Residential Independent Sector
Cambridgeshire County Council,26-Feb-16,20061793-12881984,-535,Glennfield Care Centre (Op),Care Establishment,2 - Commissioning - Older people Pool,Older People - Fenland,Residential Independent Sector
Cambridgeshire County Council,26-Feb-16,20061797-12881988,-535,Glennfield Care Centre (Op),Care Establishment,2 - Commissioning - Older people Pool,Older People - Fenland,Residential Independent Sector
Cambridgeshire County Council,26-Feb-16,20061799-12881990,-535,Glennfield Care Centre (Op),Care Establishment,2 - Commissioning - Older people Pool,Older People - Fenland,Residential Independent Sector
Cambridgeshire County Council,26-Feb-16,20061801-12881992,-535,Glennfield Care Centre (Op),Care Establishment,2 - Commissioning - Older people Pool,Older People - Fenland,Residential Independent Sector
Cambridgeshire County Council,26-Feb-16,20061803-12881994,-535,Glennfield Care Centre (Op),Care Establishment,2 - Commissioning - Older people Pool,Older People - Fenland,Residential Independent Sector
Cambridgeshire County Council,26-Feb-16,20061804-12881995,-535,Glennfield Care Centre (Op),Care Establishment,2 - Commissioning - Older people Pool,Older People - Fenland,Residential Independent Sector
Cambridgeshire County Council,26-Feb-16,20061805-12881996,-535,Glennfield Care Centre (Op),Care Establishment,2 - Commissioning - Older people Pool,Older People - Fenland,Residential Independent Sector
Cambridgeshire County Council,26-Feb-16,20061808-12881999,-535,Glennfield Care Centre (Op),Care Establishment,2 - Commissioning - Older people Pool,Older People - Fenland,Residential Independent Sector
Cambridgeshire County Council,26-Feb-16,20061816-12882007,-535,Glennfield Care Centre (Op),Care Establishment,2 - Commissioning - Older people Pool,Older People - Fenland,Residential Independent Sector
Cambridgeshire County Council,26-Feb-16,20061817-12882008,-535,Glennfield Care Centre (Op),Care Establishment,2 - Commissioning - Older people Pool,Older People - Fenland,Residential Independent Sector
Cambridgeshire County Council,26-Feb-16,20061821-12882012,-535,Glennfield Care Centre (Op),Care Establishment,2 - Commissioning - Older people Pool,Older People - Fenland,Residential Independent Sector
Cambridgeshire County Council,26-Feb-16,20061822-12882013,-535,Glennfield Care Centre (Op),Care Establishment,2 - Commissioning - Older people Pool,Older People - Fenland,Residential Independent Sector
Cambridgeshire County Council,26-Feb-16,20061823-12882014,-535,Glennfield Care Centre (Op),Care Establishment,2 - Commissioning - Older people Pool,Older People - Fenland,Residential Independent Sector
Cambridgeshire County Council,26-Feb-16,20061825-12882016,-535,Glennfield Care Centre (Op),Care Establishment,2 - Commissioning - Older people Pool,Older People - Fenland,Residential Independent Sector
Cambridgeshire County Council,26-Feb-16,20061826-12882017,-535,Glennfield Care Centre (Op),Care Establishment,2 - Commissioning - Older people Pool,Older People - Fenland,Residential Independent Sector
Cambridgeshire County Council,26-Feb-16,20061827-12882018,-535,Glennfield Care Centre (Op),Care Establishment,2 - Commissioning - Older people Pool,Older People - Fenland,Residential Independent Sector
Cambridgeshire County Council,26-Feb-16,20061829-12882020,-535,Glennfield Care Centre (Op),Care Establishment,2 - Commissioning - Older people Pool,Older People - Fenland,Residential Independent Sector
Cambridgeshire County Council,26-Feb-16,20061832-12882023,-535,Glennfield Care Centre (Op),Care Establishment,2 - Commissioning - Older people Pool,Older People - Fenland,Residential Independent Sector
Cambridgeshire County Council,26-Feb-16,20061833-12882024,-535,Glennfield Care Centre (Op),Care Establishment,2 - Commissioning - Older people Pool,Older People - Fenland,Residential Independent Sector
Cambridgeshire County Council,26-Feb-16,20061834-12882025,-535,Glennfield Care Centre (Op),Care Establishment,2 - Commissioning - Older people Pool,Older People - Fenland,Residential Independent Sector
Cambridgeshire County Council,26-Feb-16,20061835-12882026,-535,Glennfield Care Centre (Op),Care Establishment,2 - Commissioning - Older people Pool,Older People - Fenland,Residential Independent Sector
Cambridgeshire County Council,26-Feb-16,20061836-12882027,-535,Glennfield Care Centre (Op),Care Establishment,2 - Commissioning - Older people Pool,Older People - Fenland,Residential Independent Sector
Cambridgeshire County Council,26-Feb-16,20061837-12882028,-535,Glennfield Care Centre (Op),Care Establishment,2 - Commissioning - Older people Pool,Older People - Fenland,Residential Independent Sector
Cambridgeshire County Council,04-Feb-16,19911265-12777463,-534.88,Mihomecare Ltd (Fenland Premier Care),Care Establishment,2 - Commissioning - Older people Pool,East Cambs - O P Team,Day and Domicillary Care Independent Sector
Cambridgeshire County Council,04-Feb-16,19911267-12777465,-534.88,Mihomecare Ltd (Fenland Premier Care),Care Establishment,2 - Commissioning - Older people Pool,East Cambs - O P Team,Day and Domicillary Care Independent Sector
Cambridgeshire County Council,04-Feb-16,19911268-12777466,-534.88,Mihomecare Ltd (Fenland Premier Care),Care Establishment,2 - Commissioning - Older people Pool,East Cambs - O P Team,Day and Domicillary Care Independent Sector
Cambridgeshire County Council,04-Feb-16,19911276-12777474,-534.88,Mihomecare Ltd (Fenland Premier Care),Care Establishment,2 - Commissioning - Older people Pool,East Cambs - O P Team,Day and Domicillary Care Independent Sector
Cambridgeshire County Council,04-Feb-16,19911277-12777475,-534.88,Mihomecare Ltd (Fenland Premier Care),Care Establishment,2 - Commissioning - Older people Pool,East Cambs - O P Team,Day and Domicillary Care Independent Sector
Cambridgeshire County Council,04-Feb-16,19911278-12777476,-534.88,Mihomecare Ltd (Fenland Premier Care),Care Establishment,2 - Commissioning - Older people Pool,East Cambs - O P Team,Day and Domicillary Care Independent Sector
Cambridgeshire County Council,04-Feb-16,19940419-12769536,-532.2,Heron House,Care Establishment,2 - Commissioning - Older people Pool,Older People Mental Health E Cambs,Nursing Independent Sector
Cambridgeshire County Council,04-Feb-16,19940423-12769537,-532.2,Heron House,Care Establishment,2 - Commissioning - Older people Pool,Older People Mental Health E Cambs,Nursing Independent Sector
Cambridgeshire County Council,04-Feb-16,19940427-12769538,-532.2,Heron House,Care Establishment,2 - Commissioning - Older people Pool,Older People Mental Health E Cambs,Nursing Independent Sector
Cambridgeshire County Council,04-Feb-16,19949247-12769476,-532.2,Heron House,Care Establishment,2 - Commissioning - Older people Pool,Older People Mental Health E Cambs,Nursing Independent Sector
Cambridgeshire County Council,04-Feb-16,19949249-12769478,-532.2,Heron House,Care Establishment,2 - Commissioning - Older people Pool,Older People Mental Health E Cambs,Nursing Independent Sector
Cambridgeshire County Council,04-Feb-16,19949250-12769479,-532.2,Heron House,Care Establishment,2 - Commissioning - Older people Pool,Older People Mental Health E Cambs,Nursing Independent Sector
Cambridgeshire County Council,04-Feb-16,19949251-12769480,-532.2,Heron House,Care Establishment,2 - Commissioning - Older people Pool,Older People Mental Health E Cambs,Nursing Independent Sector
Cambridgeshire County Council,04-Feb-16,19949253-12769482,-532.2,Heron House,Care Establishment,2 - Commissioning - Older people Pool,Older People Mental Health E Cambs,Nursing Independent Sector
Cambridgeshire County Council,04-Feb-16,19949256-12769485,-532.2,Heron House,Care Establishment,2 - Commissioning - Older people Pool,Older People Mental Health E Cambs,Nursing Independent Sector
Cambridgeshire County Council,04-Feb-16,19949258-12769487,-532.2,Heron House,Care Establishment,2 - Commissioning - Older people Pool,Older People Mental Health E Cambs,Nursing Independent Sector
Cambridgeshire County Council,11-Feb-16,19977929-12816602,-531.01,Ringshill Care Home,Care Establishment,2 - Commissioning - Older people Pool,Older People Mental Health Hunts,Nursing Independent Sector
Cambridgeshire County Council,04-Feb-16,19886606-12775372,-529.38,Orchard House (Sawston),Care Establishment,2 - Commissioning - Older people Pool,Older People - City & South,Residential Independent Sector
Cambridgeshire County Council,04-Feb-16,19886607-12775373,-529.38,Orchard House (Sawston),Care Establishment,2 - Commissioning - Older people Pool,Older People - City & South,Residential Independent Sector
Cambridgeshire County Council,04-Feb-16,19886609-12775375,-529.38,Orchard House (Sawston),Care Establishment,2 - Commissioning - Older people Pool,Older People - City & South,Residential Independent Sector
Cambridgeshire County Council,04-Feb-16,19886610-12775376,-529.38,Orchard House (Sawston),Care Establishment,2 - Commissioning - Older people Pool,Older People - City & South,Residential Independent Sector
Cambridgeshire County Council,04-Feb-16,19886612-12775377,-529.38,Orchard House (Sawston),Care Establishment,2 - Commissioning - Older people Pool,Older People - City & South,Residential Independent Sector
Cambridgeshire County Council,04-Feb-16,19886613-12775378,-529.38,Orchard House (Sawston),Care Establishment,2 - Commissioning - Older people Pool,Older People - City & South,Residential Independent Sector
Cambridgeshire County Council,04-Feb-16,19886615-12775380,-529.38,Orchard House (Sawston),Care Establishment,2 - Commissioning - Older people Pool,Older People - City & South,Residential Independent Sector
Cambridgeshire County Council,04-Feb-16,19886619-12775384,-529.38,Orchard House (Sawston),Care Establishment,2 - Commissioning - Older people Pool,Older People - City & South,Residential Independent Sector
Cambridgeshire County Council,04-Feb-16,19886620-12775385,-529.38,Orchard House (Sawston),Care Establishment,2 - Commissioning - Older people Pool,Older People - City & South,Residential Independent Sector
Cambridgeshire County Council,04-Feb-16,19886625-12775390,-529.38,Orchard House (Sawston),Care Establishment,2 - Commissioning - Older people Pool,Older People - City & South,Residential Independent Sector
Cambridgeshire County Council,04-Feb-16,19886626-12775391,-529.38,Orchard House (Sawston),Care Establishment,2 - Commissioning - Older people Pool,Older People - City & South,Residential Independent Sector
Cambridgeshire County Council,04-Feb-16,19886627-12775392,-529.38,Orchard House (Sawston),Care Establishment,2 - Commissioning - Older people Pool,Older People - City & South,Residential Independent Sector
Cambridgeshire County Council,04-Feb-16,19886631-12775395,-529.38,Orchard House (Sawston),Care Establishment,2 - Commissioning - Older people Pool,Older People - City & South,Residential Independent Sector
Cambridgeshire County Council,04-Feb-16,19886635-12775399,-529.38,Orchard House (Sawston),Care Establishment,2 - Commissioning - Older people Pool,Older People - City & South,Residential Independent Sector
Cambridgeshire County Council,04-Feb-16,19886637-12775401,-529.38,Orchard House (Sawston),Care Establishment,2 - Commissioning - Older people Pool,Older People - City & South,Residential Independent Sector
Cambridgeshire County Council,04-Feb-16,19886639-12775402,-529.38,Orchard House (Sawston),Care Establishment,2 - Commissioning - Older people Pool,Older People - City & South,Residential Independent Sector
Cambridgeshire County Council,11-Feb-16,19943812-12819794,-529.32,Hereward Care Services Limited,Care Establishment,2 - Commissioning - Older people Pool,Older People Mental Health Fenland,Residential Independent Sector
Cambridgeshire County Council,11-Feb-16,19943816-12819796,-529.32,Hereward Care Services Limited,Care Establishment,2 - Commissioning - Older people Pool,Older People Mental Health Fenland,Residential Independent Sector
Cambridgeshire County Council,11-Feb-16,19943817-12819797,-529.32,Hereward Care Services Limited,Care Establishment,2 - Commissioning - Older people Pool,Older People Mental Health Fenland,Residential Independent Sector
Cambridgeshire County Council,11-Feb-16,19943819-12819798,-529.32,Hereward Care Services Limited,Care Establishment,2 - Commissioning - Older people Pool,Older People Mental Health Fenland,Residential Independent Sector
Cambridgeshire County Council,11-Feb-16,19943821-12819799,-529.32,Hereward Care Services Limited,Care Establishment,2 - Commissioning - Older people Pool,Older People Mental Health Fenland,Residential Independent Sector
Cambridgeshire County Council,11-Feb-16,19943822-12819800,-529.32,Hereward Care Services Limited,Care Establishment,2 - Commissioning - Older people Pool,Older People Mental Health Fenland,Residential Independent Sector
Cambridgeshire County Council,11-Feb-16,19943824-12819801,-529.32,Hereward Care Services Limited,Care Establishment,2 - Commissioning - Older people Pool,Older People Mental Health Fenland,Residential Independent Sector
Cambridgeshire County Council,04-Feb-16,19945123-12778959,-528.25,Mayfield Heath Farm,Care Establishment,2 - Operations - Learning Disability,LDP Huntingdonshire Locality - Care,Supported Living
Cambridgeshire County Council,04-Feb-16,19948384-12769500,-521.74,Heron House,Care Establishment,2 - Commissioning - Older people Pool,East Cambs - O P Team,Nursing Independent Sector
Cambridgeshire County Council,04-Feb-16,19948402-12769506,-521.74,Heron House,Care Establishment,2 - Commissioning - Older people Pool,East Cambs - O P Team,Nursing Independent Sector
Cambridgeshire County Council,04-Feb-16,19948404-12769508,-521.74,Heron House,Care Establishment,2 - Commissioning - Older people Pool,East Cambs - O P Team,Nursing Independent Sector
Cambridgeshire County Council,04-Feb-16,19952358-12769581,-521.74,Heron House,Care Establishment,2 - Commissioning - Older people Pool,East Cambs - O P Team,Nursing Independent Sector
Cambridgeshire County Council,04-Feb-16,19952359-12769582,-521.74,Heron House,Care Establishment,2 - Commissioning - Older people Pool,East Cambs - O P Team,Nursing Independent Sector
Cambridgeshire County Council,04-Feb-16,19952365-12769587,-521.74,Heron House,Care Establishment,2 - Commissioning - Older people Pool,East Cambs - O P Team,Nursing Independent Sector
Cambridgeshire County Council,11-Feb-16,19977192-12815355,-513.18,Orchard House Nursing Home,Care Establishment,2 - Commissioning - Older people Pool,Older People - Fenland,Nursing Independent Sector
Cambridgeshire County Council,11-Feb-16,19977198-12815357,-513.18,Orchard House Nursing Home,Care Establishment,2 - Commissioning - Older people Pool,Older People - Fenland,Nursing Independent Sector
Cambridgeshire County Council,04-Feb-16,19949995-12790265,-513.05,Ringshill Care Home,Care Establishment,2 - Commissioning - Older people Pool,Older People Mental Health Hunts,Nursing Independent Sector
Cambridgeshire County Council,04-Feb-16,19949996-12790266,-513.05,Ringshill Care Home,Care Establishment,2 - Commissioning - Older people Pool,Older People Mental Health Hunts,Nursing Independent Sector
Cambridgeshire County Council,04-Feb-16,19949999-12790269,-513.05,Ringshill Care Home,Care Establishment,2 - Commissioning - Older people Pool,Older People Mental Health Hunts,Nursing Independent Sector
Cambridgeshire County Council,04-Feb-16,19950000-12790270,-513.05,Ringshill Care Home,Care Establishment,2 - Commissioning - Older people Pool,Older People Mental Health Hunts,Nursing Independent Sector
Cambridgeshire County Council,04-Feb-16,19950006-12790276,-513.05,Ringshill Care Home,Care Establishment,2 - Commissioning - Older people Pool,Older People Mental Health Hunts,Nursing Independent Sector
Cambridgeshire County Council,11-Feb-16,19981882-12816609,-513.05,Ringshill Care Home,Care Establishment,2 - Commissioning - Older people Pool,Older People Mental Health Hunts,Nursing Independent Sector
Cambridgeshire County Council,11-Feb-16,19981884-12816611,-513.05,Ringshill Care Home,Care Establishment,2 - Commissioning - Older people Pool,Older People Mental Health Hunts,Nursing Independent Sector
Cambridgeshire County Council,11-Feb-16,19981885-12816612,-513.05,Ringshill Care Home,Care Establishment,2 - Commissioning - Older people Pool,Older People Mental Health Hunts,Nursing Independent Sector
Cambridgeshire County Council,11-Feb-16,19981887-12816614,-513.05,Ringshill Care Home,Care Establishment,2 - Commissioning - Older people Pool,Older People Mental Health Hunts,Nursing Independent Sector
Cambridgeshire County Council,11-Feb-16,19981889-12816616,-513.05,Ringshill Care Home,Care Establishment,2 - Commissioning - Older people Pool,Older People Mental Health Hunts,Nursing Independent Sector
Cambridgeshire County Council,26-Feb-16,20028522-12885597,-513.05,Ringshill Care Home,Care Establishment,2 - Commissioning - Older people Pool,Older People Mental Health Hunts,Nursing Independent Sector
Cambridgeshire County Council,26-Feb-16,20028525-12885600,-513.05,Ringshill Care Home,Care Establishment,2 - Commissioning - Older people Pool,Older People Mental Health Hunts,Nursing Independent Sector
Cambridgeshire County Council,26-Feb-16,20028527-12885602,-513.05,Ringshill Care Home,Care Establishment,2 - Commissioning - Older people Pool,Older People Mental Health Hunts,Nursing Independent Sector
Cambridgeshire County Council,26-Feb-16,20028530-12885605,-513.05,Ringshill Care Home,Care Establishment,2 - Commissioning - Older people Pool,Older People Mental Health Hunts,Nursing Independent Sector
Cambridgeshire County Council,26-Feb-16,20028532-12885607,-513.05,Ringshill Care Home,Care Establishment,2 - Commissioning - Older people Pool,Hunts O P  Team,Nursing Independent Sector
Cambridgeshire County Council,26-Feb-16,20057422-12885617,-513.05,Ringshill Care Home,Care Establishment,2 - Commissioning - Older people Pool,Hunts O P  Team,Nursing Independent Sector
Cambridgeshire County Council,26-Feb-16,20057427-12885622,-513.05,Ringshill Care Home,Care Establishment,2 - Commissioning - Older people Pool,Older People Mental Health Hunts,Nursing Independent Sector
Cambridgeshire County Council,26-Feb-16,20057428-12885623,-513.05,Ringshill Care Home,Care Establishment,2 - Commissioning - Older people Pool,Hunts O P  Team,Nursing Independent Sector
Cambridgeshire County Council,26-Feb-16,20057430-12885625,-513.05,Ringshill Care Home,Care Establishment,2 - Commissioning - Older people Pool,Hunts O P  Team,Nursing Independent Sector
Cambridgeshire County Council,26-Feb-16,20057433-12885628,-513.05,Ringshill Care Home,Care Establishment,2 - Commissioning - Older people Pool,Older People Mental Health Hunts,Nursing Independent Sector
Cambridgeshire County Council,04-Feb-16,19911248-12777446,-502.95,Mihomecare Ltd (Fenland Premier Care),Care Establishment,2 - Commissioning - Older people Pool,East Cambs - O P Team,Day and Domicillary Care Independent Sector
Cambridgeshire County Council,04-Feb-16,19911251-12777449,-502.95,Mihomecare Ltd (Fenland Premier Care),Care Establishment,2 - Commissioning - Older people Pool,East Cambs - O P Team,Day and Domicillary Care Independent Sector
Cambridgeshire County Council,04-Feb-16,19911264-12777462,-502.95,Mihomecare Ltd (Fenland Premier Care),Care Establishment,2 - Commissioning - Older people Pool,East Cambs - O P Team,Day and Domicillary Care Independent Sector
Cambridgeshire County Council,04-Feb-16,19911270-12777468,-502.95,Mihomecare Ltd (Fenland Premier Care),Care Establishment,2 - Commissioning - Older people Pool,East Cambs - O P Team,Day and Domicillary Care Independent Sector
Cambridgeshire County Council,04-Feb-16,19911271-12777469,-502.95,Mihomecare Ltd (Fenland Premier Care),Care Establishment,2 - Commissioning - Older people Pool,East Cambs - O P Team,Day and Domicillary Care Independent Sector
Cambridgeshire County Council,04-Feb-16,19911272-12777470,-502.95,Mihomecare Ltd (Fenland Premier Care),Care Establishment,2 - Commissioning - Older people Pool,East Cambs - O P Team,Day and Domicillary Care Independent Sector
Cambridgeshire County Council,04-Feb-16,19911279-12777394,-502.95,Mihomecare Ltd (Fenland Premier Care),Care Establishment,2 - Commissioning - Older people Pool,East Cambs - O P Team,Day and Domicillary Care Independent Sector
Cambridgeshire County Council,04-Feb-16,19556246-12781019,-500,Redacted Personal Data,Individual,2 - Operations - Learning Disability,LDP Huntingdonshire Locality - Care,SDS - Live Independently
Cambridgeshire County Council,04-Feb-16,19556256-12781021,-500,Redacted Personal Data,Individual,2 - Operations - Learning Disability,LDP Huntingdonshire Locality - Care,SDS - Live Independently
Cambridgeshire County Council,04-Feb-16,19556257-12781022,-500,Redacted Personal Data,Individual,2 - Operations - Learning Disability,LDP Huntingdonshire Locality - Care,SDS - Live Independently
Cambridgeshire County Council,04-Feb-16,19556258-12781023,-500,Redacted Personal Data,Individual,2 - Operations - Learning Disability,LDP Huntingdonshire Locality - Care,SDS - Live Independently
Cambridgeshire County Council,04-Feb-16,19556259-12781024,-500,Redacted Personal Data,Individual,2 - Operations - Learning Disability,LDP Huntingdonshire Locality - Care,SDS - Live Independently
Cambridgeshire County Council,04-Feb-16,19556260-12781025,-500,Redacted Personal Data,Individual,2 - Operations - Learning Disability,LDP Huntingdonshire Locality - Care,SDS - Live Independently
Cambridgeshire County Council,04-Feb-16,19556261-12781026,-500,Redacted Personal Data,Individual,2 - Operations - Learning Disability,LDP Huntingdonshire Locality - Care,SDS - Live Independently
Cambridgeshire County Council,04-Feb-16,19556265-12781027,-500,Redacted Personal Data,Individual,2 - Operations - Learning Disability,LDP Huntingdonshire Locality - Care,SDS - Live Independently
Cambridgeshire County Council,04-Feb-16,19556266-12781028,-500,Redacted Personal Data,Individual,2 - Operations - Learning Disability,LDP Huntingdonshire Locality - Care,SDS - Live Independently
Cambridgeshire County Council,04-Feb-16,19556267-12781029,-500,Redacted Personal Data,Individual,2 - Operations - Learning Disability,LDP Huntingdonshire Locality - Care,SDS - Live Independently
Cambridgeshire County Council,04-Feb-16,19557763-12781033,-500,Redacted Personal Data,Individual,2 - Operations - Learning Disability,LDP Huntingdonshire Locality - Care,SDS - Live Independently
Cambridgeshire County Council,04-Feb-16,19557764-12781034,-500,Redacted Personal Data,Individual,2 - Operations - Learning Disability,LDP Huntingdonshire Locality - Care,SDS - Live Independently
Cambridgeshire County Council,04-Feb-16,19557765-12781035,-500,Redacted Personal Data,Individual,2 - Operations - Learning Disability,LDP Huntingdonshire Locality - Care,SDS - Live Independently
Cambridgeshire County Council,04-Feb-16,19557766-12781059,-500,Redacted Personal Data,Individual,2 - Operations - Learning Disability,LDP Huntingdonshire Locality - Care,SDS - Live Independently
Cambridgeshire County Council,04-Feb-16,19557767-12781060,-500,Redacted Personal Data,Individual,2 - Operations - Learning Disability,LDP Huntingdonshire Locality - Care,SDS - Live Independently
Cambridgeshire County Council,04-Feb-16,19557768-12781061,-500,Redacted Personal Data,Individual,2 - Operations - Learning Disability,LDP Huntingdonshire Locality - Care,SDS - Live Independently
Cambridgeshire County Council,04-Feb-16,19557769-12781062,-500,Redacted Personal Data,Individual,2 - Operations - Learning Disability,LDP Huntingdonshire Locality - Care,SDS - Live Independently
Cambridgeshire County Council,04-Feb-16,19557770-12781063,-500,Redacted Personal Data,Individual,2 - Operations - Learning Disability,LDP Huntingdonshire Locality - Care,SDS - Live Independently
Cambridgeshire County Council,04-Feb-16,19557775-12781064,-500,Redacted Personal Data,Individual,2 - Operations - Learning Disability,LDP Huntingdonshire Locality - Care,SDS - Live Independently
Cambridgeshire County Council,04-Feb-16,19557782-12781066,-500,Redacted Personal Data,Individual,2 - Operations - Learning Disability,LDP Huntingdonshire Locality - Care,SDS - Live Independently
Cambridgeshire County Council,04-Feb-16,19557783-12781067,-500,Redacted Personal Data,Individual,2 - Operations - Learning Disability,LDP Huntingdonshire Locality - Care,SDS - Live Independently
Cambridgeshire County Council,04-Feb-16,19557784-12781068,-500,Redacted Personal Data,Individual,2 - Operations - Learning Disability,LDP Huntingdonshire Locality - Care,SDS - Live Independently
Cambridgeshire County Council,04-Feb-16,19557785-12781069,-500,Redacted Personal Data,Individual,2 - Operations - Learning Disability,LDP Huntingdonshire Locality - Care,SDS - Live Independently
Cambridgeshire County Council,04-Feb-16,19557786-12781070,-500,Redacted Personal Data,Individual,2 - Operations - Learning Disability,LDP Huntingdonshire Locality - Care,SDS - Live Independently
Cambridgeshire County Council,04-Feb-16,19557792-12781072,-500,Redacted Personal Data,Individual,2 - Operations - Learning Disability,LDP Huntingdonshire Locality - Care,SDS - Live Independently
Cambridgeshire County Council,04-Feb-16,19557793-12781073,-500,Redacted Personal Data,Individual,2 - Operations - Learning Disability,LDP Huntingdonshire Locality - Care,SDS - Live Independently
Cambridgeshire County Council,04-Feb-16,19557794-12781074,-500,Redacted Personal Data,Individual,2 - Operations - Learning Disability,LDP Huntingdonshire Locality - Care,SDS - Live Independently
Cambridgeshire County Council,04-Feb-16,19557795-12781075,-500,Redacted Personal Data,Individual,2 - Operations - Learning Disability,LDP Huntingdonshire Locality - Care,SDS - Live Independently
Cambridgeshire County Council,04-Feb-16,19557796-12781076,-500,Redacted Personal Data,Individual,2 - Operations - Learning Disability,LDP Huntingdonshire Locality - Care,SDS - Live Independently
Cambridgeshire County Council,04-Feb-16,19559620-12781077,-500,Redacted Personal Data,Individual,2 - Operations - Learning Disability,LDP Huntingdonshire Locality - Care,SDS - Live Independently
Cambridgeshire County Council,04-Feb-16,19559621-12781078,-500,Redacted Personal Data,Individual,2 - Operations - Learning Disability,LDP Huntingdonshire Locality - Care,SDS - Live Independently
Cambridgeshire County Council,04-Feb-16,19559622-12781079,-500,Redacted Personal Data,Individual,2 - Operations - Learning Disability,LDP Huntingdonshire Locality - Care,SDS - Live Independently
Cambridgeshire County Council,04-Feb-16,19559623-12781080,-500,Redacted Personal Data,Individual,2 - Operations - Learning Disability,LDP Huntingdonshire Locality - Care,SDS - Live Independently
Cambridgeshire County Council,04-Feb-16,19559624-12781081,-500,Redacted Personal Data,Individual,2 - Operations - Learning Disability,LDP Huntingdonshire Locality - Care,SDS - Live Independently
Cambridgeshire County Council,04-Feb-16,19559629-12781083,-500,Redacted Personal Data,Individual,2 - Operations - Learning Disability,LDP Huntingdonshire Locality - Care,SDS - Live Independently
Cambridgeshire County Council,04-Feb-16,19559630-12781084,-500,Redacted Personal Data,Individual,2 - Operations - Learning Disability,LDP Huntingdonshire Locality - Care,SDS - Live Independently
Cambridgeshire County Council,04-Feb-16,19559639-12781087,-500,Redacted Personal Data,Individual,2 - Operations - Learning Disability,LDP Huntingdonshire Locality - Care,SDS - Live Independently
Cambridgeshire County Council,04-Feb-16,19559640-12781088,-500,Redacted Personal Data,Individual,2 - Operations - Learning Disability,LDP Huntingdonshire Locality - Care,SDS - Live Independently
Cambridgeshire County Council,04-Feb-16,19559641-12781089,-500,Redacted Personal Data,Individual,2 - Operations - Learning Disability,LDP Huntingdonshire Locality - Care,SDS - Live Independently
Cambridgeshire County Council,04-Feb-16,19559642-12781090,-500,Redacted Personal Data,Individual,2 - Operations - Learning Disability,LDP Huntingdonshire Locality - Care,SDS - Live Independently
Cambridgeshire County Council,04-Feb-16,19559648-12781091,-500,Redacted Personal Data,Individual,2 - Operations - Learning Disability,LDP Huntingdonshire Locality - Care,SDS - Live Independently
Cambridgeshire County Council,04-Feb-16,19559649-12781092,-500,Redacted Personal Data,Individual,2 - Operations - Learning Disability,LDP Huntingdonshire Locality - Care,SDS - Live Independently
Cambridgeshire County Council,04-Feb-16,19559650-12781093,-500,Redacted Personal Data,Individual,2 - Operations - Learning Disability,LDP Huntingdonshire Locality - Care,SDS - Live Independently
Cambridgeshire County Council,04-Feb-16,19559651-12781094,-500,Redacted Personal Data,Individual,2 - Operations - Learning Disability,LDP Huntingdonshire Locality - Care,SDS - Live Independently
Cambridgeshire County Council,04-Feb-16,19559652-12781095,-500,Redacted Personal Data,Individual,2 - Operations - Learning Disability,LDP Huntingdonshire Locality - Care,SDS - Live Independently
Cambridgeshire County Council,04-Feb-16,19559653-12781096,-500,Redacted Personal Data,Individual,2 - Operations - Learning Disability,LDP Huntingdonshire Locality - Care,SDS - Live Independently
Cambridgeshire County Council,04-Feb-16,19559657-12781098,-500,Redacted Personal Data,Individual,2 - Operations - Learning Disability,LDP Huntingdonshire Locality - Care,SDS - Live Independently
Cambridgeshire County Council,04-Feb-16,19559658-12781099,-500,Redacted Personal Data,Individual,2 - Operations - Learning Disability,LDP Huntingdonshire Locality - Care,SDS - Live Independently
Cambridgeshire County Council,04-Feb-16,19559667-12781103,-500,Redacted Personal Data,Individual,2 - Operations - Learning Disability,LDP Huntingdonshire Locality - Care,SDS - Live Independently
Cambridgeshire County Council,04-Feb-16,19559668-12781104,-500,Redacted Personal Data,Individual,2 - Operations - Learning Disability,LDP Huntingdonshire Locality - Care,SDS - Live Independently
Cambridgeshire County Council,04-Feb-16,19559669-12781105,-500,Redacted Personal Data,Individual,2 - Operations - Learning Disability,LDP Huntingdonshire Locality - Care,SDS - Live Independently
Cambridgeshire County Council,04-Feb-16,19559674-12781106,-500,Redacted Personal Data,Individual,2 - Operations - Learning Disability,LDP Huntingdonshire Locality - Care,SDS - Live Independently
Cambridgeshire County Council,04-Feb-16,19559682-12781108,-500,Redacted Personal Data,Individual,2 - Operations - Learning Disability,LDP Huntingdonshire Locality - Care,SDS - Live Independently
Cambridgeshire County Council,04-Feb-16,19559683-12781109,-500,Redacted Personal Data,Individual,2 - Operations - Learning Disability,LDP Huntingdonshire Locality - Care,SDS - Live Independently
Cambridgeshire County Council,04-Feb-16,19559684-12781110,-500,Redacted Personal Data,Individual,2 - Operations - Learning Disability,LDP Huntingdonshire Locality - Care,SDS - Live Independently
Cambridgeshire County Council,04-Feb-16,19559685-12781111,-500,Redacted Personal Data,Individual,2 - Operations - Learning Disability,LDP Huntingdonshire Locality - Care,SDS - Live Independently
Cambridgeshire County Council,04-Feb-16,19559691-12781112,-500,Redacted Personal Data,Individual,2 - Operations - Learning Disability,LDP Huntingdonshire Locality - Care,SDS - Live Independently
Cambridgeshire County Council,04-Feb-16,19559692-12781113,-500,Redacted Personal Data,Individual,2 - Operations - Learning Disability,LDP Huntingdonshire Locality - Care,SDS - Live Independently
Cambridgeshire County Council,04-Feb-16,19559693-12781114,-500,Redacted Personal Data,Individual,2 - Operations - Learning Disability,LDP Huntingdonshire Locality - Care,SDS - Live Independently
Cambridgeshire County Council,04-Feb-16,19559694-12781115,-500,Redacted Personal Data,Individual,2 - Operations - Learning Disability,LDP Huntingdonshire Locality - Care,SDS - Live Independently
Cambridgeshire County Council,04-Feb-16,19559705-12781116,-500,Redacted Personal Data,Individual,2 - Operations - Learning Disability,LDP Huntingdonshire Locality - Care,SDS - Live Independently
Cambridgeshire County Council,04-Feb-16,19559706-12781117,-500,Redacted Personal Data,Individual,2 - Operations - Learning Disability,LDP Huntingdonshire Locality - Care,SDS - Live Independently
Cambridgeshire County Council,04-Feb-16,19559707-12781118,-500,Redacted Personal Data,Individual,2 - Operations - Learning Disability,LDP Huntingdonshire Locality - Care,SDS - Live Independently
Cambridgeshire County Council,04-Feb-16,19559715-12781121,-500,Redacted Personal Data,Individual,2 - Operations - Learning Disability,LDP Huntingdonshire Locality - Care,SDS - Live Independently
Cambridgeshire County Council,04-Feb-16,19559716-12781122,-500,Redacted Personal Data,Individual,2 - Operations - Learning Disability,LDP Huntingdonshire Locality - Care,SDS - Live Independently
Cambridgeshire County Council,04-Feb-16,19559717-12781123,-500,Redacted Personal Data,Individual,2 - Operations - Learning Disability,LDP Huntingdonshire Locality - Care,SDS - Live Independently
Cambridgeshire County Council,04-Feb-16,19559718-12781124,-500,Redacted Personal Data,Individual,2 - Operations - Learning Disability,LDP Huntingdonshire Locality - Care,SDS - Live Independently
Cambridgeshire County Council,04-Feb-16,19559719-12781125,-500,Redacted Personal Data,Individual,2 - Operations - Learning Disability,LDP Huntingdonshire Locality - Care,SDS - Live Independently
Cambridgeshire County Council,04-Feb-16,19559720-12781126,-500,Redacted Personal Data,Individual,2 - Operations - Learning Disability,LDP Huntingdonshire Locality - Care,SDS - Live Independently
Cambridgeshire County Council,04-Feb-16,19559729-12781128,-500,Redacted Personal Data,Individual,2 - Operations - Learning Disability,LDP Huntingdonshire Locality - Care,SDS - Live Independently
Cambridgeshire County Council,04-Feb-16,19559730-12781129,-500,Redacted Personal Data,Individual,2 - Operations - Learning Disability,LDP Huntingdonshire Locality - Care,SDS - Live Independently
Cambridgeshire County Council,04-Feb-16,19559731-12781130,-500,Redacted Personal Data,Individual,2 - Operations - Learning Disability,LDP Huntingdonshire Locality - Care,SDS - Live Independently
Cambridgeshire County Council,04-Feb-16,19559735-12781131,-500,Redacted Personal Data,Individual,2 - Operations - Learning Disability,LDP Huntingdonshire Locality - Care,SDS - Live Independently
Cambridgeshire County Council,04-Feb-16,19559736-12781132,-500,Redacted Personal Data,Individual,2 - Operations - Learning Disability,LDP Huntingdonshire Locality - Care,SDS - Live Independently
Cambridgeshire County Council,04-Feb-16,19559737-12781133,-500,Redacted Personal Data,Individual,2 - Operations - Learning Disability,LDP Huntingdonshire Locality - Care,SDS - Live Independently
Cambridgeshire County Council,04-Feb-16,19559738-12781134,-500,Redacted Personal Data,Individual,2 - Operations - Learning Disability,LDP Huntingdonshire Locality - Care,SDS - Live Independently
Cambridgeshire County Council,04-Feb-16,19559739-12781135,-500,Redacted Personal Data,Individual,2 - Operations - Learning Disability,LDP Huntingdonshire Locality - Care,SDS - Live Independently
Cambridgeshire County Council,04-Feb-16,19559745-12781136,-500,Redacted Personal Data,Individual,2 - Operations - Learning Disability,LDP Huntingdonshire Locality - Care,SDS - Live Independently
Cambridgeshire County Council,04-Feb-16,19559748-12781137,-500,Redacted Personal Data,Individual,2 - Operations - Learning Disability,LDP Huntingdonshire Locality - Care,SDS - Live Independently
Cambridgeshire County Council,04-Feb-16,19559749-12781138,-500,Redacted Personal Data,Individual,2 - Operations - Learning Disability,LDP Huntingdonshire Locality - Care,SDS - Live Independently
Cambridgeshire County Council,04-Feb-16,19559750-12781139,-500,Redacted Personal Data,Individual,2 - Operations - Learning Disability,LDP Huntingdonshire Locality - Care,SDS - Live Independently
Cambridgeshire County Council,04-Feb-16,19559751-12781140,-500,Redacted Personal Data,Individual,2 - Operations - Learning Disability,LDP Huntingdonshire Locality - Care,SDS - Live Independently
Cambridgeshire County Council,04-Feb-16,19559752-12781141,-500,Redacted Personal Data,Individual,2 - Operations - Learning Disability,LDP Huntingdonshire Locality - Care,SDS - Live Independently
Cambridgeshire County Council,04-Feb-16,19559758-12781142,-500,Redacted Personal Data,Individual,2 - Operations - Learning Disability,LDP Huntingdonshire Locality - Care,SDS - Live Independently
Cambridgeshire County Council,04-Feb-16,19559759-12781143,-500,Redacted Personal Data,Individual,2 - Operations - Learning Disability,LDP Huntingdonshire Locality - Care,SDS - Live Independently
Cambridgeshire County Council,04-Feb-16,19559760-12781144,-500,Redacted Personal Data,Individual,2 - Operations - Learning Disability,LDP Huntingdonshire Locality - Care,SDS - Live Independently
Cambridgeshire County Council,04-Feb-16,19559761-12781145,-500,Redacted Personal Data,Individual,2 - Operations - Learning Disability,LDP Huntingdonshire Locality - Care,SDS - Live Independently
Cambridgeshire County Council,08-Feb-16,19893182-12797871,500,Hinchingbrooke House And Performing Arts,Local Clubs & Groups,LRNG,Duke of Edinburgh's Award,Casual hire of facilities
Cambridgeshire County Council,15-Feb-16,19912440-12835461,500,Batod,Trade Supplier,E&P,Hearing Impaired Service,Advertising / Publicity
Cambridgeshire County Council,04-Feb-16,19936328-12779543,500,Bethany Francis House#1,Care Establishment,2 - Commissioning - Older people Pool,Hunts O P  Team,Residential Independent Sector
Cambridgeshire County Council,04-Feb-16,19939442-12780051,500,The Chestnuts Residential Home,Care Establishment,2 - Commissioning - Older people Pool,Older People - Fenland,Residential Independent Sector
Cambridgeshire County Council,04-Feb-16,19939446-12780054,500,The Chestnuts Residential Home,Care Establishment,2 - Commissioning - Older people Pool,Older People - Fenland,Residential Independent Sector
Cambridgeshire County Council,04-Feb-16,19940125-12779557,500,Bethany Francis House#1,Care Establishment,3 - Operations - Countywide Services,Countywide PD Service - Care,Residential Independent Sector
Cambridgeshire County Council,04-Feb-16,19940126-12779558,500,Bethany Francis House#1,Care Establishment,3 - Operations - Countywide Services,Countywide PD Service - Care,Residential Independent Sector
Cambridgeshire County Council,04-Feb-16,19940127-12779559,500,Bethany Francis House#1,Care Establishment,3 - Operations - Countywide Services,Countywide PD Service - Care,Residential Independent Sector
Cambridgeshire County Council,04-Feb-16,19940128-12779560,500,Bethany Francis House#1,Care Establishment,3 - Operations - Countywide Services,Countywide PD Service - Care,Residential Independent Sector
Cambridgeshire County Council,04-Feb-16,19941252-12779550,500,Bethany Francis House#1,Care Establishment,2 - Commissioning - Older people Pool,Hunts O P  Team,Residential Independent Sector
Cambridgeshire County Council,04-Feb-16,19941253-12779551,500,Bethany Francis House#1,Care Establishment,2 - Commissioning - Older people Pool,Hunts O P  Team,Residential Independent Sector
Cambridgeshire County Council,04-Feb-16,19941254-12779552,500,Bethany Francis House#1,Care Establishment,2 - Commissioning - Older people Pool,Hunts O P  Team,Residential Independent Sector
Cambridgeshire County Council,04-Feb-16,19944034-12781246,500,Redacted Personal Data,Individual,2 - Operations - Learning Disability,LDP Huntingdonshire Locality - Care,SDS - Live Independently
Cambridgeshire County Council,04-Feb-16,19944035-12781247,500,Redacted Personal Data,Individual,2 - Operations - Learning Disability,LDP Huntingdonshire Locality - Care,SDS - Live Independently
Cambridgeshire County Council,04-Feb-16,19944036-12781248,500,Redacted Personal Data,Individual,2 - Operations - Learning Disability,LDP Huntingdonshire Locality - Care,SDS - Live Independently
Cambridgeshire County Council,04-Feb-16,19944037-12781249,500,Redacted Personal Data,Individual,2 - Operations - Learning Disability,LDP Huntingdonshire Locality - Care,SDS - Live Independently
Cambridgeshire County Council,04-Feb-16,19944049-12781234,500,Redacted Personal Data,Individual,2 - Operations - Learning Disability,LDP Huntingdonshire Locality - Care,SDS - Live Independently
Cambridgeshire County Council,04-Feb-16,19944050-12781235,500,Redacted Personal Data,Individual,2 - Operations - Learning Disability,LDP Huntingdonshire Locality - Care,SDS - Live Independently
Cambridgeshire County Council,04-Feb-16,19944051-12781236,500,Redacted Personal Data,Individual,2 - Operations - Learning Disability,LDP Huntingdonshire Locality - Care,SDS - Live Independently
Cambridgeshire County Council,04-Feb-16,19944063-12781237,500,Redacted Personal Data,Individual,2 - Operations - Learning Disability,LDP Huntingdonshire Locality - Care,SDS - Live Independently
Cambridgeshire County Council,04-Feb-16,19944064-12781238,500,Redacted Personal Data,Individual,2 - Operations - Learning Disability,LDP Huntingdonshire Locality - Care,SDS - Live Independently
Cambridgeshire County Council,04-Feb-16,19944065-12781239,500,Redacted Personal Data,Individual,2 - Operations - Learning Disability,LDP Huntingdonshire Locality - Care,SDS - Live Independently
Cambridgeshire County Council,04-Feb-16,19944066-12781240,500,Redacted Personal Data,Individual,2 - Operations - Learning Disability,LDP Huntingdonshire Locality - Care,SDS - Live Independently
Cambridgeshire County Council,04-Feb-16,19944067-12781241,500,Redacted Personal Data,Individual,2 - Operations - Learning Disability,LDP Huntingdonshire Locality - Care,SDS - Live Independently
Cambridgeshire County Council,04-Feb-16,19944078-12781242,500,Redacted Personal Data,Individual,2 - Operations - Learning Disability,LDP Huntingdonshire Locality - Care,SDS - Live Independently
Cambridgeshire County Council,04-Feb-16,19944079-12781243,500,Redacted Personal Data,Individual,2 - Operations - Learning Disability,LDP Huntingdonshire Locality - Care,SDS - Live Independently
Cambridgeshire County Council,04-Feb-16,19944080-12781244,500,Redacted Personal Data,Individual,2 - Operations - Learning Disability,LDP Huntingdonshire Locality - Care,SDS - Live Independently
Cambridgeshire County Council,04-Feb-16,19944081-12781245,500,Redacted Personal Data,Individual,2 - Operations - Learning Disability,LDP Huntingdonshire Locality - Care,SDS - Live Independently
Cambridgeshire County Council,04-Feb-16,19944092-12781225,500,Redacted Personal Data,Individual,2 - Operations - Learning Disability,LDP Huntingdonshire Locality - Care,SDS - Live Independently
Cambridgeshire County Council,04-Feb-16,19944100-12781226,500,Redacted Personal Data,Individual,2 - Operations - Learning Disability,LDP Huntingdonshire Locality - Care,SDS - Live Independently
Cambridgeshire County Council,04-Feb-16,19944110-12781227,500,Redacted Personal Data,Individual,2 - Operations - Learning Disability,LDP Huntingdonshire Locality - Care,SDS - Live Independently
Cambridgeshire County Council,04-Feb-16,19944111-12781228,500,Redacted Personal Data,Individual,2 - Operations - Learning Disability,LDP Huntingdonshire Locality - Care,SDS - Live Independently
Cambridgeshire County Council,04-Feb-16,19944112-12781229,500,Redacted Personal Data,Individual,2 - Operations - Learning Disability,LDP Huntingdonshire Locality - Care,SDS - Live Independently
Cambridgeshire County Council,04-Feb-16,19944113-12781230,500,Redacted Personal Data,Individual,2 - Operations - Learning Disability,LDP Huntingdonshire Locality - Care,SDS - Live Independently
Cambridgeshire County Council,04-Feb-16,19944114-12781231,500,Redacted Personal Data,Individual,2 - Operations - Learning Disability,LDP Huntingdonshire Locality - Care,SDS - Live Independently
Cambridgeshire County Council,04-Feb-16,19944115-12781232,500,Redacted Personal Data,Individual,2 - Operations - Learning Disability,LDP Huntingdonshire Locality - Care,SDS - Live Independently
Cambridgeshire County Council,04-Feb-16,19944116-12781233,500,Redacted Personal Data,Individual,2 - Operations - Learning Disability,LDP Huntingdonshire Locality - Care,SDS - Live Independently
Cambridgeshire County Council,04-Feb-16,19944126-12781214,500,Redacted Personal Data,Individual,2 - Operations - Learning Disability,LDP Huntingdonshire Locality - Care,SDS - Live Independently
Cambridgeshire County Council,04-Feb-16,19944127-12781215,500,Redacted Personal Data,Individual,2 - Operations - Learning Disability,LDP Huntingdonshire Locality - Care,SDS - Live Independently
Cambridgeshire County Council,04-Feb-16,19944137-12781216,500,Redacted Personal Data,Individual,2 - Operations - Learning Disability,LDP Huntingdonshire Locality - Care,SDS - Live Independently
Cambridgeshire County Council,04-Feb-16,19944138-12781217,500,Redacted Personal Data,Individual,2 - Operations - Learning Disability,LDP Huntingdonshire Locality - Care,SDS - Live Independently
Cambridgeshire County Council,04-Feb-16,19944154-12781218,500,Redacted Personal Data,Individual,2 - Operations - Learning Disability,LDP Huntingdonshire Locality - Care,SDS - Live Independently
Cambridgeshire County Council,04-Feb-16,19944155-12781219,500,Redacted Personal Data,Individual,2 - Operations - Learning Disability,LDP Huntingdonshire Locality - Care,SDS - Live Independently
Cambridgeshire County Council,04-Feb-16,19944156-12781220,500,Redacted Personal Data,Individual,2 - Operations - Learning Disability,LDP Huntingdonshire Locality - Care,SDS - Live Independently
Cambridgeshire County Council,04-Feb-16,19944157-12781221,500,Redacted Personal Data,Individual,2 - Operations - Learning Disability,LDP Huntingdonshire Locality - Care,SDS - Live Independently
Cambridgeshire County Council,04-Feb-16,19944167-12781222,500,Redacted Personal Data,Individual,2 - Operations - Learning Disability,LDP Huntingdonshire Locality - Care,SDS - Live Independently
Cambridgeshire County Council,04-Feb-16,19944168-12781223,500,Redacted Personal Data,Individual,2 - Operations - Learning Disability,LDP Huntingdonshire Locality - Care,SDS - Live Independently
Cambridgeshire County Council,04-Feb-16,19944169-12781224,500,Redacted Personal Data,Individual,2 - Operations - Learning Disability,LDP Huntingdonshire Locality - Care,SDS - Live Independently
Cambridgeshire County Council,04-Feb-16,19945713-12781184,500,Redacted Personal Data,Individual,2 - Operations - Learning Disability,LDP Huntingdonshire Locality - Care,SDS - Live Independently
Cambridgeshire County Council,04-Feb-16,19945714-12781185,500,Redacted Personal Data,Individual,2 - Operations - Learning Disability,LDP Huntingdonshire Locality - Care,SDS - Live Independently
Cambridgeshire County Council,04-Feb-16,19945715-12781186,500,Redacted Personal Data,Individual,2 - Operations - Learning Disability,LDP Huntingdonshire Locality - Care,SDS - Live Independently
Cambridgeshire County Council,04-Feb-16,19945716-12781187,500,Redacted Personal Data,Individual,2 - Operations - Learning Disability,LDP Huntingdonshire Locality - Care,SDS - Live Independently
Cambridgeshire County Council,04-Feb-16,19945726-12781189,500,Redacted Personal Data,Individual,2 - Operations - Learning Disability,LDP Huntingdonshire Locality - Care,SDS - Live Independently
Cambridgeshire County Council,04-Feb-16,19945727-12781190,500,Redacted Personal Data,Individual,2 - Operations - Learning Disability,LDP Huntingdonshire Locality - Care,SDS - Live Independently
Cambridgeshire County Council,04-Feb-16,19945729-12781192,500,Redacted Personal Data,Individual,2 - Operations - Learning Disability,LDP Huntingdonshire Locality - Care,SDS - Live Independently
Cambridgeshire County Council,04-Feb-16,19945733-12781193,500,Redacted Personal Data,Individual,2 - Operations - Learning Disability,LDP Huntingdonshire Locality - Care,SDS - Live Independently
Cambridgeshire County Council,04-Feb-16,19945734-12781194,500,Redacted Personal Data,Individual,2 - Operations - Learning Disability,LDP Huntingdonshire Locality - Care,SDS - Live Independently
Cambridgeshire County Council,04-Feb-16,19945735-12781195,500,Redacted Personal Data,Individual,2 - Operations - Learning Disability,LDP Huntingdonshire Locality - Care,SDS - Live Independently
Cambridgeshire County Council,04-Feb-16,19945736-12781196,500,Redacted Personal Data,Individual,2 - Operations - Learning Disability,LDP Huntingdonshire Locality - Care,SDS - Live Independently
Cambridgeshire County Council,04-Feb-16,19945737-12781197,500,Redacted Personal Data,Individual,2 - Operations - Learning Disability,LDP Huntingdonshire Locality - Care,SDS - Live Independently
Cambridgeshire County Council,04-Feb-16,19945738-12781198,500,Redacted Personal Data,Individual,2 - Operations - Learning Disability,LDP Huntingdonshire Locality - Care,SDS - Live Independently
Cambridgeshire County Council,04-Feb-16,19945747-12781199,500,Redacted Personal Data,Individual,2 - Operations - Learning Disability,LDP Huntingdonshire Locality - Care,SDS - Live Independently
Cambridgeshire County Council,04-Feb-16,19945748-12781200,500,Redacted Personal Data,Individual,2 - Operations - Learning Disability,LDP Huntingdonshire Locality - Care,SDS - Live Independently
Cambridgeshire County Council,04-Feb-16,19945749-12781201,500,Redacted Personal Data,Individual,2 - Operations - Learning Disability,LDP Huntingdonshire Locality - Care,SDS - Live Independently
Cambridgeshire County Council,04-Feb-16,19945750-12781202,500,Redacted Personal Data,Individual,2 - Operations - Learning Disability,LDP Huntingdonshire Locality - Care,SDS - Live Independently
Cambridgeshire County Council,04-Feb-16,19945751-12781203,500,Redacted Personal Data,Individual,2 - Operations - Learning Disability,LDP Huntingdonshire Locality - Care,SDS - Live Independently
Cambridgeshire County Council,04-Feb-16,19945763-12781150,500,Redacted Personal Data,Individual,2 - Operations - Learning Disability,LDP Huntingdonshire Locality - Care,SDS - Live Independently
Cambridgeshire County Council,04-Feb-16,19945764-12781151,500,Redacted Personal Data,Individual,2 - Operations - Learning Disability,LDP Huntingdonshire Locality - Care,SDS - Live Independently
Cambridgeshire County Council,04-Feb-16,19945765-12781152,500,Redacted Personal Data,Individual,2 - Operations - Learning Disability,LDP Huntingdonshire Locality - Care,SDS - Live Independently
Cambridgeshire County Council,04-Feb-16,19945766-12781153,500,Redacted Personal Data,Individual,2 - Operations - Learning Disability,LDP Huntingdonshire Locality - Care,SDS - Live Independently
Cambridgeshire County Council,04-Feb-16,19945767-12781154,500,Redacted Personal Data,Individual,2 - Operations - Learning Disability,LDP Huntingdonshire Locality - Care,SDS - Live Independently
Cambridgeshire County Council,04-Feb-16,19945768-12781155,500,Redacted Personal Data,Individual,2 - Operations - Learning Disability,LDP Huntingdonshire Locality - Care,SDS - Live Independently
Cambridgeshire County Council,04-Feb-16,19945784-12781169,500,Redacted Personal Data,Individual,2 - Operations - Learning Disability,LDP Huntingdonshire Locality - Care,SDS - Live Independently
Cambridgeshire County Council,04-Feb-16,19945785-12781170,500,Redacted Personal Data,Individual,2 - Operations - Learning Disability,LDP Huntingdonshire Locality - Care,SDS - Live Independently
Cambridgeshire County Council,04-Feb-16,19945786-12781171,500,Redacted Personal Data,Individual,2 - Operations - Learning Disability,LDP Huntingdonshire Locality - Care,SDS - Live Independently
Cambridgeshire County Council,04-Feb-16,19945804-12781172,500,Redacted Personal Data,Individual,2 - Operations - Learning Disability,LDP Huntingdonshire Locality - Care,SDS - Live Independently
Cambridgeshire County Council,04-Feb-16,19945805-12781173,500,Redacted Personal Data,Individual,2 - Operations - Learning Disability,LDP Huntingdonshire Locality - Care,SDS - Live Independently
Cambridgeshire County Council,04-Feb-16,19945806-12781174,500,Redacted Personal Data,Individual,2 - Operations - Learning Disability,LDP Huntingdonshire Locality - Care,SDS - Live Independently
Cambridgeshire County Council,04-Feb-16,19945807-12781175,500,Redacted Personal Data,Individual,2 - Operations - Learning Disability,LDP Huntingdonshire Locality - Care,SDS - Live Independently
Cambridgeshire County Council,04-Feb-16,19945808-12781176,500,Redacted Personal Data,Individual,2 - Operations - Learning Disability,LDP Huntingdonshire Locality - Care,SDS - Live Independently
Cambridgeshire County Council,04-Feb-16,19945809-12781177,500,Redacted Personal Data,Individual,2 - Operations - Learning Disability,LDP Huntingdonshire Locality - Care,SDS - Live Independently
Cambridgeshire County Council,04-Feb-16,19945820-12781178,500,Redacted Personal Data,Individual,2 - Operations - Learning Disability,LDP Huntingdonshire Locality - Care,SDS - Live Independently
Cambridgeshire County Council,04-Feb-16,19945821-12781179,500,Redacted Personal Data,Individual,2 - Operations - Learning Disability,LDP Huntingdonshire Locality - Care,SDS - Live Independently
Cambridgeshire County Council,04-Feb-16,19945822-12781180,500,Redacted Personal Data,Individual,2 - Operations - Learning Disability,LDP Huntingdonshire Locality - Care,SDS - Live Independently
Cambridgeshire County Council,04-Feb-16,19945829-12781181,500,Redacted Personal Data,Individual,2 - Operations - Learning Disability,LDP Huntingdonshire Locality - Care,SDS - Live Independently
Cambridgeshire County Council,04-Feb-16,19945830-12781182,500,Redacted Personal Data,Individual,2 - Operations - Learning Disability,LDP Huntingdonshire Locality - Care,SDS - Live Independently
Cambridgeshire County Council,04-Feb-16,19945832-12781156,500,Redacted Personal Data,Individual,2 - Operations - Learning Disability,LDP Huntingdonshire Locality - Care,SDS - Live Independently
Cambridgeshire County Council,04-Feb-16,19945833-12781157,500,Redacted Personal Data,Individual,2 - Operations - Learning Disability,LDP Huntingdonshire Locality - Care,SDS - Live Independently
Cambridgeshire County Council,04-Feb-16,19945834-12781158,500,Redacted Personal Data,Individual,2 - Operations - Learning Disability,LDP Huntingdonshire Locality - Care,SDS - Live Independently
Cambridgeshire County Council,04-Feb-16,19945842-12781159,500,Redacted Personal Data,Individual,2 - Operations - Learning Disability,LDP Huntingdonshire Locality - Care,SDS - Live Independently
Cambridgeshire County Council,04-Feb-16,19945843-12781160,500,Redacted Personal Data,Individual,2 - Operations - Learning Disability,LDP Huntingdonshire Locality - Care,SDS - Live Independently
Cambridgeshire County Council,04-Feb-16,19945844-12781161,500,Redacted Personal Data,Individual,2 - Operations - Learning Disability,LDP Huntingdonshire Locality - Care,SDS - Live Independently
Cambridgeshire County Council,04-Feb-16,19945845-12781162,500,Redacted Personal Data,Individual,2 - Operations - Learning Disability,LDP Huntingdonshire Locality - Care,SDS - Live Independently
Cambridgeshire County Council,04-Feb-16,19945854-12781165,500,Redacted Personal Data,Individual,2 - Operations - Learning Disability,LDP Huntingdonshire Locality - Care,SDS - Live Independently
Cambridgeshire County Council,04-Feb-16,19945855-12781166,500,Redacted Personal Data,Individual,2 - Operations - Learning Disability,LDP Huntingdonshire Locality - Care,SDS - Live Independently
Cambridgeshire County Council,04-Feb-16,19945856-12781167,500,Redacted Personal Data,Individual,2 - Operations - Learning Disability,LDP Huntingdonshire Locality - Care,SDS - Live Independently
Cambridgeshire County Council,04-Feb-16,19945862-12781168,500,Redacted Personal Data,Individual,2 - Operations - Learning Disability,LDP Huntingdonshire Locality - Care,SDS - Live Independently
Cambridgeshire County Council,04-Feb-16,19945870-12781163,500,Redacted Personal Data,Individual,2 - Operations - Learning Disability,LDP Huntingdonshire Locality - Care,SDS - Live Independently
Cambridgeshire County Council,04-Feb-16,19945883-12781164,500,Redacted Personal Data,Individual,2 - Operations - Learning Disability,LDP Huntingdonshire Locality - Care,SDS - Live Independently
Cambridgeshire County Council,04-Feb-16,19952144-12769590,500,Heron House,Care Establishment,2 - Commissioning - Older people Pool,East Cambs - O P Team,Residential Independent Sector
Cambridgeshire County Council,04-Feb-16,19953148-12769559,500,Heron House,Care Establishment,2 - Commissioning - Older people Pool,East Cambs - O P Team,Residential Independent Sector
Cambridgeshire County Council,09-Feb-16,19955166-12805399,500,Redacted Personal Data,Individual,Local Infrastructure & Street Management,Local Infrastructure & Street Mgt,Public Relations
Cambridgeshire County Council,11-Feb-16,19983535-12817233,500,Gracefield Nursing And Residential Home,Care Establishment,2 - Commissioning - Older people Pool,Older People Mental Health Hunts,Nursing Independent Sector
Cambridgeshire County Council,11-Feb-16,19983536-12817234,500,Gracefield Nursing And Residential Home,Care Establishment,2 - Commissioning - Older people Pool,Older People Mental Health Hunts,Nursing Independent Sector
Cambridgeshire County Council,11-Feb-16,19983537-12817235,500,Gracefield Nursing And Residential Home,Care Establishment,2 - Commissioning - Older people Pool,Older People Mental Health Hunts,Nursing Independent Sector
Cambridgeshire County Council,11-Feb-16,19983538-12817236,500,Gracefield Nursing And Residential Home,Care Establishment,2 - Commissioning - Older people Pool,Older People Mental Health Hunts,Nursing Independent Sector
Cambridgeshire County Council,11-Feb-16,19984912-12812595,500,The Elms Nursing Home,Care Establishment,2 - Commissioning - Older people Pool,Older People - Fenland,Residential Independent Sector
Cambridgeshire County Council,11-Feb-16,19984913-12812596,500,The Elms Nursing Home,Care Establishment,2 - Commissioning - Older people Pool,Older People - Fenland,Residential Independent Sector
Cambridgeshire County Council,11-Feb-16,19984919-12812593,500,The Elms Nursing Home,Care Establishment,2 - Commissioning - Older people Pool,Older People - Fenland,Residential Independent Sector
Cambridgeshire County Council,11-Feb-16,19984920-12812594,500,The Elms Nursing Home,Care Establishment,2 - Commissioning - Older people Pool,Older People - Fenland,Residential Independent Sector
Cambridgeshire County Council,11-Feb-16,19985263-12828404,500,Redacted Personal Data,Individual,E&P,YS - March and Chatteris Locality,Grants to Voluntary Bodies
Cambridgeshire County Council,16-Feb-16,19996249-12837528,500,Young Enterprise#1,Charity,E&P,YS - BCMG Locality Gamlingay Youth Club,General Office Expenses & Stationery
Cambridgeshire County Council,15-Feb-16,20001366-12835491,500,Fenland Association For Community Transport Ltd (Fact),Local Clubs & Groups,2 - Operations - Learning Disability,LDP Fenland Locality - Care,SDS - PB Travel
Cambridgeshire County Council,22-Feb-16,20004830-12862415,500,Seaview Music,Trade Supplier,LRNG,Cambs Music  1000 Voices - Singing Programme,Pay - Casual Staff - Course Instructors
Cambridgeshire County Council,18-Feb-16,20016364-12850455,500,Nene Valley Railway Ltd,Trade Supplier,Supporting Businesses and Communities,Museums - Museums MDF II,Joint / Partnership Funding
Cambridgeshire County Council,26-Feb-16,20023619-12885730,500,Coral Design Management,Trade Supplier,Growth & Economy,Ouse Washes,Advertising / Publicity
Cambridgeshire County Council,26-Feb-16,20058525-12886026,500,Redacted Personal Data,Parent/Guardian,3 - Operations - Countywide Services,Countywide PD Service - Care,Direct Payments - Social Services
Cambridgeshire County Council,26-Feb-16,20058843-12885581,500,St Georges Nursing Home,Care Establishment,2 - Commissioning - Older people Pool,Older People - City & South,Nursing Independent Sector
Cambridgeshire County Council,26-Feb-16,20058859-12885582,500,St Georges Nursing Home,Care Establishment,2 - Commissioning - Older people Pool,Older People - City & South,Nursing Independent Sector
Cambridgeshire County Council,26-Feb-16,20059077-12886159,500,Midfield Lodge Care Centre,Care Establishment,2 - Commissioning - Older people Pool,East Cambs - O P Team,Nursing Independent Sector
Cambridgeshire County Council,26-Feb-16,20059124-12886023,500,Redacted Personal Data,Parent/Guardian,3 - Operations - Countywide Services,Countywide PD Service - Care,Direct Payments - Social Services
Cambridgeshire County Council,26-Feb-16,20059126-12886025,500,Redacted Personal Data,Parent/Guardian,3 - Operations - Countywide Services,Countywide PD Service - Care,Direct Payments - Social Services
Cambridgeshire County Council,26-Feb-16,20062139-12883581,500,Abbey Healthcare (Huntingdon) Ltd,Care Establishment,2 - Commissioning - Older people Pool,Hunts O P  Team,Nursing Independent Sector
Cambridgeshire County Council,16-Feb-16,19922370-12837770,500.38,The Great British Card Company Plc,Trade Supplier,Corporate Services,Libraries - Cambourne,Materials for resale
Cambridgeshire County Council,11-Feb-16,19979440-12820666,500.58,Rose Lodge,Care Establishment,2 - Commissioning - Older people Pool,Older People - Fenland,Nursing Independent Sector
Cambridgeshire County Council,11-Feb-16,19979442-12820667,500.58,Rose Lodge,Care Establishment,2 - Commissioning - Older people Pool,Older People - Fenland,Nursing Independent Sector
Cambridgeshire County Council,11-Feb-16,19979446-12820668,500.58,Rose Lodge,Care Establishment,2 - Commissioning - Older people Pool,Older People - Fenland,Nursing Independent Sector
Cambridgeshire County Council,11-Feb-16,19979447-12820665,500.58,Rose Lodge,Care Establishment,2 - Commissioning - Older people Pool,Older People - Fenland,Nursing Independent Sector
Cambridgeshire County Council,08-Feb-16,19956754-12797811,501.07,Aa Global Language Service Ltd,Trade Supplier,CSC,CSC Access Unit 43,Interpreters
Cambridgeshire County Council,02-Feb-16,19927530-12762588,501.12,Redacted Personal Data,Individual,S&C,Home to School Transport - Special,Home to School - Special - Special school
Cambridgeshire County Council,19-Feb-16,20026289-12859076,501.12,Thera East Anglia,Trust (Other),2 - Operations - Learning Disability,LDP City Locality - Care,Daycare
Cambridgeshire County Council,11-Feb-16,19953245-12816834,501.73,Lightning Recruitment Ltd,Trade Supplier,S&C,C3 - Northants CC catering provision,Pay - Agency Staff
Cambridgeshire County Council,25-Feb-16,20012109-12875054,501.73,Lightning Recruitment Ltd,Trade Supplier,S&C,C3 - Northants CC catering provision,Pay - Agency Staff
Cambridgeshire County Council,19-Feb-16,19954499-12857459,501.85,Royal Mail,Trade Supplier,Corporate Services,Resources Franking Machine,Postage & Carriage
Cambridgeshire County Council,25-Feb-16,20003402-12874414,502.2,Mick George Recycling Limited,Company,S&C,Catering - Cook Freeze Unit (C3),Refuse collection charge
Cambridgeshire County Council,26-Feb-16,20055646-12880725,502.45,Redacted Personal Data,Individual,2 - Operations - Learning Disability,LDP South Cambs Locality - Care,SDS - Care and support Services
Cambridgeshire County Council,03-Feb-16,19928767-12765567,502.5,Lex Autolease Ltd,Trade Supplier,LGSS Managed,LGSS Property Trading Recharges,Leased Vehicle Costs
Cambridgeshire County Council,11-Feb-16,19978412-12814286,502.5,Woodlands Care Centre,Care Establishment,2 - Commissioning - Older people Pool,Older People Mental Health City & South,Residential Independent Sector
Cambridgeshire County Council,11-Feb-16,19978413-12814287,502.5,Woodlands Care Centre,Care Establishment,2 - Commissioning - Older people Pool,Older People Mental Health City & South,Residential Independent Sector
